{"text_format":"1","workbook":"xlsx","n_sheets":3,"sheets":["Sheet1","Hierarchy Data","Configuration Data"],"not_rendered":{"charts":0,"images":3,"macros":1,"external_links":0,"defined_names":31,"comments":0,"pivot_tables":0},"unopened":[],"bounds":{"document_bytes":16777216,"sheet_cells":100000,"rows_first":2000,"rows_last":500,"rows_between":2000,"halvings":0,"cell_chars":16384,"cell_head_chars":4096},"cells_cut":0,"cells_raw":0,"read":"whole","date_system":"1900"}

{"sheet":"Sheet1","index":0,"n_rows":1,"n_cols":96,"rows_kept":1,"cut":false,"hidden":false,"merged":[]}
["Supplier","Brand","Supplier SKU","UPC","Short Description (SAP Description)","Sales Copy / Long Description / Details","Green","MSRP","Street Price","Cost ","Drop Ship","Unit of Measure for Length","Packaged Product Length","Packaged Product Width","Packaged Product Height","Unit of measure for Weight","Product Gross wt","Product Net wt","Lead time (days, numbers only)","Country of origin","Hazardous Material Type (Lithium battery, alkaline battery, etc)","Product Expiration (# of Days)","Master Case Pack Quantity","Min order qty","High Res Image(s) URL","GAU or SAG Increment","GAU/SAG Factor ($)","Request","Family","Supplier (Derived)","Supplier #","SAP Description (Derived)","Universal Commodity Code","Item Hierarchy Level 1","Item Hierarchy Level 2","Item Hierarchy Level 3","Item Hierarchy Level 4","Hierarchy Code","Info Record Text (other than model number or OCT MM)","Purchasing Group","Material Group Type","Material group","Valuation Class","Material Type","Case Pack Quantity (Derived)","Order rounding value","Reorder point","MRP Type","MATL grp pack(box size)","Program type","Set Indicator","MRP controller","Storage location","Face Value (Vouchers)","Gift Card Currency","Item Category Group (Sales Org 2)","Variant Category","STP Number(s)","Packaging","Personalization Type","Lines/Characters","Required?","Info Record Vendor Material Group","Gender","Gold or Silver","Copy From","Replacement For MM#","Additional Instructions for Product Group","Additional Instructions for MFG Images","Additional Instructions for Photo Studio","Request (Derived)","Family (Derived)","Sales Org(s)","Contact Name (Analyst)","MM#","Option Parent Family MM#","SAP Description (Derived)","Brand (Derived)","Gift Card Face Amount","Gift Card Cost in Face Currency","Gift Card Currency","List Price Amount to Bundle","Annual # of Awards","Print Quantity","Bundled PP3","PP3","PPC","List Price Set","List Price","CV-F","RPWO Flag","Non-Discountable Flag","Non-Commissionable Flag",null,"Additional Notes\nBOM extension\nPricing for RPWO \nETC","Core Level"]

{"sheet":"Hierarchy Data","index":1,"n_rows":51,"n_cols":437,"rows_kept":51,"cut":false,"hidden":false,"merged":[]}
["Top Level","Accessories","Apparel","Electronics","Food","Gift Cards & Packages","Home","Jewelry","Luggage","Recreation & Leisure","Tools","Watches","Beauty","Gender Neutral Sunglasses","Mens Fragrance","Mens Sunglasses","Mens Wallets & Money Clips","Portable Accessories","Womens Fragrance","Womens Handbags","Womens Sunglasses","Womens Wallets, Card Cases & Organizers ","Writing Instruments","Boys Youth Apparel","Girls Youth Apparel","Mens Apparel","Womens Apparel","Camera, Photo","Computer","Electronic Accessories ","Gaming","Home Audio ","Home Automation","Media Devices","Mobile Devices","Navigation & Car","Office ","Optics","Portable Audio ","Recreational Electronics ","TV","Wearables","Candy & Chocolate","Coffee, Tea & Other Beverages","Fruits & Vegetables","Meats","Snacks & Desserts","Cash Card","eGift Card","Experience Package","Gift Card","Travel Package","Appliances & Safes","Bed, Bath & Personal Care","Clocks","Crystal & Tabletop","Floor & Fabric Care","Furniture & Home Décor","Kids, Toys & Baby","Kitchen & Dining","Kitchen Electrics","Belt Buckles","Jewelry Storage","Mens Bracelet","Mens Cuff Links","Mens Earrings","Mens Necklace","Mens Ring","Mens Tie Clips","Womens Bracelets & Charms","Womens Brooches & Pins","Womens Earrings","Womens Jewelry Set","Womens Necklaces & Pendants","Womens Ring","Carry-On Luggage","Checked Luggage","Kids Luggage","Luggage Sets","Travel & Business Accessories","Backyard","Camping","Cycling","Exercise & Fitness","Golf","Hunting & Fishing","Outdoor Knifes & Multi-tools","Sports, Activities & Outdoor Accessories","Hand Tools","Outdoor Power","Power Tools","Tool Storage","Kids Watches","Mens Watches","Womens Watches","Mouth Care","Skin Care","Skin Care Tool","Black, Grey Frames","Blue, Green Frames","Brown, Bronze Frames","Multi-Color Frames","Other Frames","Pink, Purple Frames","Red, Orange Frames","Whites, Clear Frames","Yellow, Gold Frames","Mens Celebrity","Mens Traditional","Mens Wallet","Money Clip","Key Chains & Key Tags","Other Portable Accessories","Umbrella","Womens Celebrity","Womens Traditional","Canvas","Leather Handbag","Multi-Material","Nylon","Card Case","Coin Purse","Cosmetic Case","Organizer","Womens Wallet","Ballpoint pen","Fountain Pen","Mechanical Pencil","Pen/Stylus","Rollerball Pen","Writing Instrument Sets","Belts & Suspenders","Coats & Jackets","Hats & Gloves","Pants & Shorts","Shirts & Sweaters","Shoes & Socks","Suits & Sportcoats","Ties & Scarfs","Belts & Scarfs","Pants, Dresses & Skirts","Shoes, Socks & Hosiery","Suits & Blazers","Shirts, Sweaters & Robes","ActionCam","Camcorder","Camera","Photo ","TrailCam","Computer Accessories","Computer Monitor","CPU","Desktop","Desktop Keyboard","Laptop","WebCam","Adapter","Battery","Cable","Case","Charger","Generator","Selfie Stick","TV Accessories","Gaming Accessories","Gaming System","Compact Radios & Steroes","Home Theater System","Karaoke & Microphone","Speaker","Stereo System Components","Monitoring","Security","Smart Home","Weather Station","BluRay","DVD ","Media Streaming","Projector","Cell Phone","Digital Dictionary","eReader","Headset","Mobile Device Accessories","Tablet","Car Electronics","Dash Cam","GPS","NAV","Desk Phone","Office Accessories","Printer","Scanner","Shredder","USB Drive","Binocular","Magnification","Monocular","Outing Kit","Radar Gun","Rangefinder","Rifle Scope","Spotting Scope","Telescope","Headphone","MP3","Portable Speaker","Voice Recorder","Drone","Hoverboard","Musical Instrument","Walkie Talkie","Television","TV Combo","Activity Tracker","Healthcare Device","Smart Glasses","Smart Sport Accessories","Smart Tracking","Smart Watch","Carmel/Chocolate Covered","Chocolate","Other Candy","Toffee","Coffee","Coffee & Cups Package","Other Beverages","Fruit Basket","Other Fruits & Vegetables","Salsa","Bacon Wrapped Filet","Burgers","Filet Migon","Meat Collection Certificate","Meat Packages","Other Meats","Ribeye","Steaks","Brownie","Cheesecake","Cookies","Other Snacks","Popcorn","Snack Package","American Express Reward Card","Discover Persona Select Card","Mastercard Prepaid","Visa Prepaid","Arts & Activites","Automotive","Beauty & Spa","Charity","Clothing, Shoes & Accessories","Electronics & Music","Flowers","Food & Grocery","Hotels & Travel","Other Retail","Sports & Recreation","Flowers experience","Food experience","Other experiences","Show/Event","Sporting event","Theme park","Concierge ","Cruise","South Africa","Vacation Experience","Heating, Cooling & Air Quality","Kitchen Appliances","Safes","Washer & Dryer","Bathroom Accessories","Bedding","Hair Care","Healthcare Products","Massage & Therapy","Personal Grooming","Floor Clock","Kids Clock","Mantel Clock","Table Clock","Wall Clock","Crystal","Tabletop","Fabric Care","Steam Floor Care","Vacuum Floor Care","Art & Frames","Cabinets","Home Décor","Lamps & Lighting","Mirrors & Wall Décor","Rugs & Pads","Seasonal Décor","Tables & Chairs","Child & Baby Gear","Toys & Games","Cookware & Bakeware","Cutlery & Knife Accessories","Dinnerware & Flatware","Kitchen Storage & Organization","Kitchen Tools, Gadgets & Accessories","Blending & Juicing","Coffee, Tea & Espresso","Food Prep & Storage","Grill & Toast","Specialty Electrics","Wine Electrics","Brass Buckle","Copper Buckle","Gold","Other Belt Buckle Materials","Silver","Silver Plate & Gold Plate Buckle","Stainless Steel Buckle","Sterling Silver Buckle","Titanium Buckle","Jewelry Box","Jewelry Chest","Ring Holder","10K Gold","14K Gold","18K Gold","Brass","Cobalt","Copper","Gold Filled","Gold Plated","Gold Tone","Leather","Platinum","Rhodium Plated","Silver Plate & Gold Plate","Silver Plated","Silver Tone","Stainless Steel","Sterling Silver","Sterling Silver & 10K Gold","Sterling Silver & 14K Gold","Sterling Silver & 18K Gold","Titanium","Two Tone","Backpack","Briefcase","Duffel","Garment Bags","Hardside Luggage","Laptop Bag","Messenger & Shoulder Bags","Other Luggage","Totes & Satchels","Upright Luggage","Oversized Item Luggage","Disney Character Luggage","Other Kids Luggage","2-Piece set","3-Piece Set","4-Piece set","5-Piece Set","6-Piece Set","Other Luggage Sets","Luggage Scale","Other Accessories","Portfolio","Travel Kit","Fire Pits & Heaters","Gardening","Grills & Outdoor Cooking","Outdoor Décor","Patio Furniture","Pet Bedding & Accessories","Backpacks & Other Bags","Furniture & Kitchen","Lighting & Other Gear","Outdoor Package","Sleeping Bags & Other Bedding","Tent & Shelter","Cycling Accessories","Fixed Gear & BMX Biking","Hybrid Biking","Kids Biking","Leisure Biking","Mountain Biking","Road Biking","Cardio Exercise Equipment","Fitness & Handhelds","Strength & Weight Training","Footwear & Clothing","Golf Accessories","Golf Bag","Golf Balls","Golf Cart","Golf Clubs","Golf Package","Fishing Gear","Fishing Rods, Reels & Packages","Hunting & Shooting","Fixed Blade Knife","Folding Blade Knife","Knife Set","Knife Sharpener","Multi-Tool","Pocket Knife","ATV's & Other Powered Vehicles","Climbing","First Aid, Safety & Energy","Leisure Sports & Game Room","Skateboards & Scooters","Sports Collectables","Team Sports","Water Sports & Boating","Winter Sports","Cutting Hand Tools","Fastening Hand Tools","Garden Tools","Ladders","Measuring & Layout ","Pliers & Wrenches","Tool Sets","Corded Outdoor Power","Cordless Outdoor Power","Gas Outdoor Power","Corded Power Tools","Cordless Power Tools","Pneumatics Tools","Power Tool Accessories","Stationary Power Tools","Tool Box","Tool Chest","Vehicle Storage","Casual Watch","Watch Accessories","Dress Watch ","Fashion Watch","Sport Watch"]
["Accessories","Beauty","Boys Youth Apparel","Camera, Photo","Candy & Chocolate","Cash Card","Appliances & Safes","Belt Buckles","Carry-On Luggage","Backyard","Hand Tools","Kids Watches","Mouth Care","Black, Grey Frames","Mens Celebrity","Black, Grey Frames","Mens Wallet","Key Chains & Key Tags","Womens Celebrity","Canvas","Black, Grey Frames","Card Case","Ballpoint pen","Belts & Suspenders","Belts & Scarfs","Belts & Suspenders","Belts & Scarfs","ActionCam","Computer Accessories","Adapter","Gaming Accessories","Compact Radios & Steroes","Monitoring","BluRay","Cell Phone","Car Electronics","Desk Phone","Binocular","Headphone","Drone","Television","Activity Tracker","Carmel/Chocolate Covered","Coffee","Fruit Basket","Bacon Wrapped Filet","Brownie","American Express Reward Card","Arts & Activites","Flowers experience","Arts & Activites","Concierge ","Heating, Cooling & Air Quality","Bathroom Accessories","Floor Clock","Crystal","Fabric Care","Art & Frames","Child & Baby Gear","Cookware & Bakeware","Blending & Juicing","Brass Buckle","Jewelry Box","10K Gold","10K Gold","10K Gold","10K Gold","10K Gold","Brass Buckle","10K Gold","10K Gold","10K Gold","10K Gold","10K Gold","10K Gold","Backpack","Backpack","Disney Character Luggage","2-Piece set","Luggage Scale","Fire Pits & Heaters","Backpacks & Other Bags","Cycling Accessories","Cardio Exercise Equipment","Footwear & Clothing","Fishing Gear","Fixed Blade Knife","ATV's & Other Powered Vehicles","Cutting Hand Tools","Corded Outdoor Power","Corded Power Tools","Tool Box","Casual Watch","Casual Watch","Casual Watch","Teeth Whitening","Eye Care","Facial Brush","Black, Grey Lenses","Black, Grey Lenses","Black, Grey Lenses","Black, Grey Lenses","Black, Grey Lenses","Black, Grey Lenses","Black, Grey Lenses","Black, Grey Lenses","Black, Grey Lenses","Complete","Complete","Black Faux-Leather","Other Materials Money Clips","Complete","Complete","Complete","Complete","Complete","Baby Bag","Baby Bag","Baby Bag","Baby Bag","Complete","Complete","Complete","Complete","Complete","Complete","Complete","Complete","Complete","Complete","Complete","Belt","Coat","Bandana","Jeans","Hoodies","Casual","Blazers & Sport Coats","Scarfs","Belt","Dress Pants","Casual","Blazer","Hoodies","Complete","Complete","Compact","Photo Frame","Complete","Complete","Complete","Complete","Complete","Complete","Complete","Complete","Complete","Complete","Complete","Complete","Complete","Complete","Complete","Remote Control","Complete","Complete","Clock Radio","Complete","Karaoke","Bookshelf","Archiver","Baby Monitor","Security Camera","Smart Alarm","Complete","Home BluRay Player","Home DVD Player","Streaming Box  ","Home Theater Projector","Complete","Complete","Complete","Complete","Complete","Complete","Air Purifier","Complete","Complete","Complete","Complete","Complete","Office Printer","Complete","Complete","Complete","Complete","Magnifer","Complete","Complete","Complete","Golf Rangefinder","Complete","Complete","Reflector","Around-Ear","Complete","Indoor","Complete","Complete","Complete","Drums","Complete","Complete","Complete","Complete","Complete","Complete","Complete","Complete","Complete","Complete","Complete","Complete","Complete","Complete","Complete","Complete","Complete","Complete","Complete","Complete","Complete","Complete","Complete","Complete","Complete","Complete","Complete","Complete","Complete","Complete","Complete","Complete","Complete","$1-$25","$1-$25","$1-$25","$1-$25","$1-$25","$1-$25","$1-$25","$1-$25","$1-$25","$1-$25","$1-$25","$1-$25","$1-$25","$1-$25","$1-$25","Complete","Complete","Complete","Complete","Complete","Complete","$100-$500","$100-$500","$100-$500","$100-$500","Air Conditioner","Dishwasher","Gun Safe","Dryer","Bathroom Mirror","Bed","Hair Brush","Blood Pressure Monitor","Foot Bath","Razor","Battery/Quartz","Battery/Quartz","Battery/Quartz","Battery/Quartz","Battery/Quartz","Bowls","Figurines","Fabric Defuzzer","Steam Mop","Canister Vacuum","Fine Art","Bar Cabinet","Candles & CandleSticks","Complete","Barometer","Complete","Fall Décor","Complete","Bedding & Swings","Action Figures, Dolls & Stuffed Animals","Bakeware Sets","Cutting Board","Bowls & Buckets","Dish Rack Set","Bar & Wine Tools","Beverage Maker","Coffee & Tea Set","Breadmaker","Countertop Oven","Cupcake Maker","Wine Chiller","Complete","Complete","Complete","Complete","Complete","Complete","Complete","Complete","Complete","Complete","Complete","Complete","Amethyst","Amethyst","Amethyst","Amethyst","Amethyst","Amethyst","Amethyst","Amethyst","Amethyst","Amethyst","Amethyst","Amethyst","Amethyst","Amethyst","Amethyst","Amethyst","Amethyst","Amethyst","Amethyst","Amethyst","Amethyst","Amethyst","Carried Bags","Carried Bags","Carried Bags","Carried Bags","Carried Bags","Carried Bags","Carried Bags","Carried Bags","Carried Bags","Carried Bags","Carried Bags","Roller Wheels","Roller Wheels","Complete","Complete","Complete","Complete","Complete","Complete","Complete","Complete","Complete","Complete","Fire Accessories","Hydroponics","Charcoal Grill","Artistic & Seasonal Décor","Hammock","Pet Accessories","Backpacking Pack","Chair","Flashlight","Camping Package","Air Mattress","Canopy","Accessory Kit","BMX Bike","Complete","Complete","Cruiser Bike","Complete","Complete","Elliptical","Fitness Accessories","Free Weights","Footwear","Golf Travel Cover","Complete","Complete","Complete","Custom Driver","Custom Golf Package","Boots, Waders & Apparel","Fishing Rods & Gear Packages","Archery","Complete","Complete","2 Piece Knife & Binoculars Set","Complete","Complete","Complete","ATV Accessories",null,"Battery Chargers & Accessories","Air Hockey","Scooter","Autographed Baseball Memorabilia","Badminton","Boats & Motors","Skiing & Snowboarding","Complete","Clamp","Hedge Shears","Complete","Laser","Pliers","Automotive Tool Set","Blowers & Blower Vacs","Blowers & Blower Vacs","Blowers & Blower Vacs","Circular Saw","Circular Saw","Air Compressor","Battery","Drill Press","Complete","Complete","Hitch Mounted Carrier","Bracelet","Dial Upgrade","Bracelet","Bracelet","Bracelet"]
["Apparel","Gender Neutral Sunglasses","Girls Youth Apparel","Computer","Coffee, Tea & Other Beverages","eGift Card","Bed, Bath & Personal Care","Jewelry Storage","Checked Luggage","Camping","Outdoor Power","Mens Watches","Skin Care","Blue, Green Frames","Mens Traditional","Blue, Green Frames","Money Clip","Other Portable Accessories","Womens Traditional","Leather Handbag","Blue, Green Frames","Coin Purse","Fountain Pen","Coats & Jackets","Coats & Jackets","Coats & Jackets","Coats & Jackets","Camcorder","Computer Monitor","Battery","Gaming System","Home Theater System","Security","DVD ","Digital Dictionary","Dash Cam","Office Accessories","Magnification","MP3","Hoverboard","TV Combo","Healthcare Device","Chocolate","Coffee & Cups Package","Other Fruits & Vegetables","Burgers","Cheesecake","Discover Persona Select Card","Automotive","Food experience","Automotive","Cruise","Kitchen Appliances","Bedding","Kids Clock","Tabletop","Steam Floor Care","Cabinets","Toys & Games","Cutlery & Knife Accessories","Coffee, Tea & Espresso","Copper Buckle","Jewelry Chest","14K Gold","14K Gold","14K Gold","14K Gold","14K Gold","Copper Buckle","14K Gold","14K Gold","14K Gold","14K Gold","14K Gold","14K Gold","Briefcase","Duffel","Other Kids Luggage","3-Piece Set","Other Accessories","Gardening","Furniture & Kitchen","Fixed Gear & BMX Biking","Fitness & Handhelds","Golf Accessories","Fishing Rods, Reels & Packages","Folding Blade Knife","Climbing","Fastening Hand Tools","Cordless Outdoor Power","Cordless Power Tools","Tool Chest","Watch Accessories","Dress Watch ","Dress Watch ","Cleansing system","Facial Care","Foot Tool","Blue, Green Lenses","Blue, Green Lenses","Blue, Green Lenses","Blue, Green Lenses","Blue, Green Lenses","Blue, Green Lenses","Blue, Green Lenses","Blue, Green Lenses","Blue, Green Lenses",null,null,"Black Leather","Stainless Steel Money Clips",null,null,null,null,null,"Backpack","Backpack","Backpack","Backpack",null,null,null,null,null,null,null,null,null,null,null,"Suspender","Jacket","Beanie","Shorts","Shirts","Dress","Suit","Ties","Scarfs & Wraps","Dresses","Dress","Suits","Robe",null,null,"DSLR","Photo Storage",null,null,null,null,null,null,null,null,null,null,null,null,null,null,null,"TV Antenna ",null,null,"Radio",null,"Microphone","Ceiling & in-wall","Receiver","Pet Monitor","Security System","Smart Door Lock",null,"Portable Bluray Player","Portable DVD Player","Streaming Stick ","Portable Data Projector",null,null,null,null,null,null,"Massage Cushion",null,null,null,null,null,"Photo Printer",null,null,null,null,"Microscope",null,null,null,"Hunting Rangefinder",null,null,"Refractor","On-Ear",null,"Indoor/Outdoor",null,null,null,"Flute",null,null,null,null,null,null,null,null,null,null,null,null,null,null,null,null,null,null,null,null,null,null,null,null,null,null,null,null,null,null,null,null,null,"$26-$50","$26-$50","$26-$50","$26-$50","$26-$50","$26-$50","$26-$50","$26-$50","$26-$50","$26-$50","$26-$50","$26-$50","$26-$50","$26-$50","$26-$50",null,null,null,null,null,null,"$501-$1000","$501-$1000","$501-$1000","$501-$1000","Air Multiplier","Freezer","Home Safe","Washer","Plaque Removal","Bed Frame","Hair Dryer","Other Healthcare Products","Massager","Trimmer","Mechanical Or Key Wound",null,"Mechanical Or Key Wound","Mechanical Or Key Wound","Mechanical Or Key Wound","Drinkware","Frames","Fabric Steamer","Steam Vacuum","Floor Cleaner","Picture Frame","Curio Cabinet","Desk & Shelf Décor",null,"Mirror",null,"Spring Décor",null,"Booster Seats & High Chairs","Art & Crafts","Bread & Pie Pans","Knifes","Decanters & Water Pitchers","Lunch Bag","Barbeque Tools & Accessories","Blender","Coffee Brew Bundle","Buffet Server","Indoor Grill","Egg Cooker","Wine Opener",null,null,null,null,null,null,null,null,null,null,null,null,"Amethyst & Citrine","Amethyst & Citrine","Amethyst & Citrine","Amethyst & Citrine","Amethyst & Citrine","Amethyst & Citrine","Amethyst & Citrine","Amethyst & Citrine","Amethyst & Citrine","Amethyst & Citrine","Amethyst & Citrine","Amethyst & Citrine","Amethyst & Citrine","Amethyst & Citrine","Amethyst & Citrine","Amethyst & Citrine","Amethyst & Citrine","Amethyst & Citrine","Amethyst & Citrine","Amethyst & Citrine","Amethyst & Citrine","Amethyst & Citrine","Roller Wheels","Roller Wheels","Roller Wheels","Roller Wheels","Roller Wheels","Roller Wheels","Roller Wheels","Roller Wheels","Roller Wheels","Roller Wheels","Roller Wheels","Spinner Wheels","Spinner Wheels",null,null,null,null,null,null,null,null,null,null,"Fire Pits, Bowls, & Chimineas","Pots, Planters & Structures","Electric Grill","Birding & Wildlife","Patio Bench","Pet Bed","Child Carrier Pack","Coffee & Tea","Headlamp","Tailgate Package","Bedding Accessories","Screen","Bike Bag","Fixie",null,null,"Tandem Bike",null,null,"Recumbent Bike","Handhelds","Home Gym","Glove","Golf Umbrella",null,null,null,"Custom Fairway/Hybrid","Standard Golf Package","Fish Finder","Kids Fishing","Gun & Shooting Accessories",null,null,"2 Piece Knife & Compass Set",null,null,null,"Dune Buggy",null,"Emergency Kit","Basketball Shootout Game","Skateboard","Baseball Artifact","Baseball & Softball","Canoe","Sledding",null,"Screwdriver Set","Pruner",null,"Tape Measure","Wrenches","Electricians Tool set","Chain Saw","Chain Saw","Chain Saw","Drills & Screwdrivers","Combo Kits","Nailer/Compressor Combo","Drill Bit Set","Miter Saw",null,null,"Roof-Top Carrier","Bracelet/ Strap","Link","Bracelet/ Strap","Bracelet/ Strap","Bracelet/ Strap"]
["Electronics","Mens Fragrance","Mens Apparel","Electronic Accessories ","Fruits & Vegetables","Experience Package","Clocks","Mens Bracelet","Kids Luggage","Cycling","Power Tools","Womens Watches","Skin Care Tool","Brown, Bronze Frames",null,"Brown, Bronze Frames",null,"Umbrella",null,"Multi-Material","Brown, Bronze Frames","Cosmetic Case","Mechanical Pencil","Hats & Gloves","Hats & Gloves","Hats & Gloves","Hats & Gloves","Camera","CPU","Cable",null,"Karaoke & Microphone","Smart Home","Media Streaming","eReader","GPS","Printer","Monocular","Portable Speaker","Musical Instrument",null,"Smart Glasses","Other Candy","Other Beverages","Salsa","Filet Migon","Cookies","Mastercard Prepaid","Beauty & Spa","Other experiences","Beauty & Spa","South Africa","Safes","Hair Care","Mantel Clock",null,"Vacuum Floor Care","Home Décor",null,"Dinnerware & Flatware","Food Prep & Storage","Gold","Ring Holder","18K Gold","18K Gold","18K Gold","18K Gold","18K Gold","Gold","18K Gold","18K Gold","18K Gold","18K Gold","18K Gold","18K Gold","Duffel","Garment Bags",null,"4-Piece set","Portfolio","Grills & Outdoor Cooking","Lighting & Other Gear","Hybrid Biking","Strength & Weight Training","Golf Bag","Hunting & Shooting","Knife Set","First Aid, Safety & Energy","Garden Tools","Gas Outdoor Power","Pneumatics Tools","Vehicle Storage",null,"Fashion Watch","Fashion Watch",null,"Skin Care Kit",null,"Brown, Bronze Lenses","Brown, Bronze Lenses","Brown, Bronze Lenses","Brown, Bronze Lenses","Brown, Bronze Lenses","Brown, Bronze Lenses","Brown, Bronze Lenses","Brown, Bronze Lenses","Brown, Bronze Lenses",null,null,"Brown Faux-Leather","Sterling Silver Money Clips",null,null,null,null,null,"Bucket","Bucket","Bucket","Bucket",null,null,null,null,null,null,null,null,null,null,null,null,"Trench & Rain","Gloves","Slacks/Khakis","Sweaters","Outdoor/Athletic","Vest",null,null,"Jeans","Outdoor/Athletic",null,"Shirts",null,null,"Mirrorless","Slide Converter",null,null,null,null,null,null,null,null,null,null,null,null,null,null,null,"TV Wall Mount",null,null,"Specialty Clock",null,null,"Center-channel","Stereo Turntable",null,null,"Smart Home Camera",null,"Streaming Home BluRay",null,null,null,null,null,null,null,null,null,"Transmitter",null,null,null,null,null,"Printer/Scanner/Copier",null,null,null,null,"SpyGlass",null,null,null,null,null,null,null,"In-Ear",null,"Outdoor",null,null,null,"Guitar",null,null,null,null,null,null,null,null,null,null,null,null,null,null,null,null,null,null,null,null,null,null,null,null,null,null,null,null,null,null,null,null,null,"$51-$100","$51-$100","$51-$100","$51-$100","$51-$100","$51-$100","$51-$100","$51-$100","$51-$100","$51-$100","$51-$100","$51-$100","$51-$100","$51-$100","$51-$100",null,null,null,null,null,null,"$1001-$2500","$1001-$2500","$1001-$2500","$1001-$2500","Air Purifier","Microwave",null,null,"Scale","Blankets & Sheets","Hair Rollers",null,"Oils & Aromas",null,null,null,null,null,null,"Other Crystal","Globes","Garmet Steamer",null,"Garage/Shop Vacuum",null,"Storage Cabinet","Fireplace Décor ",null,"Wall Décor ",null,"Summer Décor",null,"Diaper Bag","Balls, Ball Pits, & Sports","Cake Pans","Knife Set","Dinnerware Set","Picnic Package","Can Opener","Blender & Food Processor Set","Coffee Grinder","Can Opener","Panini Maker","Fondue Set",null,null,null,null,null,null,null,null,null,null,null,null,null,"Amethyst & Diamond","Amethyst & Diamond","Amethyst & Diamond","Amethyst & Diamond","Amethyst & Diamond","Amethyst & Diamond","Amethyst & Diamond","Amethyst & Diamond","Amethyst & Diamond","Amethyst & Diamond","Amethyst & Diamond","Amethyst & Diamond","Amethyst & Diamond","Amethyst & Diamond","Amethyst & Diamond","Amethyst & Diamond","Amethyst & Diamond","Amethyst & Diamond","Amethyst & Diamond","Amethyst & Diamond","Amethyst & Diamond","Amethyst & Diamond","Spinner Wheels","Spinner Wheels","Spinner Wheels","Spinner Wheels","Spinner Wheels","Spinner Wheels","Spinner Wheels","Spinner Wheels","Spinner Wheels","Spinner Wheels","Spinner Wheels",null,null,null,null,null,null,null,null,null,null,null,null,"Outdoor Fireplace","Watering","Gas Grill","Outdoor Lighting","Patio Chair","Pet Toy","Day Pack","Cookware","Lantern",null,"Cot","Shade","Bike Electronics",null,null,null,"Unicycle",null,null,"Rowers","Mini Stepper","Weight Bench","Hats","Training Net",null,null,null,"Custom Irons",null,"Tools & Fishing Accessories","Reel","Hunting Accessories",null,null,"2 Piece Knife & Light Set",null,null,null,"Kids ATV",null,"First Aid Kit","Billards",null,"Baseball Memorabilia","Basketball","Kayak","Sledding",null,"Tie Downs","Tool Set",null,"Thermal Tool",null,"Home Repair Tool Set","Edger","Combo Kits","Edger","Dust Extractor","Drills & Screwdrivers","Other Pneumatics","Other Accessory Kits","Table Saw",null,null,null,"Custom Watches",null,"Custom Watches","Custom Watches","Custom Watches"]
["Food","Mens Sunglasses","Womens Apparel","Gaming","Meats","Gift Card","Crystal & Tabletop","Mens Cuff Links","Luggage Sets","Exercise & Fitness","Tool Storage",null,null,"Multi-Color Frames",null,"Multi-Color Frames",null,null,null,"Nylon","Multi-Color Frames","Organizer","Pen/Stylus","Pants & Shorts","Pants, Dresses & Skirts","Pants & Shorts","Pants, Dresses & Skirts","Photo ","Desktop","Case",null,"Speaker","Weather Station","Projector","Headset","NAV","Scanner","Outing Kit","Voice Recorder","Walkie Talkie",null,"Smart Sport Accessories","Toffee",null,null,"Meat Collection Certificate","Other Snacks","Visa Prepaid","Charity","Show/Event","Charity","Vacation Experience","Washer & Dryer","Healthcare Products","Table Clock",null,null,"Lamps & Lighting",null,"Kitchen Storage & Organization","Grill & Toast","Other Belt Buckle Materials",null,"Brass","Brass","Brass","Brass","Brass","Other Belt Buckle Materials","Brass","Brass","Brass","Brass","Brass","Brass","Garment Bags","Hardside Luggage",null,"5-Piece Set","Travel Kit","Outdoor Décor","Outdoor Package","Kids Biking",null,"Golf Balls",null,"Knife Sharpener","Leisure Sports & Game Room","Ladders",null,"Power Tool Accessories",null,null,"Sport Watch","Sport Watch",null,null,null,"Other Lenses","Other Lenses","Other Lenses","Other Lenses","Other Lenses","Other Lenses","Other Lenses","Other Lenses","Other Lenses",null,null,"Brown Leather",null,null,null,null,null,null,"Clutch","Clutch","Clutch","Clutch",null,null,null,null,null,null,null,null,null,null,null,null,"Vest","Hat",null,null,"Socks",null,null,null,"Shorts","Socks & Hoisery",null,"Sweaters",null,null,"Waterproof",null,null,null,null,null,null,null,null,null,null,null,null,null,null,null,null,null,null,null,"Specialty Stereo",null,null,"Floorstanding",null,null,null,"Smart Lighting",null,null,null,null,null,null,null,null,null,null,null,null,null,null,null,null,null,null,null,null,null,null,null,null,null,null,null,null,null,null,null,null,null,null,null,null,"Harmonica",null,null,null,null,null,null,null,null,null,null,null,null,null,null,null,null,null,null,null,null,null,null,null,null,null,null,null,null,null,null,null,null,null,"$101-$250","$101-$250","$101-$250","$101-$250","$101-$250","$101-$250","$101-$250","$101-$250","$101-$250","$101-$250","$101-$250","$101-$250","$101-$250","$101-$250","$101-$250",null,null,null,null,null,null,"$2501-$5000","$2501-$5000","$2501-$5000","$2501-$5000","Dehumidifier","Range",null,null,"Toothbrush","Mattress","Hair Straightener",null,"Therapy Light",null,null,null,null,null,null,"Vases","Other Tabletop","Iron",null,"Handheld Vacuum",null,null,"Large Sculptures",null,null,null,"Winter Décor",null,"Health & Feeding Gear","Board Games","Casserole Pans",null,"Flatware Sets","Spice Rack","Canning & Preserving","Juicer","Coffee Maker","Cheese Grater","Toaster","Ice Cream Maker",null,null,null,null,null,null,null,null,null,null,null,null,null,"Amethyst & Iolite","Amethyst & Iolite","Amethyst & Iolite","Amethyst & Iolite","Amethyst & Iolite","Amethyst & Iolite","Amethyst & Iolite","Amethyst & Iolite","Amethyst & Iolite","Amethyst & Iolite","Amethyst & Iolite","Amethyst & Iolite","Amethyst & Iolite","Amethyst & Iolite","Amethyst & Iolite","Amethyst & Iolite","Amethyst & Iolite","Amethyst & Iolite","Amethyst & Iolite","Amethyst & Iolite","Amethyst & Iolite","Amethyst & Iolite",null,null,null,null,null,null,null,null,null,null,null,null,null,null,null,null,null,null,null,null,null,null,null,"Outdoor Heater",null,"Grill Lights & Cooking Accessories","Storage","Patio Shade",null,"Hydration Pack","Cooler","Other Gear",null,"Sleeping Bag","Tent","Bike Lock",null,null,null,null,null,null,"Treadmill","Yoga",null,"Shirt",null,null,null,null,"Custom Putter",null,null,"Rod",null,null,null,"2 Piece Knife & Multi-Tool Set",null,null,null,null,null,"Safety Kit","Darts",null,"Basketball Artifact","Football","Life Vests","Snowshoeing",null,null,"Trowel",null,null,null,"Roadside Tool Set","Lawn Mower","Lawn Mower","Generator","Garage Hoist","Grinder/Polisher",null,null,null,null,null,null,"Strap",null,"Strap","Strap","Strap"]
["Gift Cards & Packages","Mens Wallets & Money Clips",null,"Home Audio ","Snacks & Desserts","Travel Package","Floor & Fabric Care","Mens Earrings","Travel & Business Accessories","Golf",null,null,null,"Other Frames",null,"Other Frames",null,null,null,null,"Other Frames","Womens Wallet","Rollerball Pen","Shirts & Sweaters","Shirts & Sweaters","Shirts, Sweaters & Robes","Shirts & Sweaters","TrailCam","Desktop Keyboard","Charger",null,"Stereo System Components",null,null,"Mobile Device Accessories",null,"Shredder","Radar Gun",null,null,null,"Smart Tracking",null,null,null,"Meat Packages","Popcorn",null,"Clothing, Shoes & Accessories","Sporting event","Clothing, Shoes & Accessories",null,null,"Massage & Therapy","Wall Clock",null,null,"Mirrors & Wall Décor",null,"Kitchen Tools, Gadgets & Accessories","Specialty Electrics","Silver",null,"Cobalt","Cobalt","Cobalt","Cobalt","Cobalt","Silver","Cobalt","Cobalt","Cobalt","Cobalt","Cobalt","Cobalt","Hardside Luggage","Messenger & Shoulder Bags",null,"6-Piece Set",null,"Patio Furniture","Sleeping Bags & Other Bedding","Leisure Biking",null,"Golf Cart",null,"Multi-Tool","Skateboards & Scooters","Measuring & Layout ",null,"Stationary Power Tools",null,null,"Watch Accessories","Watch Accessories",null,null,null,"Pink, Purple Lenses","Pink, Purple Lenses","Pink, Purple Lenses","Pink, Purple Lenses","Pink, Purple Lenses","Pink, Purple Lenses","Pink, Purple Lenses","Pink, Purple Lenses","Pink, Purple Lenses",null,null,"Other Faux-Leather Colors",null,null,null,null,null,null,"Cross Body","Cross Body","Cross Body","Cross Body",null,null,null,null,null,null,null,null,null,null,null,null,null,"Mittens",null,null,null,null,null,null,"Skirts",null,null,null,null,null,null,null,null,null,null,null,null,null,null,null,null,null,null,null,null,null,null,null,null,null,"Stereo",null,null,"Soundbar",null,null,null,"Smart System",null,null,null,null,null,null,null,null,null,null,null,null,null,null,null,null,null,null,null,null,null,null,null,null,null,null,null,null,null,null,null,null,null,null,null,null,"Kids Set",null,null,null,null,null,null,null,null,null,null,null,null,null,null,null,null,null,null,null,null,null,null,null,null,null,null,null,null,null,null,null,null,null,"$251-$500","$251-$500","$251-$500","$251-$500","$251-$500","$251-$500","$251-$500","$251-$500","$251-$500","$251-$500","$251-$500","$251-$500","$251-$500","$251-$500","$251-$500",null,null,null,null,null,null,"$5001-$10000","$5001-$10000","$5001-$10000","$5001-$10000","Fan","Refrigerator",null,null,"Towels","Pillow","Styling Iron",null,null,null,null,null,null,null,null,null,"Sculpture",null,null,"Robotic Vacuum",null,null,null,null,null,null,null,null,"Strollers & Joggers","Books & Learning Toys","Cookware Sets",null,"Glasses & Mugs","Storage Containers","Colanders & Food Strainers",null,"Electric Tea Kettle","Electric Knife","Waffle Maker","Pizza Maker",null,null,null,null,null,null,null,null,null,null,null,null,null,"Amethyst & Pearl","Amethyst & Pearl","Amethyst & Pearl","Amethyst & Pearl","Amethyst & Pearl","Amethyst & Pearl","Amethyst & Pearl","Amethyst & Pearl","Amethyst & Pearl","Amethyst & Pearl","Amethyst & Pearl","Amethyst & Pearl","Amethyst & Pearl","Amethyst & Pearl","Amethyst & Pearl","Amethyst & Pearl","Amethyst & Pearl","Amethyst & Pearl","Amethyst & Pearl","Amethyst & Pearl","Amethyst & Pearl","Amethyst & Pearl",null,null,null,null,null,null,null,null,null,null,null,null,null,null,null,null,null,null,null,null,null,null,null,null,null,"Outdoor Fryer","Water Feature","Patio Table",null,"Other Bag","Dinnerware & Utensil","Spotlight",null,"Sleeping Pad",null,"Bike Pump",null,null,null,null,null,null,"Upright Bike",null,null,null,null,null,null,null,"Standard Driver",null,null,"Rod & Reel Combos",null,null,null,"2 Piece Knife & Pen Set",null,null,null,null,null,"Solar Kits & Accessories","Foosball",null,"Basketball Memorabilia","Multi-Sport Accessory","Paddle Board","Winter Sport Accessories",null,null,null,null,null,null,"Ratchet & Socket Sets","Pressure Washer","Trimmer","Lawn Mower","Grinder/ Polisher","Impacts"]
["Home","Portable Accessories",null,"Home Automation",null,null,"Furniture & Home Décor","Mens Necklace",null,"Hunting & Fishing",null,null,null,"Pink, Purple Frames",null,"Pink, Purple Frames",null,null,null,null,"Pink, Purple Frames",null,"Writing Instrument Sets","Shoes & Socks","Shoes, Socks & Hosiery","Shoes & Socks","Shoes, Socks & Hosiery",null,"Laptop","Generator",null,null,null,null,"Tablet",null,"USB Drive","Rangefinder",null,null,null,"Smart Watch",null,null,null,"Other Meats","Snack Package",null,"Electronics & Music","Theme park","Electronics & Music",null,null,"Personal Grooming",null,null,null,"Rugs & Pads",null,null,"Wine Electrics","Silver Plate & Gold Plate Buckle",null,"Copper","Copper","Copper","Copper","Copper","Silver Plate & Gold Plate Buckle","Copper","Copper","Copper","Copper","Copper","Copper","Laptop Bag","Other Luggage",null,"Other Luggage Sets",null,"Pet Bedding & Accessories","Tent & Shelter","Mountain Biking",null,"Golf Clubs",null,"Pocket Knife","Sports Collectables","Pliers & Wrenches",null,null,null,null,null,null,null,null,null,"Red, Orange Lenses","Red, Orange Lenses","Red, Orange Lenses","Red, Orange Lenses","Red, Orange Lenses","Red, Orange Lenses","Red, Orange Lenses","Red, Orange Lenses","Red, Orange Lenses",null,null,"Other Leather Colors",null,null,null,null,null,null,"Duffel","Duffel","Duffel","Duffel",null,null,null,null,null,null,null,null,null,null,null,null,null,"Visors",null,null,null,null,null,null,null,null,null,null,null,null,null,null,null,null,null,null,null,null,null,null,null,null,null,null,null,null,null,null,null,null,null,null,null,"Subwoofer",null,null,null,"Smart Thermostat",null,null,null,null,null,null,null,null,null,null,null,null,null,null,null,null,null,null,null,null,null,null,null,null,null,null,null,null,null,null,null,null,null,null,null,null,"Musical Keyboard",null,null,null,null,null,null,null,null,null,null,null,null,null,null,null,null,null,null,null,null,null,null,null,null,null,null,null,null,null,null,null,null,null,"$501-$1000","$501-$1000","$501-$1000","$501-$1000","$501-$1000","$501-$1000","$501-$1000","$501-$1000","$501-$1000","$501-$1000","$501-$1000","$501-$1000","$501-$1000","$501-$1000","$501-$1000",null,null,null,null,null,null,"$10001+","$10001+","$10001+","$10001+","Fireplace","Wine Cellar",null,null,null,null,null,null,null,null,null,null,null,null,null,null,"Serve ware",null,null,"Stick Vacuum",null,null,null,null,null,null,null,null,"Travel Gear & Car Seats","Building Toys & Puzzles","Dutch Oven",null,null,"Water Bottles & Travel Mugs","Cookbooks",null,"Espresso Machine","Food Processor",null,"Popcorn Maker",null,null,null,null,null,null,null,null,null,null,null,null,null,"Amethyst & Peridot","Amethyst & Peridot","Amethyst & Peridot","Amethyst & Peridot","Amethyst & Peridot","Amethyst & Peridot","Amethyst & Peridot","Amethyst & Peridot","Amethyst & Peridot","Amethyst & Peridot","Amethyst & Peridot","Amethyst & Peridot","Amethyst & Peridot","Amethyst & Peridot","Amethyst & Peridot","Amethyst & Peridot","Amethyst & Peridot","Amethyst & Peridot","Amethyst & Peridot","Amethyst & Peridot","Amethyst & Peridot","Amethyst & Peridot",null,null,null,null,null,null,null,null,null,null,null,null,null,null,null,null,null,null,null,null,null,null,null,null,null,"Outdoor Smoker","Wind & Weather Décor","Patio Table & Chair Set",null,null,"Specialty Cookware",null,null,null,null,"Bike Rack",null,null,null,null,null,null,null,null,null,null,null,null,null,null,"Standard Fairway/Hybrid",null,null,null,null,null,null,"2 Piece Knife & Watch Set",null,null,null,null,null,null,"Metal Detector",null,"Sports Merchandise","Pickle Ball","Towable",null,null,null,null,null,null,null,null,"Trimmer",null,"Pressure Washer","Impacts","Jigsaw"]
["Jewelry","Womens Fragrance",null,"Media Devices",null,null,"Kids, Toys & Baby","Mens Ring",null,"Outdoor Knifes & Multi-tools",null,null,null,"Red, Orange Frames",null,"Red, Orange Frames",null,null,null,null,"Red, Orange Frames",null,null,"Suits & Sportcoats","Suits & Blazers","Suits & Sportcoats","Suits & Blazers",null,"WebCam","Selfie Stick",null,null,null,null,null,null,null,"Rifle Scope",null,null,null,null,null,null,null,"Ribeye",null,null,"Flowers",null,"Flowers",null,null,null,null,null,null,"Seasonal Décor",null,null,null,"Stainless Steel Buckle",null,"Gold Filled","Gold Filled","Gold Filled","Gold Filled","Gold Filled","Stainless Steel Buckle","Gold Filled","Gold Filled","Gold Filled","Gold Filled","Gold Filled","Gold Filled","Messenger & Shoulder Bags","Oversized Item Luggage",null,null,null,null,null,"Road Biking",null,"Golf Package",null,null,"Team Sports","Tool Sets",null,null,null,null,null,null,null,null,null,"Yellow, Gold Lenses","Yellow, Gold Lenses","Yellow, Gold Lenses","Yellow, Gold Lenses","Yellow, Gold Lenses","Yellow, Gold Lenses","Yellow, Gold Lenses","Yellow, Gold Lenses","Yellow, Gold Lenses",null,null,"Other Wallet Materials",null,null,null,null,null,null,"Satchel","Satchel","Satchel","Satchel",null,null,null,null,null,null,null,null,null,null,null,null,null,null,null,null,null,null,null,null,null,null,null,null,null,null,null,null,null,null,null,null,null,null,null,null,null,null,null,null,null,null,null,null,null,null,null,null,null,"Surround Sound system",null,null,null,null,null,null,null,null,null,null,null,null,null,null,null,null,null,null,null,null,null,null,null,null,null,null,null,null,null,null,null,null,null,null,null,null,null,null,null,null,null,null,null,null,null,null,null,null,null,null,null,null,null,null,null,null,null,null,null,null,null,null,null,null,null,null,null,null,null,null,null,null,null,null,"$1001-$2500","$1001-$2500","$1001-$2500","$1001-$2500","$1001-$2500","$1001-$2500","$1001-$2500","$1001-$2500","$1001-$2500","$1001-$2500","$1001-$2500","$1001-$2500","$1001-$2500","$1001-$2500","$1001-$2500",null,null,null,null,null,null,"Other Package Values","Other Package Values","Other Package Values","Other Package Values","Heater",null,null,null,null,null,null,null,null,null,null,null,null,null,null,null,null,null,null,"Upright Vacuum",null,null,null,null,null,null,null,null,"Bedding & Swings","Kids Furniture & Décor","Griddles & Grill Pans",null,null,"Wine Rack","Cooking Utensils",null,"Ice Tea Machine","Food Sealer",null,"Quesadilla Maker",null,null,null,null,null,null,null,null,null,null,null,null,null,"Aquamarine","Aquamarine","Aquamarine","Aquamarine","Aquamarine","Aquamarine","Aquamarine","Aquamarine","Aquamarine","Aquamarine","Aquamarine","Aquamarine","Aquamarine","Aquamarine","Aquamarine","Aquamarine","Aquamarine","Aquamarine","Aquamarine","Aquamarine","Aquamarine","Aquamarine",null,null,null,null,null,null,null,null,null,null,null,null,null,null,null,null,null,null,null,null,null,null,null,null,null,null,null,"Pools & Hottubs",null,null,"Stove & Stove Accessories",null,null,null,null,"Bike Trailer",null,null,null,null,null,null,null,null,null,null,null,null,null,null,"Standard Irons",null,null,null,null,null,null,"2 Piece Knife Set",null,null,null,null,null,null,"Outdoor Games & Activites ",null,null,"Racquetball","Water Games & Accessories",null,null,null,null,null,null,null,null,null,null,"Snow Blower","Jigsaw","Oscillating Tool"]
["Luggage","Womens Handbags",null,"Mobile Devices",null,null,"Kitchen & Dining","Mens Tie Clips",null,"Sports, Activities & Outdoor Accessories",null,null,null,"Whites, Clear Frames",null,"Whites, Clear Frames",null,null,null,null,"Whites, Clear Frames",null,null,"Ties & Scarfs",null,"Ties & Scarfs",null,null,null,"TV Accessories",null,null,null,null,null,null,null,"Spotting Scope",null,null,null,null,null,null,null,"Steaks",null,null,"Food & Grocery",null,"Food & Grocery",null,null,null,null,null,null,"Tables & Chairs",null,null,null,"Sterling Silver Buckle",null,"Gold Plated","Gold Plated","Gold Plated","Gold Plated","Gold Plated","Sterling Silver Buckle","Gold Plated","Gold Plated","Gold Plated","Gold Plated","Gold Plated","Gold Plated","Other Luggage","Totes & Satchels",null,null,null,null,null,null,null,null,null,null,"Water Sports & Boating",null,null,null,null,null,null,null,null,null,null,null,null,null,null,null,null,null,null,null,null,null,null,null,null,null,null,null,null,"Shopper","Shopper","Shopper","Shopper",null,null,null,null,null,null,null,null,null,null,null,null,null,null,null,null,null,null,null,null,null,null,null,null,null,null,null,null,null,null,null,null,null,null,null,null,null,null,null,null,null,null,null,null,null,null,null,null,null,null,null,null,null,null,null,null,null,null,null,null,null,null,null,null,null,null,null,null,null,null,null,null,null,null,null,null,null,null,null,null,null,null,null,null,null,null,null,null,null,null,null,null,null,null,null,null,null,null,null,null,null,null,null,null,null,null,null,null,null,null,null,null,null,null,null,null,null,null,null,null,null,null,null,null,"$2501-$5000","$2501-$5000","$2501-$5000","$2501-$5000","$2501-$5000","$2501-$5000","$2501-$5000","$2501-$5000","$2501-$5000","$2501-$5000","$2501-$5000","$2501-$5000","$2501-$5000","$2501-$5000","$2501-$5000",null,null,null,null,null,null,null,null,null,null,"Humidifier",null,null,null,null,null,null,null,null,null,null,null,null,null,null,null,null,null,null,"Wet/Dry Vacuum",null,null,null,null,null,null,null,null,"Health & Feeding Gear","Toy Vehicles","Other Pans",null,null,"Wine Tote/Bag","Graters, Peelers & Slicers",null,"Milk Frother","Food Slicer",null,"Shaved Ice & Popsicles",null,null,null,null,null,null,null,null,null,null,null,null,null,"Aquamarine & Diamond","Aquamarine & Diamond","Aquamarine & Diamond","Aquamarine & Diamond","Aquamarine & Diamond","Aquamarine & Diamond","Aquamarine & Diamond","Aquamarine & Diamond","Aquamarine & Diamond","Aquamarine & Diamond","Aquamarine & Diamond","Aquamarine & Diamond","Aquamarine & Diamond","Aquamarine & Diamond","Aquamarine & Diamond","Aquamarine & Diamond","Aquamarine & Diamond","Aquamarine & Diamond","Aquamarine & Diamond","Aquamarine & Diamond","Aquamarine & Diamond","Aquamarine & Diamond",null,null,null,null,null,null,null,null,null,null,null,null,null,null,null,null,null,null,null,null,null,null,null,null,null,null,null,null,null,null,"Table",null,null,null,null,"Bike Trainer",null,null,null,null,null,null,null,null,null,null,null,null,null,null,"Standard Putter",null,null,null,null,null,null,"2 Piece Multi-Tool & Watch Set",null,null,null,null,null,null,"Paintball",null,null,"Soccer",null,null,null,null,null,null,null,null,null,null,null,"Tiller/Cultivator","Light","Other Cordless Tools"]
["Recreation & Leisure","Womens Sunglasses",null,"Navigation & Car",null,null,"Kitchen Electrics","Womens Bracelets & Charms",null,null,null,null,null,"Yellow, Gold Frames",null,"Yellow, Gold Frames",null,null,null,null,"Yellow, Gold Frames",null,null,null,null,null,null,null,null,null,null,null,null,null,null,null,null,"Telescope",null,null,null,null,null,null,null,null,null,null,"Hotels & Travel",null,"Hotels & Travel",null,null,null,null,null,null,null,null,null,null,"Titanium Buckle",null,"Gold Tone","Gold Tone","Gold Tone","Gold Tone","Gold Tone","Titanium Buckle","Gold Tone","Gold Tone","Gold Tone","Gold Tone","Gold Tone","Gold Tone","Totes & Satchels","Upright Luggage",null,null,null,null,null,null,null,null,null,null,"Winter Sports",null,null,null,null,null,null,null,null,null,null,null,null,null,null,null,null,null,null,null,null,null,null,null,null,null,null,null,null,"Tote","Tote","Tote","Tote",null,null,null,null,null,null,null,null,null,null,null,null,null,null,null,null,null,null,null,null,null,null,null,null,null,null,null,null,null,null,null,null,null,null,null,null,null,null,null,null,null,null,null,null,null,null,null,null,null,null,null,null,null,null,null,null,null,null,null,null,null,null,null,null,null,null,null,null,null,null,null,null,null,null,null,null,null,null,null,null,null,null,null,null,null,null,null,null,null,null,null,null,null,null,null,null,null,null,null,null,null,null,null,null,null,null,null,null,null,null,null,null,null,null,null,null,null,null,null,null,null,null,null,null,"$5001-$10000","$5001-$10000","$5001-$10000","$5001-$10000","$5001-$10000","$5001-$10000","$5001-$10000","$5001-$10000","$5001-$10000","$5001-$10000","$5001-$10000","$5001-$10000","$5001-$10000","$5001-$10000","$5001-$10000",null,null,null,null,null,null,null,null,null,null,null,null,null,null,null,null,null,null,null,null,null,null,null,null,null,null,null,null,null,null,null,null,null,null,null,null,null,null,null,null,"Pressure Cooker",null,null,null,"Kitchen Apparel",null,null,"Fryers",null,"Thermo Fridge/Warmer",null,null,null,null,null,null,null,null,null,null,null,null,null,"Black Diamond & Onyx","Black Diamond & Onyx","Black Diamond & Onyx","Black Diamond & Onyx","Black Diamond & Onyx","Black Diamond & Onyx","Black Diamond & Onyx","Black Diamond & Onyx","Black Diamond & Onyx","Black Diamond & Onyx","Black Diamond & Onyx","Black Diamond & Onyx","Black Diamond & Onyx","Black Diamond & Onyx","Black Diamond & Onyx","Black Diamond & Onyx","Black Diamond & Onyx","Black Diamond & Onyx","Black Diamond & Onyx","Black Diamond & Onyx","Black Diamond & Onyx","Black Diamond & Onyx",null,null,null,null,null,null,null,null,null,null,null,null,null,null,null,null,null,null,null,null,null,null,null,null,null,null,null,null,null,null,null,null,null,null,null,"Ceiling Hoist",null,null,null,null,null,null,null,null,null,null,null,null,null,null,null,null,null,null,null,null,null,"3 Piece Knife Set",null,null,null,null,null,null,"Table Tennis",null,null,"Tennis",null,null,null,null,null,null,null,null,null,null,null,"Trimmer","Oscillating Tool","Radio"]
["Tools","Womens Wallets, Card Cases & Organizers ",null,"Office ",null,null,null,"Womens Brooches & Pins",null,null,null,null,null,null,null,null,null,null,null,null,null,null,null,null,null,null,null,null,null,null,null,null,null,null,null,null,null,null,null,null,null,null,null,null,null,null,null,null,"Other Retail",null,"Other Retail",null,null,null,null,null,null,null,null,null,null,null,null,"Leather","Leather","Leather","Leather","Leather",null,"Leather","Leather","Leather","Leather","Leather","Leather","Upright Luggage",null,null,null,null,null,null,null,null,null,null,null,null,null,null,null,null,null,null,null,null,null,null,null,null,null,null,null,null,null,null,null,null,null,null,null,null,null,null,null,null,"Wristlet","Wristlet","Wristlet","Wristlet",null,null,null,null,null,null,null,null,null,null,null,null,null,null,null,null,null,null,null,null,null,null,null,null,null,null,null,null,null,null,null,null,null,null,null,null,null,null,null,null,null,null,null,null,null,null,null,null,null,null,null,null,null,null,null,null,null,null,null,null,null,null,null,null,null,null,null,null,null,null,null,null,null,null,null,null,null,null,null,null,null,null,null,null,null,null,null,null,null,null,null,null,null,null,null,null,null,null,null,null,null,null,null,null,null,null,null,null,null,null,null,null,null,null,null,null,null,null,null,null,null,null,null,null,"$10001+","$10001+","$10001+","$10001+","$10001+","$10001+","$10001+","$10001+","$10001+","$10001+","$10001+","$10001+","$10001+","$10001+","$10001+",null,null,null,null,null,null,null,null,null,null,null,null,null,null,null,null,null,null,null,null,null,null,null,null,null,null,null,null,null,null,null,null,null,null,null,null,null,null,null,null,"Roasting Pans",null,null,null,"Kitchen Shears & Choppers",null,null,"Kitchen Scale",null,null,null,null,null,null,null,null,null,null,null,null,null,null,null,"Black Onyx","Black Onyx","Black Onyx","Black Onyx","Black Onyx","Black Onyx","Black Onyx","Black Onyx","Black Onyx","Black Onyx","Black Onyx","Black Onyx","Black Onyx","Black Onyx","Black Onyx","Black Onyx","Black Onyx","Black Onyx","Black Onyx","Black Onyx","Black Onyx","Black Onyx",null,null,null,null,null,null,null,null,null,null,null,null,null,null,null,null,null,null,null,null,null,null,null,null,null,null,null,null,null,null,null,null,null,null,null,"Helmet",null,null,null,null,null,null,null,null,null,null,null,null,null,null,null,null,null,null,null,null,null,"5 Piece Knife Set",null,null,null,null,null,null,null,null,null,"Volleyball",null,null,null,null,null,null,null,null,null,null,null,null,"Other Corded Tools","Reciprocating Saw"]
["Watches","Writing Instruments",null,"Optics",null,null,null,"Womens Earrings",null,null,null,null,null,null,null,null,null,null,null,null,null,null,null,null,null,null,null,null,null,null,null,null,null,null,null,null,null,null,null,null,null,null,null,null,null,null,null,null,"Sports & Recreation",null,"Sports & Recreation",null,null,null,null,null,null,null,null,null,null,null,null,"Platinum","Platinum","Platinum","Platinum","Platinum",null,"Platinum","Platinum","Platinum","Platinum","Platinum","Platinum",null,null,null,null,null,null,null,null,null,null,null,null,null,null,null,null,null,null,null,null,null,null,null,null,null,null,null,null,null,null,null,null,null,null,null,null,null,null,null,null,null,null,null,null,null,null,null,null,null,null,null,null,null,null,null,null,null,null,null,null,null,null,null,null,null,null,null,null,null,null,null,null,null,null,null,null,null,null,null,null,null,null,null,null,null,null,null,null,null,null,null,null,null,null,null,null,null,null,null,null,null,null,null,null,null,null,null,null,null,null,null,null,null,null,null,null,null,null,null,null,null,null,null,null,null,null,null,null,null,null,null,null,null,null,null,null,null,null,null,null,null,null,null,null,null,null,null,null,null,null,null,null,null,null,null,null,null,null,null,null,null,null,null,null,null,null,null,null,null,null,null,null,null,null,null,null,null,null,null,null,null,null,null,null,null,null,null,null,null,null,null,null,null,null,null,null,null,null,null,null,null,null,null,null,null,null,null,null,null,null,null,null,null,null,null,null,null,null,null,null,null,null,null,null,"Sauce Pans",null,null,null,"Measuring Tools & Scales",null,null,"Kitchen Timer",null,null,null,null,null,null,null,null,null,null,null,null,null,null,null,"Black Onyx & Diamond","Black Onyx & Diamond","Black Onyx & Diamond","Black Onyx & Diamond","Black Onyx & Diamond","Black Onyx & Diamond","Black Onyx & Diamond","Black Onyx & Diamond","Black Onyx & Diamond","Black Onyx & Diamond","Black Onyx & Diamond","Black Onyx & Diamond","Black Onyx & Diamond","Black Onyx & Diamond","Black Onyx & Diamond","Black Onyx & Diamond","Black Onyx & Diamond","Black Onyx & Diamond","Black Onyx & Diamond","Black Onyx & Diamond","Black Onyx & Diamond","Black Onyx & Diamond",null,null,null,null,null,null,null,null,null,null,null,null,null,null,null,null,null,null,null,null,null,null,null,null,null,null,null,null,null,null,null,null,null,null,null,"Light",null,null,null,null,null,null,null,null,null,null,null,null,null,null,null,null,null,null,null,null,null,"6 Piece Knife Set",null,null,null,null,null,null,null,null,null,null,null,null,null,null,null,null,null,null,null,null,null,null,"Radio","Rotary Tool"]
[null,null,null,"Portable Audio ",null,null,null,"Womens Jewelry Set",null,null,null,null,null,null,null,null,null,null,null,null,null,null,null,null,null,null,null,null,null,null,null,null,null,null,null,null,null,null,null,null,null,null,null,null,null,null,null,null,null,null,null,null,null,null,null,null,null,null,null,null,null,null,null,"Rhodium Plated","Rhodium Plated","Rhodium Plated","Rhodium Plated","Rhodium Plated",null,"Rhodium Plated","Rhodium Plated","Rhodium Plated","Rhodium Plated","Rhodium Plated","Rhodium Plated",null,null,null,null,null,null,null,null,null,null,null,null,null,null,null,null,null,null,null,null,null,null,null,null,null,null,null,null,null,null,null,null,null,null,null,null,null,null,null,null,null,null,null,null,null,null,null,null,null,null,null,null,null,null,null,null,null,null,null,null,null,null,null,null,null,null,null,null,null,null,null,null,null,null,null,null,null,null,null,null,null,null,null,null,null,null,null,null,null,null,null,null,null,null,null,null,null,null,null,null,null,null,null,null,null,null,null,null,null,null,null,null,null,null,null,null,null,null,null,null,null,null,null,null,null,null,null,null,null,null,null,null,null,null,null,null,null,null,null,null,null,null,null,null,null,null,null,null,null,null,null,null,null,null,null,null,null,null,null,null,null,null,null,null,null,null,null,null,null,null,null,null,null,null,null,null,null,null,null,null,null,null,null,null,null,null,null,null,null,null,null,null,null,null,null,null,null,null,null,null,null,null,null,null,null,null,null,null,null,null,null,null,null,null,null,null,null,null,null,null,null,null,null,null,"Sauté Pans",null,null,null,"Mixing Bowls",null,null,"Mixers",null,null,null,null,null,null,null,null,null,null,null,null,null,null,null,"Black Onyx & Pearl","Black Onyx & Pearl","Black Onyx & Pearl","Black Onyx & Pearl","Black Onyx & Pearl","Black Onyx & Pearl","Black Onyx & Pearl","Black Onyx & Pearl","Black Onyx & Pearl","Black Onyx & Pearl","Black Onyx & Pearl","Black Onyx & Pearl","Black Onyx & Pearl","Black Onyx & Pearl","Black Onyx & Pearl","Black Onyx & Pearl","Black Onyx & Pearl","Black Onyx & Pearl","Black Onyx & Pearl","Black Onyx & Pearl","Black Onyx & Pearl","Black Onyx & Pearl",null,null,null,null,null,null,null,null,null,null,null,null,null,null,null,null,null,null,null,null,null,null,null,null,null,null,null,null,null,null,null,null,null,null,null,"Multi-Tool",null,null,null,null,null,null,null,null,null,null,null,null,null,null,null,null,null,null,null,null,null,null,null,null,null,null,null,null,null,null,null,null,null,null,null,null,null,null,null,null,null,null,null,null,"Reciprocating Saw","Router"]
[null,null,null,"Recreational Electronics ",null,null,null,"Womens Necklaces & Pendants",null,null,null,null,null,null,null,null,null,null,null,null,null,null,null,null,null,null,null,null,null,null,null,null,null,null,null,null,null,null,null,null,null,null,null,null,null,null,null,null,null,null,null,null,null,null,null,null,null,null,null,null,null,null,null,"Silver Plate & Gold Plate","Silver Plate & Gold Plate","Silver Plate & Gold Plate","Silver Plate & Gold Plate","Silver Plate & Gold Plate",null,"Silver Plate & Gold Plate","Silver Plate & Gold Plate","Silver Plate & Gold Plate","Silver Plate & Gold Plate","Silver Plate & Gold Plate","Silver Plate & Gold Plate",null,null,null,null,null,null,null,null,null,null,null,null,null,null,null,null,null,null,null,null,null,null,null,null,null,null,null,null,null,null,null,null,null,null,null,null,null,null,null,null,null,null,null,null,null,null,null,null,null,null,null,null,null,null,null,null,null,null,null,null,null,null,null,null,null,null,null,null,null,null,null,null,null,null,null,null,null,null,null,null,null,null,null,null,null,null,null,null,null,null,null,null,null,null,null,null,null,null,null,null,null,null,null,null,null,null,null,null,null,null,null,null,null,null,null,null,null,null,null,null,null,null,null,null,null,null,null,null,null,null,null,null,null,null,null,null,null,null,null,null,null,null,null,null,null,null,null,null,null,null,null,null,null,null,null,null,null,null,null,null,null,null,null,null,null,null,null,null,null,null,null,null,null,null,null,null,null,null,null,null,null,null,null,null,null,null,null,null,null,null,null,null,null,null,null,null,null,null,null,null,null,null,null,null,null,null,null,null,null,null,null,null,null,null,null,null,null,null,null,null,null,null,null,null,"Skillets & Fry Pans",null,null,null,"Other Tools",null,null,"Pressure Cooker",null,null,null,null,null,null,null,null,null,null,null,null,null,null,null,"Black Sapphire","Black Sapphire","Black Sapphire","Black Sapphire","Black Sapphire","Black Sapphire","Black Sapphire","Black Sapphire","Black Sapphire","Black Sapphire","Black Sapphire","Black Sapphire","Black Sapphire","Black Sapphire","Black Sapphire","Black Sapphire","Black Sapphire","Black Sapphire","Black Sapphire","Black Sapphire","Black Sapphire","Black Sapphire",null,null,null,null,null,null,null,null,null,null,null,null,null,null,null,null,null,null,null,null,null,null,null,null,null,null,null,null,null,null,null,null,null,null,null,null,null,null,null,null,null,null,null,null,null,null,null,null,null,null,null,null,null,null,null,null,null,null,null,null,null,null,null,null,null,null,null,null,null,null,null,null,null,null,null,null,null,null,null,null,"Rotary Tool","Sander"]
[null,null,null,"TV",null,null,null,"Womens Ring",null,null,null,null,null,null,null,null,null,null,null,null,null,null,null,null,null,null,null,null,null,null,null,null,null,null,null,null,null,null,null,null,null,null,null,null,null,null,null,null,null,null,null,null,null,null,null,null,null,null,null,null,null,null,null,"Silver Plated","Silver Plated","Silver Plated","Silver Plated","Silver Plated",null,"Silver Plated","Silver Plated","Silver Plated","Silver Plated","Silver Plated","Silver Plated",null,null,null,null,null,null,null,null,null,null,null,null,null,null,null,null,null,null,null,null,null,null,null,null,null,null,null,null,null,null,null,null,null,null,null,null,null,null,null,null,null,null,null,null,null,null,null,null,null,null,null,null,null,null,null,null,null,null,null,null,null,null,null,null,null,null,null,null,null,null,null,null,null,null,null,null,null,null,null,null,null,null,null,null,null,null,null,null,null,null,null,null,null,null,null,null,null,null,null,null,null,null,null,null,null,null,null,null,null,null,null,null,null,null,null,null,null,null,null,null,null,null,null,null,null,null,null,null,null,null,null,null,null,null,null,null,null,null,null,null,null,null,null,null,null,null,null,null,null,null,null,null,null,null,null,null,null,null,null,null,null,null,null,null,null,null,null,null,null,null,null,null,null,null,null,null,null,null,null,null,null,null,null,null,null,null,null,null,null,null,null,null,null,null,null,null,null,null,null,null,null,null,null,null,null,null,null,null,null,null,null,null,null,null,null,null,null,null,null,null,null,null,null,null,"Specialty cookware",null,null,null,"Salad Tools & Spinners",null,null,"Rice Cooker",null,null,null,null,null,null,null,null,null,null,null,null,null,null,null,"Black Spinel","Black Spinel","Black Spinel","Black Spinel","Black Spinel","Black Spinel","Black Spinel","Black Spinel","Black Spinel","Black Spinel","Black Spinel","Black Spinel","Black Spinel","Black Spinel","Black Spinel","Black Spinel","Black Spinel","Black Spinel","Black Spinel","Black Spinel","Black Spinel","Black Spinel",null,null,null,null,null,null,null,null,null,null,null,null,null,null,null,null,null,null,null,null,null,null,null,null,null,null,null,null,null,null,null,null,null,null,null,null,null,null,null,null,null,null,null,null,null,null,null,null,null,null,null,null,null,null,null,null,null,null,null,null,null,null,null,null,null,null,null,null,null,null,null,null,null,null,null,null,null,null,null,null,"Router","Sweepers"]
[null,null,null,"Wearables",null,null,null,null,null,null,null,null,null,null,null,null,null,null,null,null,null,null,null,null,null,null,null,null,null,null,null,null,null,null,null,null,null,null,null,null,null,null,null,null,null,null,null,null,null,null,null,null,null,null,null,null,null,null,null,null,null,null,null,"Silver Tone","Silver Tone","Silver Tone","Silver Tone","Silver Tone",null,"Silver Tone","Silver Tone","Silver Tone","Silver Tone","Silver Tone","Silver Tone",null,null,null,null,null,null,null,null,null,null,null,null,null,null,null,null,null,null,null,null,null,null,null,null,null,null,null,null,null,null,null,null,null,null,null,null,null,null,null,null,null,null,null,null,null,null,null,null,null,null,null,null,null,null,null,null,null,null,null,null,null,null,null,null,null,null,null,null,null,null,null,null,null,null,null,null,null,null,null,null,null,null,null,null,null,null,null,null,null,null,null,null,null,null,null,null,null,null,null,null,null,null,null,null,null,null,null,null,null,null,null,null,null,null,null,null,null,null,null,null,null,null,null,null,null,null,null,null,null,null,null,null,null,null,null,null,null,null,null,null,null,null,null,null,null,null,null,null,null,null,null,null,null,null,null,null,null,null,null,null,null,null,null,null,null,null,null,null,null,null,null,null,null,null,null,null,null,null,null,null,null,null,null,null,null,null,null,null,null,null,null,null,null,null,null,null,null,null,null,null,null,null,null,null,null,null,null,null,null,null,null,null,null,null,null,null,null,null,null,null,null,null,null,null,"Steamers, Stock & Pasta Pots",null,null,null,"Specialty Tools",null,null,"Roaster",null,null,null,null,null,null,null,null,null,null,null,null,null,null,null,"Black Spinel & Diamond","Black Spinel & Diamond","Black Spinel & Diamond","Black Spinel & Diamond","Black Spinel & Diamond","Black Spinel & Diamond","Black Spinel & Diamond","Black Spinel & Diamond","Black Spinel & Diamond","Black Spinel & Diamond","Black Spinel & Diamond","Black Spinel & Diamond","Black Spinel & Diamond","Black Spinel & Diamond","Black Spinel & Diamond","Black Spinel & Diamond","Black Spinel & Diamond","Black Spinel & Diamond","Black Spinel & Diamond","Black Spinel & Diamond","Black Spinel & Diamond","Black Spinel & Diamond",null,null,null,null,null,null,null,null,null,null,null,null,null,null,null,null,null,null,null,null,null,null,null,null,null,null,null,null,null,null,null,null,null,null,null,null,null,null,null,null,null,null,null,null,null,null,null,null,null,null,null,null,null,null,null,null,null,null,null,null,null,null,null,null,null,null,null,null,null,null,null,null,null,null,null,null,null,null,null,null,"Sander"]
[null,null,null,null,null,null,null,null,null,null,null,null,null,null,null,null,null,null,null,null,null,null,null,null,null,null,null,null,null,null,null,null,null,null,null,null,null,null,null,null,null,null,null,null,null,null,null,null,null,null,null,null,null,null,null,null,null,null,null,null,null,null,null,"Stainless Steel","Stainless Steel","Stainless Steel","Stainless Steel","Stainless Steel",null,"Stainless Steel","Stainless Steel","Stainless Steel","Stainless Steel","Stainless Steel","Stainless Steel",null,null,null,null,null,null,null,null,null,null,null,null,null,null,null,null,null,null,null,null,null,null,null,null,null,null,null,null,null,null,null,null,null,null,null,null,null,null,null,null,null,null,null,null,null,null,null,null,null,null,null,null,null,null,null,null,null,null,null,null,null,null,null,null,null,null,null,null,null,null,null,null,null,null,null,null,null,null,null,null,null,null,null,null,null,null,null,null,null,null,null,null,null,null,null,null,null,null,null,null,null,null,null,null,null,null,null,null,null,null,null,null,null,null,null,null,null,null,null,null,null,null,null,null,null,null,null,null,null,null,null,null,null,null,null,null,null,null,null,null,null,null,null,null,null,null,null,null,null,null,null,null,null,null,null,null,null,null,null,null,null,null,null,null,null,null,null,null,null,null,null,null,null,null,null,null,null,null,null,null,null,null,null,null,null,null,null,null,null,null,null,null,null,null,null,null,null,null,null,null,null,null,null,null,null,null,null,null,null,null,null,null,null,null,null,null,null,null,null,null,null,null,null,null,"Tea/Water Kettle",null,null,null,null,null,null,"Slow Cooker",null,null,null,null,null,null,null,null,null,null,null,null,null,null,null,"Blue Sapphire","Blue Sapphire","Blue Sapphire","Blue Sapphire","Blue Sapphire","Blue Sapphire","Blue Sapphire","Blue Sapphire","Blue Sapphire","Blue Sapphire","Blue Sapphire","Blue Sapphire","Blue Sapphire","Blue Sapphire","Blue Sapphire","Blue Sapphire","Blue Sapphire","Blue Sapphire","Blue Sapphire","Blue Sapphire","Blue Sapphire","Blue Sapphire",null,null,null,null,null,null,null,null,null,null,null,null,null,null,null,null,null,null,null,null,null,null,null,null,null,null,null,null,null,null,null,null,null,null,null,null,null,null,null,null,null,null,null,null,null,null,null,null,null,null,null,null,null,null,null,null,null,null,null,null,null,null,null,null,null,null,null,null,null,null,null,null,null,null,null,null,null,null,null,null,"Sweepers"]
[null,null,null,null,null,null,null,null,null,null,null,null,null,null,null,null,null,null,null,null,null,null,null,null,null,null,null,null,null,null,null,null,null,null,null,null,null,null,null,null,null,null,null,null,null,null,null,null,null,null,null,null,null,null,null,null,null,null,null,null,null,null,null,"Sterling Silver","Sterling Silver","Sterling Silver","Sterling Silver","Sterling Silver",null,"Sterling Silver","Sterling Silver","Sterling Silver","Sterling Silver","Sterling Silver","Sterling Silver",null,null,null,null,null,null,null,null,null,null,null,null,null,null,null,null,null,null,null,null,null,null,null,null,null,null,null,null,null,null,null,null,null,null,null,null,null,null,null,null,null,null,null,null,null,null,null,null,null,null,null,null,null,null,null,null,null,null,null,null,null,null,null,null,null,null,null,null,null,null,null,null,null,null,null,null,null,null,null,null,null,null,null,null,null,null,null,null,null,null,null,null,null,null,null,null,null,null,null,null,null,null,null,null,null,null,null,null,null,null,null,null,null,null,null,null,null,null,null,null,null,null,null,null,null,null,null,null,null,null,null,null,null,null,null,null,null,null,null,null,null,null,null,null,null,null,null,null,null,null,null,null,null,null,null,null,null,null,null,null,null,null,null,null,null,null,null,null,null,null,null,null,null,null,null,null,null,null,null,null,null,null,null,null,null,null,null,null,null,null,null,null,null,null,null,null,null,null,null,null,null,null,null,null,null,null,null,null,null,null,null,null,null,null,null,null,null,null,null,null,null,null,null,null,"Woks & Stir Fry",null,null,null,null,null,null,"Steamer",null,null,null,null,null,null,null,null,null,null,null,null,null,null,null,"Blue Sapphire & Diamond","Blue Sapphire & Diamond","Blue Sapphire & Diamond","Blue Sapphire & Diamond","Blue Sapphire & Diamond","Blue Sapphire & Diamond","Blue Sapphire & Diamond","Blue Sapphire & Diamond","Blue Sapphire & Diamond","Blue Sapphire & Diamond","Blue Sapphire & Diamond","Blue Sapphire & Diamond","Blue Sapphire & Diamond","Blue Sapphire & Diamond","Blue Sapphire & Diamond","Blue Sapphire & Diamond","Blue Sapphire & Diamond","Blue Sapphire & Diamond","Blue Sapphire & Diamond","Blue Sapphire & Diamond","Blue Sapphire & Diamond","Blue Sapphire & Diamond"]
[null,null,null,null,null,null,null,null,null,null,null,null,null,null,null,null,null,null,null,null,null,null,null,null,null,null,null,null,null,null,null,null,null,null,null,null,null,null,null,null,null,null,null,null,null,null,null,null,null,null,null,null,null,null,null,null,null,null,null,null,null,null,null,"Sterling Silver & 10K Gold","Sterling Silver & 10K Gold","Sterling Silver & 10K Gold","Sterling Silver & 10K Gold","Sterling Silver & 10K Gold",null,"Sterling Silver & 10K Gold","Sterling Silver & 10K Gold","Sterling Silver & 10K Gold","Sterling Silver & 10K Gold","Sterling Silver & 10K Gold","Sterling Silver & 10K Gold",null,null,null,null,null,null,null,null,null,null,null,null,null,null,null,null,null,null,null,null,null,null,null,null,null,null,null,null,null,null,null,null,null,null,null,null,null,null,null,null,null,null,null,null,null,null,null,null,null,null,null,null,null,null,null,null,null,null,null,null,null,null,null,null,null,null,null,null,null,null,null,null,null,null,null,null,null,null,null,null,null,null,null,null,null,null,null,null,null,null,null,null,null,null,null,null,null,null,null,null,null,null,null,null,null,null,null,null,null,null,null,null,null,null,null,null,null,null,null,null,null,null,null,null,null,null,null,null,null,null,null,null,null,null,null,null,null,null,null,null,null,null,null,null,null,null,null,null,null,null,null,null,null,null,null,null,null,null,null,null,null,null,null,null,null,null,null,null,null,null,null,null,null,null,null,null,null,null,null,null,null,null,null,null,null,null,null,null,null,null,null,null,null,null,null,null,null,null,null,null,null,null,null,null,null,null,null,null,null,null,null,null,null,null,null,null,null,null,null,null,null,null,null,null,null,null,null,null,null,null,null,"Thermometer",null,null,null,null,null,null,null,null,null,null,null,null,null,null,null,"Blue Topaz","Blue Topaz","Blue Topaz","Blue Topaz","Blue Topaz","Blue Topaz","Blue Topaz","Blue Topaz","Blue Topaz","Blue Topaz","Blue Topaz","Blue Topaz","Blue Topaz","Blue Topaz","Blue Topaz","Blue Topaz","Blue Topaz","Blue Topaz","Blue Topaz","Blue Topaz","Blue Topaz","Blue Topaz"]
[null,null,null,null,null,null,null,null,null,null,null,null,null,null,null,null,null,null,null,null,null,null,null,null,null,null,null,null,null,null,null,null,null,null,null,null,null,null,null,null,null,null,null,null,null,null,null,null,null,null,null,null,null,null,null,null,null,null,null,null,null,null,null,"Sterling Silver & 14K Gold","Sterling Silver & 14K Gold","Sterling Silver & 14K Gold","Sterling Silver & 14K Gold","Sterling Silver & 14K Gold",null,"Sterling Silver & 14K Gold","Sterling Silver & 14K Gold","Sterling Silver & 14K Gold","Sterling Silver & 14K Gold","Sterling Silver & 14K Gold","Sterling Silver & 14K Gold",null,null,null,null,null,null,null,null,null,null,null,null,null,null,null,null,null,null,null,null,null,null,null,null,null,null,null,null,null,null,null,null,null,null,null,null,null,null,null,null,null,null,null,null,null,null,null,null,null,null,null,null,null,null,null,null,null,null,null,null,null,null,null,null,null,null,null,null,null,null,null,null,null,null,null,null,null,null,null,null,null,null,null,null,null,null,null,null,null,null,null,null,null,null,null,null,null,null,null,null,null,null,null,null,null,null,null,null,null,null,null,null,null,null,null,null,null,null,null,null,null,null,null,null,null,null,null,null,null,null,null,null,null,null,null,null,null,null,null,null,null,null,null,null,null,null,null,null,null,null,null,null,null,null,null,null,null,null,null,null,null,null,null,null,null,null,null,null,null,null,null,null,null,null,null,null,null,null,null,null,null,null,null,null,null,null,null,null,null,null,null,null,null,null,null,null,null,null,null,null,null,null,null,null,null,null,null,null,null,null,null,null,null,null,null,null,null,null,null,null,null,null,null,null,null,null,null,null,null,null,null,null,null,null,null,null,null,null,null,null,null,null,null,null,null,null,null,"Blue Topaz & Diamond","Blue Topaz & Diamond","Blue Topaz & Diamond","Blue Topaz & Diamond","Blue Topaz & Diamond","Blue Topaz & Diamond","Blue Topaz & Diamond","Blue Topaz & Diamond","Blue Topaz & Diamond","Blue Topaz & Diamond","Blue Topaz & Diamond","Blue Topaz & Diamond","Blue Topaz & Diamond","Blue Topaz & Diamond","Blue Topaz & Diamond","Blue Topaz & Diamond","Blue Topaz & Diamond","Blue Topaz & Diamond","Blue Topaz & Diamond","Blue Topaz & Diamond","Blue Topaz & Diamond","Blue Topaz & Diamond"]
[null,null,null,null,null,null,null,null,null,null,null,null,null,null,null,null,null,null,null,null,null,null,null,null,null,null,null,null,null,null,null,null,null,null,null,null,null,null,null,null,null,null,null,null,null,null,null,null,null,null,null,null,null,null,null,null,null,null,null,null,null,null,null,"Sterling Silver & 18K Gold","Sterling Silver & 18K Gold","Sterling Silver & 18K Gold","Sterling Silver & 18K Gold","Sterling Silver & 18K Gold",null,"Sterling Silver & 18K Gold","Sterling Silver & 18K Gold","Sterling Silver & 18K Gold","Sterling Silver & 18K Gold","Sterling Silver & 18K Gold","Sterling Silver & 18K Gold",null,null,null,null,null,null,null,null,null,null,null,null,null,null,null,null,null,null,null,null,null,null,null,null,null,null,null,null,null,null,null,null,null,null,null,null,null,null,null,null,null,null,null,null,null,null,null,null,null,null,null,null,null,null,null,null,null,null,null,null,null,null,null,null,null,null,null,null,null,null,null,null,null,null,null,null,null,null,null,null,null,null,null,null,null,null,null,null,null,null,null,null,null,null,null,null,null,null,null,null,null,null,null,null,null,null,null,null,null,null,null,null,null,null,null,null,null,null,null,null,null,null,null,null,null,null,null,null,null,null,null,null,null,null,null,null,null,null,null,null,null,null,null,null,null,null,null,null,null,null,null,null,null,null,null,null,null,null,null,null,null,null,null,null,null,null,null,null,null,null,null,null,null,null,null,null,null,null,null,null,null,null,null,null,null,null,null,null,null,null,null,null,null,null,null,null,null,null,null,null,null,null,null,null,null,null,null,null,null,null,null,null,null,null,null,null,null,null,null,null,null,null,null,null,null,null,null,null,null,null,null,null,null,null,null,null,null,null,null,null,null,null,null,null,null,null,null,"Blue Topaz & White Topaz","Blue Topaz & White Topaz","Blue Topaz & White Topaz","Blue Topaz & White Topaz","Blue Topaz & White Topaz","Blue Topaz & White Topaz","Blue Topaz & White Topaz","Blue Topaz & White Topaz","Blue Topaz & White Topaz","Blue Topaz & White Topaz","Blue Topaz & White Topaz","Blue Topaz & White Topaz","Blue Topaz & White Topaz","Blue Topaz & White Topaz","Blue Topaz & White Topaz","Blue Topaz & White Topaz","Blue Topaz & White Topaz","Blue Topaz & White Topaz","Blue Topaz & White Topaz","Blue Topaz & White Topaz","Blue Topaz & White Topaz","Blue Topaz & White Topaz"]
[null,null,null,null,null,null,null,null,null,null,null,null,null,null,null,null,null,null,null,null,null,null,null,null,null,null,null,null,null,null,null,null,null,null,null,null,null,null,null,null,null,null,null,null,null,null,null,null,null,null,null,null,null,null,null,null,null,null,null,null,null,null,null,"Titanium","Titanium","Titanium","Titanium","Titanium",null,"Titanium","Titanium","Titanium","Titanium","Titanium","Titanium",null,null,null,null,null,null,null,null,null,null,null,null,null,null,null,null,null,null,null,null,null,null,null,null,null,null,null,null,null,null,null,null,null,null,null,null,null,null,null,null,null,null,null,null,null,null,null,null,null,null,null,null,null,null,null,null,null,null,null,null,null,null,null,null,null,null,null,null,null,null,null,null,null,null,null,null,null,null,null,null,null,null,null,null,null,null,null,null,null,null,null,null,null,null,null,null,null,null,null,null,null,null,null,null,null,null,null,null,null,null,null,null,null,null,null,null,null,null,null,null,null,null,null,null,null,null,null,null,null,null,null,null,null,null,null,null,null,null,null,null,null,null,null,null,null,null,null,null,null,null,null,null,null,null,null,null,null,null,null,null,null,null,null,null,null,null,null,null,null,null,null,null,null,null,null,null,null,null,null,null,null,null,null,null,null,null,null,null,null,null,null,null,null,null,null,null,null,null,null,null,null,null,null,null,null,null,null,null,null,null,null,null,null,null,null,null,null,null,null,null,null,null,null,null,null,null,null,null,null,null,null,null,null,null,null,null,null,null,null,null,null,null,null,null,null,null,null,"Citrine","Citrine","Citrine","Citrine","Citrine","Citrine","Citrine","Citrine","Citrine","Citrine","Citrine","Citrine","Citrine","Citrine","Citrine","Citrine","Citrine","Citrine","Citrine","Citrine","Citrine","Citrine"]
[null,null,null,null,null,null,null,null,null,null,null,null,null,null,null,null,null,null,null,null,null,null,null,null,null,null,null,null,null,null,null,null,null,null,null,null,null,null,null,null,null,null,null,null,null,null,null,null,null,null,null,null,null,null,null,null,null,null,null,null,null,null,null,"Two Tone","Two Tone","Two Tone","Two Tone","Two Tone",null,"Two Tone","Two Tone","Two Tone","Two Tone","Two Tone","Two Tone",null,null,null,null,null,null,null,null,null,null,null,null,null,null,null,null,null,null,null,null,null,null,null,null,null,null,null,null,null,null,null,null,null,null,null,null,null,null,null,null,null,null,null,null,null,null,null,null,null,null,null,null,null,null,null,null,null,null,null,null,null,null,null,null,null,null,null,null,null,null,null,null,null,null,null,null,null,null,null,null,null,null,null,null,null,null,null,null,null,null,null,null,null,null,null,null,null,null,null,null,null,null,null,null,null,null,null,null,null,null,null,null,null,null,null,null,null,null,null,null,null,null,null,null,null,null,null,null,null,null,null,null,null,null,null,null,null,null,null,null,null,null,null,null,null,null,null,null,null,null,null,null,null,null,null,null,null,null,null,null,null,null,null,null,null,null,null,null,null,null,null,null,null,null,null,null,null,null,null,null,null,null,null,null,null,null,null,null,null,null,null,null,null,null,null,null,null,null,null,null,null,null,null,null,null,null,null,null,null,null,null,null,null,null,null,null,null,null,null,null,null,null,null,null,null,null,null,null,null,null,null,null,null,null,null,null,null,null,null,null,null,null,null,null,null,null,null,"Diamond","Diamond","Diamond","Diamond","Diamond","Diamond","Diamond","Diamond","Diamond","Diamond","Diamond","Diamond","Diamond","Diamond","Diamond","Diamond","Diamond","Diamond","Diamond","Diamond","Diamond","Diamond"]
[null,null,null,null,null,null,null,null,null,null,null,null,null,null,null,null,null,null,null,null,null,null,null,null,null,null,null,null,null,null,null,null,null,null,null,null,null,null,null,null,null,null,null,null,null,null,null,null,null,null,null,null,null,null,null,null,null,null,null,null,null,null,null,null,null,null,null,null,null,null,null,null,null,null,null,null,null,null,null,null,null,null,null,null,null,null,null,null,null,null,null,null,null,null,null,null,null,null,null,null,null,null,null,null,null,null,null,null,null,null,null,null,null,null,null,null,null,null,null,null,null,null,null,null,null,null,null,null,null,null,null,null,null,null,null,null,null,null,null,null,null,null,null,null,null,null,null,null,null,null,null,null,null,null,null,null,null,null,null,null,null,null,null,null,null,null,null,null,null,null,null,null,null,null,null,null,null,null,null,null,null,null,null,null,null,null,null,null,null,null,null,null,null,null,null,null,null,null,null,null,null,null,null,null,null,null,null,null,null,null,null,null,null,null,null,null,null,null,null,null,null,null,null,null,null,null,null,null,null,null,null,null,null,null,null,null,null,null,null,null,null,null,null,null,null,null,null,null,null,null,null,null,null,null,null,null,null,null,null,null,null,null,null,null,null,null,null,null,null,null,null,null,null,null,null,null,null,null,null,null,null,null,null,null,null,null,null,null,null,null,null,null,null,null,null,null,null,null,null,null,null,null,null,null,null,null,null,null,null,null,null,null,null,null,null,null,null,null,null,null,null,null,"Diamond & Emerald","Diamond & Emerald","Diamond & Emerald","Diamond & Emerald","Diamond & Emerald","Diamond & Emerald","Diamond & Emerald","Diamond & Emerald","Diamond & Emerald","Diamond & Emerald","Diamond & Emerald","Diamond & Emerald","Diamond & Emerald","Diamond & Emerald","Diamond & Emerald","Diamond & Emerald","Diamond & Emerald","Diamond & Emerald","Diamond & Emerald","Diamond & Emerald","Diamond & Emerald","Diamond & Emerald"]
[null,null,null,null,null,null,null,null,null,null,null,null,null,null,null,null,null,null,null,null,null,null,null,null,null,null,null,null,null,null,null,null,null,null,null,null,null,null,null,null,null,null,null,null,null,null,null,null,null,null,null,null,null,null,null,null,null,null,null,null,null,null,null,null,null,null,null,null,null,null,null,null,null,null,null,null,null,null,null,null,null,null,null,null,null,null,null,null,null,null,null,null,null,null,null,null,null,null,null,null,null,null,null,null,null,null,null,null,null,null,null,null,null,null,null,null,null,null,null,null,null,null,null,null,null,null,null,null,null,null,null,null,null,null,null,null,null,null,null,null,null,null,null,null,null,null,null,null,null,null,null,null,null,null,null,null,null,null,null,null,null,null,null,null,null,null,null,null,null,null,null,null,null,null,null,null,null,null,null,null,null,null,null,null,null,null,null,null,null,null,null,null,null,null,null,null,null,null,null,null,null,null,null,null,null,null,null,null,null,null,null,null,null,null,null,null,null,null,null,null,null,null,null,null,null,null,null,null,null,null,null,null,null,null,null,null,null,null,null,null,null,null,null,null,null,null,null,null,null,null,null,null,null,null,null,null,null,null,null,null,null,null,null,null,null,null,null,null,null,null,null,null,null,null,null,null,null,null,null,null,null,null,null,null,null,null,null,null,null,null,null,null,null,null,null,null,null,null,null,null,null,null,null,null,null,null,null,null,null,null,null,null,null,null,null,null,null,null,null,null,null,null,"Diamond & Garnet","Diamond & Garnet","Diamond & Garnet","Diamond & Garnet","Diamond & Garnet","Diamond & Garnet","Diamond & Garnet","Diamond & Garnet","Diamond & Garnet","Diamond & Garnet","Diamond & Garnet","Diamond & Garnet","Diamond & Garnet","Diamond & Garnet","Diamond & Garnet","Diamond & Garnet","Diamond & Garnet","Diamond & Garnet","Diamond & Garnet","Diamond & Garnet","Diamond & Garnet","Diamond & Garnet"]
[null,null,null,null,null,null,null,null,null,null,null,null,null,null,null,null,null,null,null,null,null,null,null,null,null,null,null,null,null,null,null,null,null,null,null,null,null,null,null,null,null,null,null,null,null,null,null,null,null,null,null,null,null,null,null,null,null,null,null,null,null,null,null,null,null,null,null,null,null,null,null,null,null,null,null,null,null,null,null,null,null,null,null,null,null,null,null,null,null,null,null,null,null,null,null,null,null,null,null,null,null,null,null,null,null,null,null,null,null,null,null,null,null,null,null,null,null,null,null,null,null,null,null,null,null,null,null,null,null,null,null,null,null,null,null,null,null,null,null,null,null,null,null,null,null,null,null,null,null,null,null,null,null,null,null,null,null,null,null,null,null,null,null,null,null,null,null,null,null,null,null,null,null,null,null,null,null,null,null,null,null,null,null,null,null,null,null,null,null,null,null,null,null,null,null,null,null,null,null,null,null,null,null,null,null,null,null,null,null,null,null,null,null,null,null,null,null,null,null,null,null,null,null,null,null,null,null,null,null,null,null,null,null,null,null,null,null,null,null,null,null,null,null,null,null,null,null,null,null,null,null,null,null,null,null,null,null,null,null,null,null,null,null,null,null,null,null,null,null,null,null,null,null,null,null,null,null,null,null,null,null,null,null,null,null,null,null,null,null,null,null,null,null,null,null,null,null,null,null,null,null,null,null,null,null,null,null,null,null,null,null,null,null,null,null,null,null,null,null,null,null,null,"Diamond & Pearl","Diamond & Pearl","Diamond & Pearl","Diamond & Pearl","Diamond & Pearl","Diamond & Pearl","Diamond & Pearl","Diamond & Pearl","Diamond & Pearl","Diamond & Pearl","Diamond & Pearl","Diamond & Pearl","Diamond & Pearl","Diamond & Pearl","Diamond & Pearl","Diamond & Pearl","Diamond & Pearl","Diamond & Pearl","Diamond & Pearl","Diamond & Pearl","Diamond & Pearl","Diamond & Pearl"]
[null,null,null,null,null,null,null,null,null,null,null,null,null,null,null,null,null,null,null,null,null,null,null,null,null,null,null,null,null,null,null,null,null,null,null,null,null,null,null,null,null,null,null,null,null,null,null,null,null,null,null,null,null,null,null,null,null,null,null,null,null,null,null,null,null,null,null,null,null,null,null,null,null,null,null,null,null,null,null,null,null,null,null,null,null,null,null,null,null,null,null,null,null,null,null,null,null,null,null,null,null,null,null,null,null,null,null,null,null,null,null,null,null,null,null,null,null,null,null,null,null,null,null,null,null,null,null,null,null,null,null,null,null,null,null,null,null,null,null,null,null,null,null,null,null,null,null,null,null,null,null,null,null,null,null,null,null,null,null,null,null,null,null,null,null,null,null,null,null,null,null,null,null,null,null,null,null,null,null,null,null,null,null,null,null,null,null,null,null,null,null,null,null,null,null,null,null,null,null,null,null,null,null,null,null,null,null,null,null,null,null,null,null,null,null,null,null,null,null,null,null,null,null,null,null,null,null,null,null,null,null,null,null,null,null,null,null,null,null,null,null,null,null,null,null,null,null,null,null,null,null,null,null,null,null,null,null,null,null,null,null,null,null,null,null,null,null,null,null,null,null,null,null,null,null,null,null,null,null,null,null,null,null,null,null,null,null,null,null,null,null,null,null,null,null,null,null,null,null,null,null,null,null,null,null,null,null,null,null,null,null,null,null,null,null,null,null,null,null,null,null,null,"Diamond & Peridot","Diamond & Peridot","Diamond & Peridot","Diamond & Peridot","Diamond & Peridot","Diamond & Peridot","Diamond & Peridot","Diamond & Peridot","Diamond & Peridot","Diamond & Peridot","Diamond & Peridot","Diamond & Peridot","Diamond & Peridot","Diamond & Peridot","Diamond & Peridot","Diamond & Peridot","Diamond & Peridot","Diamond & Peridot","Diamond & Peridot","Diamond & Peridot","Diamond & Peridot","Diamond & Peridot"]
[null,null,null,null,null,null,null,null,null,null,null,null,null,null,null,null,null,null,null,null,null,null,null,null,null,null,null,null,null,null,null,null,null,null,null,null,null,null,null,null,null,null,null,null,null,null,null,null,null,null,null,null,null,null,null,null,null,null,null,null,null,null,null,null,null,null,null,null,null,null,null,null,null,null,null,null,null,null,null,null,null,null,null,null,null,null,null,null,null,null,null,null,null,null,null,null,null,null,null,null,null,null,null,null,null,null,null,null,null,null,null,null,null,null,null,null,null,null,null,null,null,null,null,null,null,null,null,null,null,null,null,null,null,null,null,null,null,null,null,null,null,null,null,null,null,null,null,null,null,null,null,null,null,null,null,null,null,null,null,null,null,null,null,null,null,null,null,null,null,null,null,null,null,null,null,null,null,null,null,null,null,null,null,null,null,null,null,null,null,null,null,null,null,null,null,null,null,null,null,null,null,null,null,null,null,null,null,null,null,null,null,null,null,null,null,null,null,null,null,null,null,null,null,null,null,null,null,null,null,null,null,null,null,null,null,null,null,null,null,null,null,null,null,null,null,null,null,null,null,null,null,null,null,null,null,null,null,null,null,null,null,null,null,null,null,null,null,null,null,null,null,null,null,null,null,null,null,null,null,null,null,null,null,null,null,null,null,null,null,null,null,null,null,null,null,null,null,null,null,null,null,null,null,null,null,null,null,null,null,null,null,null,null,null,null,null,null,null,null,null,null,null,"Diamond & Peridot ","Diamond & Peridot ","Diamond & Peridot ","Diamond & Peridot ","Diamond & Peridot ","Diamond & Peridot ","Diamond & Peridot ","Diamond & Peridot ","Diamond & Peridot ","Diamond & Peridot ","Diamond & Peridot ","Diamond & Peridot ","Diamond & Peridot ","Diamond & Peridot ","Diamond & Peridot ","Diamond & Peridot ","Diamond & Peridot ","Diamond & Peridot ","Diamond & Peridot ","Diamond & Peridot ","Diamond & Peridot ","Diamond & Peridot "]
[null,null,null,null,null,null,null,null,null,null,null,null,null,null,null,null,null,null,null,null,null,null,null,null,null,null,null,null,null,null,null,null,null,null,null,null,null,null,null,null,null,null,null,null,null,null,null,null,null,null,null,null,null,null,null,null,null,null,null,null,null,null,null,null,null,null,null,null,null,null,null,null,null,null,null,null,null,null,null,null,null,null,null,null,null,null,null,null,null,null,null,null,null,null,null,null,null,null,null,null,null,null,null,null,null,null,null,null,null,null,null,null,null,null,null,null,null,null,null,null,null,null,null,null,null,null,null,null,null,null,null,null,null,null,null,null,null,null,null,null,null,null,null,null,null,null,null,null,null,null,null,null,null,null,null,null,null,null,null,null,null,null,null,null,null,null,null,null,null,null,null,null,null,null,null,null,null,null,null,null,null,null,null,null,null,null,null,null,null,null,null,null,null,null,null,null,null,null,null,null,null,null,null,null,null,null,null,null,null,null,null,null,null,null,null,null,null,null,null,null,null,null,null,null,null,null,null,null,null,null,null,null,null,null,null,null,null,null,null,null,null,null,null,null,null,null,null,null,null,null,null,null,null,null,null,null,null,null,null,null,null,null,null,null,null,null,null,null,null,null,null,null,null,null,null,null,null,null,null,null,null,null,null,null,null,null,null,null,null,null,null,null,null,null,null,null,null,null,null,null,null,null,null,null,null,null,null,null,null,null,null,null,null,null,null,null,null,null,null,null,null,null,"Diamond & Sapphire","Diamond & Sapphire","Diamond & Sapphire","Diamond & Sapphire","Diamond & Sapphire","Diamond & Sapphire","Diamond & Sapphire","Diamond & Sapphire","Diamond & Sapphire","Diamond & Sapphire","Diamond & Sapphire","Diamond & Sapphire","Diamond & Sapphire","Diamond & Sapphire","Diamond & Sapphire","Diamond & Sapphire","Diamond & Sapphire","Diamond & Sapphire","Diamond & Sapphire","Diamond & Sapphire","Diamond & Sapphire","Diamond & Sapphire"]
[null,null,null,null,null,null,null,null,null,null,null,null,null,null,null,null,null,null,null,null,null,null,null,null,null,null,null,null,null,null,null,null,null,null,null,null,null,null,null,null,null,null,null,null,null,null,null,null,null,null,null,null,null,null,null,null,null,null,null,null,null,null,null,null,null,null,null,null,null,null,null,null,null,null,null,null,null,null,null,null,null,null,null,null,null,null,null,null,null,null,null,null,null,null,null,null,null,null,null,null,null,null,null,null,null,null,null,null,null,null,null,null,null,null,null,null,null,null,null,null,null,null,null,null,null,null,null,null,null,null,null,null,null,null,null,null,null,null,null,null,null,null,null,null,null,null,null,null,null,null,null,null,null,null,null,null,null,null,null,null,null,null,null,null,null,null,null,null,null,null,null,null,null,null,null,null,null,null,null,null,null,null,null,null,null,null,null,null,null,null,null,null,null,null,null,null,null,null,null,null,null,null,null,null,null,null,null,null,null,null,null,null,null,null,null,null,null,null,null,null,null,null,null,null,null,null,null,null,null,null,null,null,null,null,null,null,null,null,null,null,null,null,null,null,null,null,null,null,null,null,null,null,null,null,null,null,null,null,null,null,null,null,null,null,null,null,null,null,null,null,null,null,null,null,null,null,null,null,null,null,null,null,null,null,null,null,null,null,null,null,null,null,null,null,null,null,null,null,null,null,null,null,null,null,null,null,null,null,null,null,null,null,null,null,null,null,null,null,null,null,null,null,"Diamond & Smokey Quartz","Diamond & Smokey Quartz","Diamond & Smokey Quartz","Diamond & Smokey Quartz","Diamond & Smokey Quartz","Diamond & Smokey Quartz","Diamond & Smokey Quartz","Diamond & Smokey Quartz","Diamond & Smokey Quartz","Diamond & Smokey Quartz","Diamond & Smokey Quartz","Diamond & Smokey Quartz","Diamond & Smokey Quartz","Diamond & Smokey Quartz","Diamond & Smokey Quartz","Diamond & Smokey Quartz","Diamond & Smokey Quartz","Diamond & Smokey Quartz","Diamond & Smokey Quartz","Diamond & Smokey Quartz","Diamond & Smokey Quartz","Diamond & Smokey Quartz"]
[null,null,null,null,null,null,null,null,null,null,null,null,null,null,null,null,null,null,null,null,null,null,null,null,null,null,null,null,null,null,null,null,null,null,null,null,null,null,null,null,null,null,null,null,null,null,null,null,null,null,null,null,null,null,null,null,null,null,null,null,null,null,null,null,null,null,null,null,null,null,null,null,null,null,null,null,null,null,null,null,null,null,null,null,null,null,null,null,null,null,null,null,null,null,null,null,null,null,null,null,null,null,null,null,null,null,null,null,null,null,null,null,null,null,null,null,null,null,null,null,null,null,null,null,null,null,null,null,null,null,null,null,null,null,null,null,null,null,null,null,null,null,null,null,null,null,null,null,null,null,null,null,null,null,null,null,null,null,null,null,null,null,null,null,null,null,null,null,null,null,null,null,null,null,null,null,null,null,null,null,null,null,null,null,null,null,null,null,null,null,null,null,null,null,null,null,null,null,null,null,null,null,null,null,null,null,null,null,null,null,null,null,null,null,null,null,null,null,null,null,null,null,null,null,null,null,null,null,null,null,null,null,null,null,null,null,null,null,null,null,null,null,null,null,null,null,null,null,null,null,null,null,null,null,null,null,null,null,null,null,null,null,null,null,null,null,null,null,null,null,null,null,null,null,null,null,null,null,null,null,null,null,null,null,null,null,null,null,null,null,null,null,null,null,null,null,null,null,null,null,null,null,null,null,null,null,null,null,null,null,null,null,null,null,null,null,null,null,null,null,null,null,"Diamond & Turquoise","Diamond & Turquoise","Diamond & Turquoise","Diamond & Turquoise","Diamond & Turquoise","Diamond & Turquoise","Diamond & Turquoise","Diamond & Turquoise","Diamond & Turquoise","Diamond & Turquoise","Diamond & Turquoise","Diamond & Turquoise","Diamond & Turquoise","Diamond & Turquoise","Diamond & Turquoise","Diamond & Turquoise","Diamond & Turquoise","Diamond & Turquoise","Diamond & Turquoise","Diamond & Turquoise","Diamond & Turquoise","Diamond & Turquoise"]
[null,null,null,null,null,null,null,null,null,null,null,null,null,null,null,null,null,null,null,null,null,null,null,null,null,null,null,null,null,null,null,null,null,null,null,null,null,null,null,null,null,null,null,null,null,null,null,null,null,null,null,null,null,null,null,null,null,null,null,null,null,null,null,null,null,null,null,null,null,null,null,null,null,null,null,null,null,null,null,null,null,null,null,null,null,null,null,null,null,null,null,null,null,null,null,null,null,null,null,null,null,null,null,null,null,null,null,null,null,null,null,null,null,null,null,null,null,null,null,null,null,null,null,null,null,null,null,null,null,null,null,null,null,null,null,null,null,null,null,null,null,null,null,null,null,null,null,null,null,null,null,null,null,null,null,null,null,null,null,null,null,null,null,null,null,null,null,null,null,null,null,null,null,null,null,null,null,null,null,null,null,null,null,null,null,null,null,null,null,null,null,null,null,null,null,null,null,null,null,null,null,null,null,null,null,null,null,null,null,null,null,null,null,null,null,null,null,null,null,null,null,null,null,null,null,null,null,null,null,null,null,null,null,null,null,null,null,null,null,null,null,null,null,null,null,null,null,null,null,null,null,null,null,null,null,null,null,null,null,null,null,null,null,null,null,null,null,null,null,null,null,null,null,null,null,null,null,null,null,null,null,null,null,null,null,null,null,null,null,null,null,null,null,null,null,null,null,null,null,null,null,null,null,null,null,null,null,null,null,null,null,null,null,null,null,null,null,null,null,null,null,null,"Diamond & White Topaz","Diamond & White Topaz","Diamond & White Topaz","Diamond & White Topaz","Diamond & White Topaz","Diamond & White Topaz","Diamond & White Topaz","Diamond & White Topaz","Diamond & White Topaz","Diamond & White Topaz","Diamond & White Topaz","Diamond & White Topaz","Diamond & White Topaz","Diamond & White Topaz","Diamond & White Topaz","Diamond & White Topaz","Diamond & White Topaz","Diamond & White Topaz","Diamond & White Topaz","Diamond & White Topaz","Diamond & White Topaz","Diamond & White Topaz"]
[null,null,null,null,null,null,null,null,null,null,null,null,null,null,null,null,null,null,null,null,null,null,null,null,null,null,null,null,null,null,null,null,null,null,null,null,null,null,null,null,null,null,null,null,null,null,null,null,null,null,null,null,null,null,null,null,null,null,null,null,null,null,null,null,null,null,null,null,null,null,null,null,null,null,null,null,null,null,null,null,null,null,null,null,null,null,null,null,null,null,null,null,null,null,null,null,null,null,null,null,null,null,null,null,null,null,null,null,null,null,null,null,null,null,null,null,null,null,null,null,null,null,null,null,null,null,null,null,null,null,null,null,null,null,null,null,null,null,null,null,null,null,null,null,null,null,null,null,null,null,null,null,null,null,null,null,null,null,null,null,null,null,null,null,null,null,null,null,null,null,null,null,null,null,null,null,null,null,null,null,null,null,null,null,null,null,null,null,null,null,null,null,null,null,null,null,null,null,null,null,null,null,null,null,null,null,null,null,null,null,null,null,null,null,null,null,null,null,null,null,null,null,null,null,null,null,null,null,null,null,null,null,null,null,null,null,null,null,null,null,null,null,null,null,null,null,null,null,null,null,null,null,null,null,null,null,null,null,null,null,null,null,null,null,null,null,null,null,null,null,null,null,null,null,null,null,null,null,null,null,null,null,null,null,null,null,null,null,null,null,null,null,null,null,null,null,null,null,null,null,null,null,null,null,null,null,null,null,null,null,null,null,null,null,null,null,null,null,null,null,null,null,"Emerald","Emerald","Emerald","Emerald","Emerald","Emerald","Emerald","Emerald","Emerald","Emerald","Emerald","Emerald","Emerald","Emerald","Emerald","Emerald","Emerald","Emerald","Emerald","Emerald","Emerald","Emerald"]
[null,null,null,null,null,null,null,null,null,null,null,null,null,null,null,null,null,null,null,null,null,null,null,null,null,null,null,null,null,null,null,null,null,null,null,null,null,null,null,null,null,null,null,null,null,null,null,null,null,null,null,null,null,null,null,null,null,null,null,null,null,null,null,null,null,null,null,null,null,null,null,null,null,null,null,null,null,null,null,null,null,null,null,null,null,null,null,null,null,null,null,null,null,null,null,null,null,null,null,null,null,null,null,null,null,null,null,null,null,null,null,null,null,null,null,null,null,null,null,null,null,null,null,null,null,null,null,null,null,null,null,null,null,null,null,null,null,null,null,null,null,null,null,null,null,null,null,null,null,null,null,null,null,null,null,null,null,null,null,null,null,null,null,null,null,null,null,null,null,null,null,null,null,null,null,null,null,null,null,null,null,null,null,null,null,null,null,null,null,null,null,null,null,null,null,null,null,null,null,null,null,null,null,null,null,null,null,null,null,null,null,null,null,null,null,null,null,null,null,null,null,null,null,null,null,null,null,null,null,null,null,null,null,null,null,null,null,null,null,null,null,null,null,null,null,null,null,null,null,null,null,null,null,null,null,null,null,null,null,null,null,null,null,null,null,null,null,null,null,null,null,null,null,null,null,null,null,null,null,null,null,null,null,null,null,null,null,null,null,null,null,null,null,null,null,null,null,null,null,null,null,null,null,null,null,null,null,null,null,null,null,null,null,null,null,null,null,null,null,null,null,null,"Garnet","Garnet","Garnet","Garnet","Garnet","Garnet","Garnet","Garnet","Garnet","Garnet","Garnet","Garnet","Garnet","Garnet","Garnet","Garnet","Garnet","Garnet","Garnet","Garnet","Garnet","Garnet"]
[null,null,null,null,null,null,null,null,null,null,null,null,null,null,null,null,null,null,null,null,null,null,null,null,null,null,null,null,null,null,null,null,null,null,null,null,null,null,null,null,null,null,null,null,null,null,null,null,null,null,null,null,null,null,null,null,null,null,null,null,null,null,null,null,null,null,null,null,null,null,null,null,null,null,null,null,null,null,null,null,null,null,null,null,null,null,null,null,null,null,null,null,null,null,null,null,null,null,null,null,null,null,null,null,null,null,null,null,null,null,null,null,null,null,null,null,null,null,null,null,null,null,null,null,null,null,null,null,null,null,null,null,null,null,null,null,null,null,null,null,null,null,null,null,null,null,null,null,null,null,null,null,null,null,null,null,null,null,null,null,null,null,null,null,null,null,null,null,null,null,null,null,null,null,null,null,null,null,null,null,null,null,null,null,null,null,null,null,null,null,null,null,null,null,null,null,null,null,null,null,null,null,null,null,null,null,null,null,null,null,null,null,null,null,null,null,null,null,null,null,null,null,null,null,null,null,null,null,null,null,null,null,null,null,null,null,null,null,null,null,null,null,null,null,null,null,null,null,null,null,null,null,null,null,null,null,null,null,null,null,null,null,null,null,null,null,null,null,null,null,null,null,null,null,null,null,null,null,null,null,null,null,null,null,null,null,null,null,null,null,null,null,null,null,null,null,null,null,null,null,null,null,null,null,null,null,null,null,null,null,null,null,null,null,null,null,null,null,null,null,null,null,"Garnet & Pearl","Garnet & Pearl","Garnet & Pearl","Garnet & Pearl","Garnet & Pearl","Garnet & Pearl","Garnet & Pearl","Garnet & Pearl","Garnet & Pearl","Garnet & Pearl","Garnet & Pearl","Garnet & Pearl","Garnet & Pearl","Garnet & Pearl","Garnet & Pearl","Garnet & Pearl","Garnet & Pearl","Garnet & Pearl","Garnet & Pearl","Garnet & Pearl","Garnet & Pearl","Garnet & Pearl"]
[null,null,null,null,null,null,null,null,null,null,null,null,null,null,null,null,null,null,null,null,null,null,null,null,null,null,null,null,null,null,null,null,null,null,null,null,null,null,null,null,null,null,null,null,null,null,null,null,null,null,null,null,null,null,null,null,null,null,null,null,null,null,null,null,null,null,null,null,null,null,null,null,null,null,null,null,null,null,null,null,null,null,null,null,null,null,null,null,null,null,null,null,null,null,null,null,null,null,null,null,null,null,null,null,null,null,null,null,null,null,null,null,null,null,null,null,null,null,null,null,null,null,null,null,null,null,null,null,null,null,null,null,null,null,null,null,null,null,null,null,null,null,null,null,null,null,null,null,null,null,null,null,null,null,null,null,null,null,null,null,null,null,null,null,null,null,null,null,null,null,null,null,null,null,null,null,null,null,null,null,null,null,null,null,null,null,null,null,null,null,null,null,null,null,null,null,null,null,null,null,null,null,null,null,null,null,null,null,null,null,null,null,null,null,null,null,null,null,null,null,null,null,null,null,null,null,null,null,null,null,null,null,null,null,null,null,null,null,null,null,null,null,null,null,null,null,null,null,null,null,null,null,null,null,null,null,null,null,null,null,null,null,null,null,null,null,null,null,null,null,null,null,null,null,null,null,null,null,null,null,null,null,null,null,null,null,null,null,null,null,null,null,null,null,null,null,null,null,null,null,null,null,null,null,null,null,null,null,null,null,null,null,null,null,null,null,null,null,null,null,null,null,"Iolite","Iolite","Iolite","Iolite","Iolite","Iolite","Iolite","Iolite","Iolite","Iolite","Iolite","Iolite","Iolite","Iolite","Iolite","Iolite","Iolite","Iolite","Iolite","Iolite","Iolite","Iolite"]
[null,null,null,null,null,null,null,null,null,null,null,null,null,null,null,null,null,null,null,null,null,null,null,null,null,null,null,null,null,null,null,null,null,null,null,null,null,null,null,null,null,null,null,null,null,null,null,null,null,null,null,null,null,null,null,null,null,null,null,null,null,null,null,null,null,null,null,null,null,null,null,null,null,null,null,null,null,null,null,null,null,null,null,null,null,null,null,null,null,null,null,null,null,null,null,null,null,null,null,null,null,null,null,null,null,null,null,null,null,null,null,null,null,null,null,null,null,null,null,null,null,null,null,null,null,null,null,null,null,null,null,null,null,null,null,null,null,null,null,null,null,null,null,null,null,null,null,null,null,null,null,null,null,null,null,null,null,null,null,null,null,null,null,null,null,null,null,null,null,null,null,null,null,null,null,null,null,null,null,null,null,null,null,null,null,null,null,null,null,null,null,null,null,null,null,null,null,null,null,null,null,null,null,null,null,null,null,null,null,null,null,null,null,null,null,null,null,null,null,null,null,null,null,null,null,null,null,null,null,null,null,null,null,null,null,null,null,null,null,null,null,null,null,null,null,null,null,null,null,null,null,null,null,null,null,null,null,null,null,null,null,null,null,null,null,null,null,null,null,null,null,null,null,null,null,null,null,null,null,null,null,null,null,null,null,null,null,null,null,null,null,null,null,null,null,null,null,null,null,null,null,null,null,null,null,null,null,null,null,null,null,null,null,null,null,null,null,null,null,null,null,null,"Medina & Topaz","Medina & Topaz","Medina & Topaz","Medina & Topaz","Medina & Topaz","Medina & Topaz","Medina & Topaz","Medina & Topaz","Medina & Topaz","Medina & Topaz","Medina & Topaz","Medina & Topaz","Medina & Topaz","Medina & Topaz","Medina & Topaz","Medina & Topaz","Medina & Topaz","Medina & Topaz","Medina & Topaz","Medina & Topaz","Medina & Topaz","Medina & Topaz"]
[null,null,null,null,null,null,null,null,null,null,null,null,null,null,null,null,null,null,null,null,null,null,null,null,null,null,null,null,null,null,null,null,null,null,null,null,null,null,null,null,null,null,null,null,null,null,null,null,null,null,null,null,null,null,null,null,null,null,null,null,null,null,null,null,null,null,null,null,null,null,null,null,null,null,null,null,null,null,null,null,null,null,null,null,null,null,null,null,null,null,null,null,null,null,null,null,null,null,null,null,null,null,null,null,null,null,null,null,null,null,null,null,null,null,null,null,null,null,null,null,null,null,null,null,null,null,null,null,null,null,null,null,null,null,null,null,null,null,null,null,null,null,null,null,null,null,null,null,null,null,null,null,null,null,null,null,null,null,null,null,null,null,null,null,null,null,null,null,null,null,null,null,null,null,null,null,null,null,null,null,null,null,null,null,null,null,null,null,null,null,null,null,null,null,null,null,null,null,null,null,null,null,null,null,null,null,null,null,null,null,null,null,null,null,null,null,null,null,null,null,null,null,null,null,null,null,null,null,null,null,null,null,null,null,null,null,null,null,null,null,null,null,null,null,null,null,null,null,null,null,null,null,null,null,null,null,null,null,null,null,null,null,null,null,null,null,null,null,null,null,null,null,null,null,null,null,null,null,null,null,null,null,null,null,null,null,null,null,null,null,null,null,null,null,null,null,null,null,null,null,null,null,null,null,null,null,null,null,null,null,null,null,null,null,null,null,null,null,null,null,null,null,"Onyx","Onyx","Onyx","Onyx","Onyx","Onyx","Onyx","Onyx","Onyx","Onyx","Onyx","Onyx","Onyx","Onyx","Onyx","Onyx","Onyx","Onyx","Onyx","Onyx","Onyx","Onyx"]
[null,null,null,null,null,null,null,null,null,null,null,null,null,null,null,null,null,null,null,null,null,null,null,null,null,null,null,null,null,null,null,null,null,null,null,null,null,null,null,null,null,null,null,null,null,null,null,null,null,null,null,null,null,null,null,null,null,null,null,null,null,null,null,null,null,null,null,null,null,null,null,null,null,null,null,null,null,null,null,null,null,null,null,null,null,null,null,null,null,null,null,null,null,null,null,null,null,null,null,null,null,null,null,null,null,null,null,null,null,null,null,null,null,null,null,null,null,null,null,null,null,null,null,null,null,null,null,null,null,null,null,null,null,null,null,null,null,null,null,null,null,null,null,null,null,null,null,null,null,null,null,null,null,null,null,null,null,null,null,null,null,null,null,null,null,null,null,null,null,null,null,null,null,null,null,null,null,null,null,null,null,null,null,null,null,null,null,null,null,null,null,null,null,null,null,null,null,null,null,null,null,null,null,null,null,null,null,null,null,null,null,null,null,null,null,null,null,null,null,null,null,null,null,null,null,null,null,null,null,null,null,null,null,null,null,null,null,null,null,null,null,null,null,null,null,null,null,null,null,null,null,null,null,null,null,null,null,null,null,null,null,null,null,null,null,null,null,null,null,null,null,null,null,null,null,null,null,null,null,null,null,null,null,null,null,null,null,null,null,null,null,null,null,null,null,null,null,null,null,null,null,null,null,null,null,null,null,null,null,null,null,null,null,null,null,null,null,null,null,null,null,null,"Onyx & Pearl","Onyx & Pearl","Onyx & Pearl","Onyx & Pearl","Onyx & Pearl","Onyx & Pearl","Onyx & Pearl","Onyx & Pearl","Onyx & Pearl","Onyx & Pearl","Onyx & Pearl","Onyx & Pearl","Onyx & Pearl","Onyx & Pearl","Onyx & Pearl","Onyx & Pearl","Onyx & Pearl","Onyx & Pearl","Onyx & Pearl","Onyx & Pearl","Onyx & Pearl","Onyx & Pearl"]
[null,null,null,null,null,null,null,null,null,null,null,null,null,null,null,null,null,null,null,null,null,null,null,null,null,null,null,null,null,null,null,null,null,null,null,null,null,null,null,null,null,null,null,null,null,null,null,null,null,null,null,null,null,null,null,null,null,null,null,null,null,null,null,null,null,null,null,null,null,null,null,null,null,null,null,null,null,null,null,null,null,null,null,null,null,null,null,null,null,null,null,null,null,null,null,null,null,null,null,null,null,null,null,null,null,null,null,null,null,null,null,null,null,null,null,null,null,null,null,null,null,null,null,null,null,null,null,null,null,null,null,null,null,null,null,null,null,null,null,null,null,null,null,null,null,null,null,null,null,null,null,null,null,null,null,null,null,null,null,null,null,null,null,null,null,null,null,null,null,null,null,null,null,null,null,null,null,null,null,null,null,null,null,null,null,null,null,null,null,null,null,null,null,null,null,null,null,null,null,null,null,null,null,null,null,null,null,null,null,null,null,null,null,null,null,null,null,null,null,null,null,null,null,null,null,null,null,null,null,null,null,null,null,null,null,null,null,null,null,null,null,null,null,null,null,null,null,null,null,null,null,null,null,null,null,null,null,null,null,null,null,null,null,null,null,null,null,null,null,null,null,null,null,null,null,null,null,null,null,null,null,null,null,null,null,null,null,null,null,null,null,null,null,null,null,null,null,null,null,null,null,null,null,null,null,null,null,null,null,null,null,null,null,null,null,null,null,null,null,null,null,null,"Other ","Other ","Other ","Other ","Other ","Other ","Other ","Other ","Other ","Other ","Other ","Other ","Other ","Other ","Other ","Other ","Other ","Other ","Other ","Other ","Other ","Other "]
[null,null,null,null,null,null,null,null,null,null,null,null,null,null,null,null,null,null,null,null,null,null,null,null,null,null,null,null,null,null,null,null,null,null,null,null,null,null,null,null,null,null,null,null,null,null,null,null,null,null,null,null,null,null,null,null,null,null,null,null,null,null,null,null,null,null,null,null,null,null,null,null,null,null,null,null,null,null,null,null,null,null,null,null,null,null,null,null,null,null,null,null,null,null,null,null,null,null,null,null,null,null,null,null,null,null,null,null,null,null,null,null,null,null,null,null,null,null,null,null,null,null,null,null,null,null,null,null,null,null,null,null,null,null,null,null,null,null,null,null,null,null,null,null,null,null,null,null,null,null,null,null,null,null,null,null,null,null,null,null,null,null,null,null,null,null,null,null,null,null,null,null,null,null,null,null,null,null,null,null,null,null,null,null,null,null,null,null,null,null,null,null,null,null,null,null,null,null,null,null,null,null,null,null,null,null,null,null,null,null,null,null,null,null,null,null,null,null,null,null,null,null,null,null,null,null,null,null,null,null,null,null,null,null,null,null,null,null,null,null,null,null,null,null,null,null,null,null,null,null,null,null,null,null,null,null,null,null,null,null,null,null,null,null,null,null,null,null,null,null,null,null,null,null,null,null,null,null,null,null,null,null,null,null,null,null,null,null,null,null,null,null,null,null,null,null,null,null,null,null,null,null,null,null,null,null,null,null,null,null,null,null,null,null,null,null,null,null,null,null,null,null,"Pearl","Pearl","Pearl","Pearl","Pearl","Pearl","Pearl","Pearl","Pearl","Pearl","Pearl","Pearl","Pearl","Pearl","Pearl","Pearl","Pearl","Pearl","Pearl","Pearl","Pearl","Pearl"]
[null,null,null,null,null,null,null,null,null,null,null,null,null,null,null,null,null,null,null,null,null,null,null,null,null,null,null,null,null,null,null,null,null,null,null,null,null,null,null,null,null,null,null,null,null,null,null,null,null,null,null,null,null,null,null,null,null,null,null,null,null,null,null,null,null,null,null,null,null,null,null,null,null,null,null,null,null,null,null,null,null,null,null,null,null,null,null,null,null,null,null,null,null,null,null,null,null,null,null,null,null,null,null,null,null,null,null,null,null,null,null,null,null,null,null,null,null,null,null,null,null,null,null,null,null,null,null,null,null,null,null,null,null,null,null,null,null,null,null,null,null,null,null,null,null,null,null,null,null,null,null,null,null,null,null,null,null,null,null,null,null,null,null,null,null,null,null,null,null,null,null,null,null,null,null,null,null,null,null,null,null,null,null,null,null,null,null,null,null,null,null,null,null,null,null,null,null,null,null,null,null,null,null,null,null,null,null,null,null,null,null,null,null,null,null,null,null,null,null,null,null,null,null,null,null,null,null,null,null,null,null,null,null,null,null,null,null,null,null,null,null,null,null,null,null,null,null,null,null,null,null,null,null,null,null,null,null,null,null,null,null,null,null,null,null,null,null,null,null,null,null,null,null,null,null,null,null,null,null,null,null,null,null,null,null,null,null,null,null,null,null,null,null,null,null,null,null,null,null,null,null,null,null,null,null,null,null,null,null,null,null,null,null,null,null,null,null,null,null,null,null,null,"Pearl & Peridot","Pearl & Peridot","Pearl & Peridot","Pearl & Peridot","Pearl & Peridot","Pearl & Peridot","Pearl & Peridot","Pearl & Peridot","Pearl & Peridot","Pearl & Peridot","Pearl & Peridot","Pearl & Peridot","Pearl & Peridot","Pearl & Peridot","Pearl & Peridot","Pearl & Peridot","Pearl & Peridot","Pearl & Peridot","Pearl & Peridot","Pearl & Peridot","Pearl & Peridot","Pearl & Peridot"]
[null,null,null,null,null,null,null,null,null,null,null,null,null,null,null,null,null,null,null,null,null,null,null,null,null,null,null,null,null,null,null,null,null,null,null,null,null,null,null,null,null,null,null,null,null,null,null,null,null,null,null,null,null,null,null,null,null,null,null,null,null,null,null,null,null,null,null,null,null,null,null,null,null,null,null,null,null,null,null,null,null,null,null,null,null,null,null,null,null,null,null,null,null,null,null,null,null,null,null,null,null,null,null,null,null,null,null,null,null,null,null,null,null,null,null,null,null,null,null,null,null,null,null,null,null,null,null,null,null,null,null,null,null,null,null,null,null,null,null,null,null,null,null,null,null,null,null,null,null,null,null,null,null,null,null,null,null,null,null,null,null,null,null,null,null,null,null,null,null,null,null,null,null,null,null,null,null,null,null,null,null,null,null,null,null,null,null,null,null,null,null,null,null,null,null,null,null,null,null,null,null,null,null,null,null,null,null,null,null,null,null,null,null,null,null,null,null,null,null,null,null,null,null,null,null,null,null,null,null,null,null,null,null,null,null,null,null,null,null,null,null,null,null,null,null,null,null,null,null,null,null,null,null,null,null,null,null,null,null,null,null,null,null,null,null,null,null,null,null,null,null,null,null,null,null,null,null,null,null,null,null,null,null,null,null,null,null,null,null,null,null,null,null,null,null,null,null,null,null,null,null,null,null,null,null,null,null,null,null,null,null,null,null,null,null,null,null,null,null,null,null,null,"Pearl & Smokey Quartz","Pearl & Smokey Quartz","Pearl & Smokey Quartz","Pearl & Smokey Quartz","Pearl & Smokey Quartz","Pearl & Smokey Quartz","Pearl & Smokey Quartz","Pearl & Smokey Quartz","Pearl & Smokey Quartz","Pearl & Smokey Quartz","Pearl & Smokey Quartz","Pearl & Smokey Quartz","Pearl & Smokey Quartz","Pearl & Smokey Quartz","Pearl & Smokey Quartz","Pearl & Smokey Quartz","Pearl & Smokey Quartz","Pearl & Smokey Quartz","Pearl & Smokey Quartz","Pearl & Smokey Quartz","Pearl & Smokey Quartz","Pearl & Smokey Quartz"]
[null,null,null,null,null,null,null,null,null,null,null,null,null,null,null,null,null,null,null,null,null,null,null,null,null,null,null,null,null,null,null,null,null,null,null,null,null,null,null,null,null,null,null,null,null,null,null,null,null,null,null,null,null,null,null,null,null,null,null,null,null,null,null,null,null,null,null,null,null,null,null,null,null,null,null,null,null,null,null,null,null,null,null,null,null,null,null,null,null,null,null,null,null,null,null,null,null,null,null,null,null,null,null,null,null,null,null,null,null,null,null,null,null,null,null,null,null,null,null,null,null,null,null,null,null,null,null,null,null,null,null,null,null,null,null,null,null,null,null,null,null,null,null,null,null,null,null,null,null,null,null,null,null,null,null,null,null,null,null,null,null,null,null,null,null,null,null,null,null,null,null,null,null,null,null,null,null,null,null,null,null,null,null,null,null,null,null,null,null,null,null,null,null,null,null,null,null,null,null,null,null,null,null,null,null,null,null,null,null,null,null,null,null,null,null,null,null,null,null,null,null,null,null,null,null,null,null,null,null,null,null,null,null,null,null,null,null,null,null,null,null,null,null,null,null,null,null,null,null,null,null,null,null,null,null,null,null,null,null,null,null,null,null,null,null,null,null,null,null,null,null,null,null,null,null,null,null,null,null,null,null,null,null,null,null,null,null,null,null,null,null,null,null,null,null,null,null,null,null,null,null,null,null,null,null,null,null,null,null,null,null,null,null,null,null,null,null,null,null,null,null,null,"Pearl & Topaz","Pearl & Topaz","Pearl & Topaz","Pearl & Topaz","Pearl & Topaz","Pearl & Topaz","Pearl & Topaz","Pearl & Topaz","Pearl & Topaz","Pearl & Topaz","Pearl & Topaz","Pearl & Topaz","Pearl & Topaz","Pearl & Topaz","Pearl & Topaz","Pearl & Topaz","Pearl & Topaz","Pearl & Topaz","Pearl & Topaz","Pearl & Topaz","Pearl & Topaz","Pearl & Topaz"]
[null,null,null,null,null,null,null,null,null,null,null,null,null,null,null,null,null,null,null,null,null,null,null,null,null,null,null,null,null,null,null,null,null,null,null,null,null,null,null,null,null,null,null,null,null,null,null,null,null,null,null,null,null,null,null,null,null,null,null,null,null,null,null,null,null,null,null,null,null,null,null,null,null,null,null,null,null,null,null,null,null,null,null,null,null,null,null,null,null,null,null,null,null,null,null,null,null,null,null,null,null,null,null,null,null,null,null,null,null,null,null,null,null,null,null,null,null,null,null,null,null,null,null,null,null,null,null,null,null,null,null,null,null,null,null,null,null,null,null,null,null,null,null,null,null,null,null,null,null,null,null,null,null,null,null,null,null,null,null,null,null,null,null,null,null,null,null,null,null,null,null,null,null,null,null,null,null,null,null,null,null,null,null,null,null,null,null,null,null,null,null,null,null,null,null,null,null,null,null,null,null,null,null,null,null,null,null,null,null,null,null,null,null,null,null,null,null,null,null,null,null,null,null,null,null,null,null,null,null,null,null,null,null,null,null,null,null,null,null,null,null,null,null,null,null,null,null,null,null,null,null,null,null,null,null,null,null,null,null,null,null,null,null,null,null,null,null,null,null,null,null,null,null,null,null,null,null,null,null,null,null,null,null,null,null,null,null,null,null,null,null,null,null,null,null,null,null,null,null,null,null,null,null,null,null,null,null,null,null,null,null,null,null,null,null,null,null,null,null,null,null,null,"Pearl & White Topaz","Pearl & White Topaz","Pearl & White Topaz","Pearl & White Topaz","Pearl & White Topaz","Pearl & White Topaz","Pearl & White Topaz","Pearl & White Topaz","Pearl & White Topaz","Pearl & White Topaz","Pearl & White Topaz","Pearl & White Topaz","Pearl & White Topaz","Pearl & White Topaz","Pearl & White Topaz","Pearl & White Topaz","Pearl & White Topaz","Pearl & White Topaz","Pearl & White Topaz","Pearl & White Topaz","Pearl & White Topaz","Pearl & White Topaz"]
[null,null,null,null,null,null,null,null,null,null,null,null,null,null,null,null,null,null,null,null,null,null,null,null,null,null,null,null,null,null,null,null,null,null,null,null,null,null,null,null,null,null,null,null,null,null,null,null,null,null,null,null,null,null,null,null,null,null,null,null,null,null,null,null,null,null,null,null,null,null,null,null,null,null,null,null,null,null,null,null,null,null,null,null,null,null,null,null,null,null,null,null,null,null,null,null,null,null,null,null,null,null,null,null,null,null,null,null,null,null,null,null,null,null,null,null,null,null,null,null,null,null,null,null,null,null,null,null,null,null,null,null,null,null,null,null,null,null,null,null,null,null,null,null,null,null,null,null,null,null,null,null,null,null,null,null,null,null,null,null,null,null,null,null,null,null,null,null,null,null,null,null,null,null,null,null,null,null,null,null,null,null,null,null,null,null,null,null,null,null,null,null,null,null,null,null,null,null,null,null,null,null,null,null,null,null,null,null,null,null,null,null,null,null,null,null,null,null,null,null,null,null,null,null,null,null,null,null,null,null,null,null,null,null,null,null,null,null,null,null,null,null,null,null,null,null,null,null,null,null,null,null,null,null,null,null,null,null,null,null,null,null,null,null,null,null,null,null,null,null,null,null,null,null,null,null,null,null,null,null,null,null,null,null,null,null,null,null,null,null,null,null,null,null,null,null,null,null,null,null,null,null,null,null,null,null,null,null,null,null,null,null,null,null,null,null,null,null,null,null,null,null,"Peridot","Peridot","Peridot","Peridot","Peridot","Peridot","Peridot","Peridot","Peridot","Peridot","Peridot","Peridot","Peridot","Peridot","Peridot","Peridot","Peridot","Peridot","Peridot","Peridot","Peridot","Peridot"]
[null,null,null,null,null,null,null,null,null,null,null,null,null,null,null,null,null,null,null,null,null,null,null,null,null,null,null,null,null,null,null,null,null,null,null,null,null,null,null,null,null,null,null,null,null,null,null,null,null,null,null,null,null,null,null,null,null,null,null,null,null,null,null,null,null,null,null,null,null,null,null,null,null,null,null,null,null,null,null,null,null,null,null,null,null,null,null,null,null,null,null,null,null,null,null,null,null,null,null,null,null,null,null,null,null,null,null,null,null,null,null,null,null,null,null,null,null,null,null,null,null,null,null,null,null,null,null,null,null,null,null,null,null,null,null,null,null,null,null,null,null,null,null,null,null,null,null,null,null,null,null,null,null,null,null,null,null,null,null,null,null,null,null,null,null,null,null,null,null,null,null,null,null,null,null,null,null,null,null,null,null,null,null,null,null,null,null,null,null,null,null,null,null,null,null,null,null,null,null,null,null,null,null,null,null,null,null,null,null,null,null,null,null,null,null,null,null,null,null,null,null,null,null,null,null,null,null,null,null,null,null,null,null,null,null,null,null,null,null,null,null,null,null,null,null,null,null,null,null,null,null,null,null,null,null,null,null,null,null,null,null,null,null,null,null,null,null,null,null,null,null,null,null,null,null,null,null,null,null,null,null,null,null,null,null,null,null,null,null,null,null,null,null,null,null,null,null,null,null,null,null,null,null,null,null,null,null,null,null,null,null,null,null,null,null,null,null,null,null,null,null,null,"Sapphire","Sapphire","Sapphire","Sapphire","Sapphire","Sapphire","Sapphire","Sapphire","Sapphire","Sapphire","Sapphire","Sapphire","Sapphire","Sapphire","Sapphire","Sapphire","Sapphire","Sapphire","Sapphire","Sapphire","Sapphire","Sapphire"]
[null,null,null,null,null,null,null,null,null,null,null,null,null,null,null,null,null,null,null,null,null,null,null,null,null,null,null,null,null,null,null,null,null,null,null,null,null,null,null,null,null,null,null,null,null,null,null,null,null,null,null,null,null,null,null,null,null,null,null,null,null,null,null,null,null,null,null,null,null,null,null,null,null,null,null,null,null,null,null,null,null,null,null,null,null,null,null,null,null,null,null,null,null,null,null,null,null,null,null,null,null,null,null,null,null,null,null,null,null,null,null,null,null,null,null,null,null,null,null,null,null,null,null,null,null,null,null,null,null,null,null,null,null,null,null,null,null,null,null,null,null,null,null,null,null,null,null,null,null,null,null,null,null,null,null,null,null,null,null,null,null,null,null,null,null,null,null,null,null,null,null,null,null,null,null,null,null,null,null,null,null,null,null,null,null,null,null,null,null,null,null,null,null,null,null,null,null,null,null,null,null,null,null,null,null,null,null,null,null,null,null,null,null,null,null,null,null,null,null,null,null,null,null,null,null,null,null,null,null,null,null,null,null,null,null,null,null,null,null,null,null,null,null,null,null,null,null,null,null,null,null,null,null,null,null,null,null,null,null,null,null,null,null,null,null,null,null,null,null,null,null,null,null,null,null,null,null,null,null,null,null,null,null,null,null,null,null,null,null,null,null,null,null,null,null,null,null,null,null,null,null,null,null,null,null,null,null,null,null,null,null,null,null,null,null,null,null,null,null,null,null,null,"Smokey Quartz","Smokey Quartz","Smokey Quartz","Smokey Quartz","Smokey Quartz","Smokey Quartz","Smokey Quartz","Smokey Quartz","Smokey Quartz","Smokey Quartz","Smokey Quartz","Smokey Quartz","Smokey Quartz","Smokey Quartz","Smokey Quartz","Smokey Quartz","Smokey Quartz","Smokey Quartz","Smokey Quartz","Smokey Quartz","Smokey Quartz","Smokey Quartz"]
[null,null,null,null,null,null,null,null,null,null,null,null,null,null,null,null,null,null,null,null,null,null,null,null,null,null,null,null,null,null,null,null,null,null,null,null,null,null,null,null,null,null,null,null,null,null,null,null,null,null,null,null,null,null,null,null,null,null,null,null,null,null,null,null,null,null,null,null,null,null,null,null,null,null,null,null,null,null,null,null,null,null,null,null,null,null,null,null,null,null,null,null,null,null,null,null,null,null,null,null,null,null,null,null,null,null,null,null,null,null,null,null,null,null,null,null,null,null,null,null,null,null,null,null,null,null,null,null,null,null,null,null,null,null,null,null,null,null,null,null,null,null,null,null,null,null,null,null,null,null,null,null,null,null,null,null,null,null,null,null,null,null,null,null,null,null,null,null,null,null,null,null,null,null,null,null,null,null,null,null,null,null,null,null,null,null,null,null,null,null,null,null,null,null,null,null,null,null,null,null,null,null,null,null,null,null,null,null,null,null,null,null,null,null,null,null,null,null,null,null,null,null,null,null,null,null,null,null,null,null,null,null,null,null,null,null,null,null,null,null,null,null,null,null,null,null,null,null,null,null,null,null,null,null,null,null,null,null,null,null,null,null,null,null,null,null,null,null,null,null,null,null,null,null,null,null,null,null,null,null,null,null,null,null,null,null,null,null,null,null,null,null,null,null,null,null,null,null,null,null,null,null,null,null,null,null,null,null,null,null,null,null,null,null,null,null,null,null,null,null,null,null,"Tiger Eye","Tiger Eye","Tiger Eye","Tiger Eye","Tiger Eye","Tiger Eye","Tiger Eye","Tiger Eye","Tiger Eye","Tiger Eye","Tiger Eye","Tiger Eye","Tiger Eye","Tiger Eye","Tiger Eye","Tiger Eye","Tiger Eye","Tiger Eye","Tiger Eye","Tiger Eye","Tiger Eye","Tiger Eye"]
[null,null,null,null,null,null,null,null,null,null,null,null,null,null,null,null,null,null,null,null,null,null,null,null,null,null,null,null,null,null,null,null,null,null,null,null,null,null,null,null,null,null,null,null,null,null,null,null,null,null,null,null,null,null,null,null,null,null,null,null,null,null,null,null,null,null,null,null,null,null,null,null,null,null,null,null,null,null,null,null,null,null,null,null,null,null,null,null,null,null,null,null,null,null,null,null,null,null,null,null,null,null,null,null,null,null,null,null,null,null,null,null,null,null,null,null,null,null,null,null,null,null,null,null,null,null,null,null,null,null,null,null,null,null,null,null,null,null,null,null,null,null,null,null,null,null,null,null,null,null,null,null,null,null,null,null,null,null,null,null,null,null,null,null,null,null,null,null,null,null,null,null,null,null,null,null,null,null,null,null,null,null,null,null,null,null,null,null,null,null,null,null,null,null,null,null,null,null,null,null,null,null,null,null,null,null,null,null,null,null,null,null,null,null,null,null,null,null,null,null,null,null,null,null,null,null,null,null,null,null,null,null,null,null,null,null,null,null,null,null,null,null,null,null,null,null,null,null,null,null,null,null,null,null,null,null,null,null,null,null,null,null,null,null,null,null,null,null,null,null,null,null,null,null,null,null,null,null,null,null,null,null,null,null,null,null,null,null,null,null,null,null,null,null,null,null,null,null,null,null,null,null,null,null,null,null,null,null,null,null,null,null,null,null,null,null,null,null,null,null,null,null,"Topaz","Topaz","Topaz","Topaz","Topaz","Topaz","Topaz","Topaz","Topaz","Topaz","Topaz","Topaz","Topaz","Topaz","Topaz","Topaz","Topaz","Topaz","Topaz","Topaz","Topaz","Topaz"]
[null,null,null,null,null,null,null,null,null,null,null,null,null,null,null,null,null,null,null,null,null,null,null,null,null,null,null,null,null,null,null,null,null,null,null,null,null,null,null,null,null,null,null,null,null,null,null,null,null,null,null,null,null,null,null,null,null,null,null,null,null,null,null,null,null,null,null,null,null,null,null,null,null,null,null,null,null,null,null,null,null,null,null,null,null,null,null,null,null,null,null,null,null,null,null,null,null,null,null,null,null,null,null,null,null,null,null,null,null,null,null,null,null,null,null,null,null,null,null,null,null,null,null,null,null,null,null,null,null,null,null,null,null,null,null,null,null,null,null,null,null,null,null,null,null,null,null,null,null,null,null,null,null,null,null,null,null,null,null,null,null,null,null,null,null,null,null,null,null,null,null,null,null,null,null,null,null,null,null,null,null,null,null,null,null,null,null,null,null,null,null,null,null,null,null,null,null,null,null,null,null,null,null,null,null,null,null,null,null,null,null,null,null,null,null,null,null,null,null,null,null,null,null,null,null,null,null,null,null,null,null,null,null,null,null,null,null,null,null,null,null,null,null,null,null,null,null,null,null,null,null,null,null,null,null,null,null,null,null,null,null,null,null,null,null,null,null,null,null,null,null,null,null,null,null,null,null,null,null,null,null,null,null,null,null,null,null,null,null,null,null,null,null,null,null,null,null,null,null,null,null,null,null,null,null,null,null,null,null,null,null,null,null,null,null,null,null,null,null,null,null,null,"Turquoise","Turquoise","Turquoise","Turquoise","Turquoise","Turquoise","Turquoise","Turquoise","Turquoise","Turquoise","Turquoise","Turquoise","Turquoise","Turquoise","Turquoise","Turquoise","Turquoise","Turquoise","Turquoise","Turquoise","Turquoise","Turquoise"]

{"sheet":"Configuration Data","index":2,"n_rows":678,"n_cols":28,"rows_kept":678,"cut":false,"hidden":false,"merged":[]}
["LengthUnits","WeightUnits","Boolean","HazMat","SAGGAUunits","GoldSilver","Gender","MaterialType","SetIndicator","Storage","MRP","ItemCatGroup","Valuation Class #","Valuation Class Name","ValuationClass","Program","Personalization Types","PPC","ListPrice","Flag","Size","MatlGroup","Analyst","SetUpAs","Family","MatDescrip2","CommDesc","CommCode"]
["CM","DWT","Yes","L0-LITH BAT-NO HAZ-Has Lith Battery -- NO HAZARD FOUND",0.1,"Gold","Male","PRIC","B","ARTS","M0","0001",3050," Raw Materials",{"$f":"CONCATENATE(M2,N2)","v":"3050 Raw Materials"},"Service","Laser Lite","1M","2017-08-01","Yes","1\"","L","Ana Paula Carneiro","New","A","11100 Purchased Accessories ","CRAB-KING/NOT COOKED OR PREPARED",306144010]
["DM","G","No","L1-UN3480, PI965-Lithium Ion Battery",1,"Silver","Female","PROD","BC","SDC","M1","0002",3100," Stones",{"$f":"CONCATENATE(M3,N3)","v":"3100 Stones"},"Performance","Printed","1MP","2016-08-01",null,"2\"","M","Becky Herron","Parent","B","11101 Pearl Accessories ","FOOD HONEY",409000025]
["FT","GR",null,"L2-UN3481, PI966-Lithium Ion WITH EQUIPMENT",null,null,null,"CH","BCE","UVC","M2","0004",3110," Accessories","3110 Accessories","Financial","Etched","1L0","2015-08-01",null,"3\"","N","Chris Nakaoka","Child","C","11103 In-Store Pick Up Gift Cards ","BULBS FLOWER",601200000]
["IN","KG",null,"L3-UN3481, PI967-Lithium Ion IN EQUIPMENT",null,null,null,"DIA","BE","THX","M3","0005",3120," Watches","3120 Watches","Both","Embossing","1S0",null,null,"4\"","S","Joey Martinez",null,"D","11104 Electronic Fulfillment Gift Cards ","Live Plant Other with roots",602909090]
["KM","LB",null,"L4-UN3090, PI968-Lithium Metal Battery",null,null,null,"EMB","CE","LV","M4","ALEN",3130," Merchandise","3130 Merchandise",null,"Embroidery","1J0",null,null,"5\"","W","John Dansie",null,"E","11105 Vault Gift Cards ","Cut Flowers Roses",603110060]
["M","MG",null,"L5-UN3091, PI969-Lithium Metal WITH EQUIPMENT",null,null,null,"FERT","COI","PS","ND","ALES",3140," Clocks","3140 Clocks",null,"Internal Etch","1P4",null,null,"6\"","EX","Lezlie Nelson",null,"F","11106 Electronically Fulfilled Award ","Cut Flowers Chrysanthemum",603140010]
["MI","OZ",null,"L6-UN3091, PI970-Lithium Metal IN EQUIPMENT",null,null,null,"FRIP","CRI","CON7","P1","BANC",3150," Custom Jewelry","3150 Custom Jewelry",null,"Surface Print","1P2",null,null,"7\"",null,"Marci Taylor",null,"G","11107 Cash Cards ","Cut Flowers Lilies",603190030]
["MM","PTS",null,"L7-LEAD ACID BATT-Lead Acid Battery",null,null,null,"HALB","CSI","GEN","P2","BANS",3160," Custom Merchandise","3160 Custom Merchandise",null,"Custom Cast","1P",null,null,"8\"",null,"Michelle Inglesby",null,"H","11108 Experience/Travel ","Cut Flowers Assorted",603900000]
["NAM","T",null,"N1-NON-LITH BATTER-Non Lithium Battery -- No HAZARD FOUND",null,null,null,"HAWA","EDC","SYN","P3","DIEN",3170," Custom Watches","3170 Custom Watches",null,null,"2D",null,null,"9\"",null,"Nikki Johnson",null,"I","11109 Food & Beverage ","MANGOES AND GUAVAS",804500000]
["YD","TON",null,"NO-NO HAZARD FOUND-No hazard found (jewelry, luggage, etc.)",null,null,null,"MDLY","EVT","SDSL","P4","ERLA",3180," Purchased Rings","3180 Purchased Rings",null,null,"2DL",null,null,"10\"",null,"Ruth McCune",null,"J","11194 Unset/Set Vendor Ring ","ORANGES",805100040]
["µM","TOZ",null,null,null,null,null,"METL","LIN",null,"PD","LEAS",3190," Packaging","3190 Packaging",null,null,"2G",null,null,"11\"",null,"Tammy Goulding",null,"K","11195 Pearl Vendor Rings ","APPLES",808100000]
[null,"VOU",null,null,null,null,null,"NLAG","MBE",null,"R1","LEER",3200," Vendor Emblems: Karat","3200 Vendor Emblems: Karat",null,null,"2G1",null,null,"12\"",null,"Tammy Wollam",null,"L","11200 Vendor Supplied Rings ","FOOD NUTS MIXED",813500040]
[null,null,null,null,null,null,null,"PROD","MRW",null,"R2","LEIC",3210," Vendor Emblems: Non-Karat","3210 Vendor Emblems: Non-Karat",null,null,"2S",null,null,"13\"",null,"Vicki Armitage",null,"M","11210 Unset Jewelry/Vendor Rings ","FOOD NUTS DRIED FRUIT MIXED",813500060]
[null,null,null,null,null,null,null,"PRT","OCI",null,"RE","LEIH",3220," Apparel","3220 Apparel",null,null,"2R",null,null,"14\"",null,"Wallace Ridley",null,"N","11300 Pens/Pencils ","FOOD COFFEE ROASTED NOT DECAF",901210000]
[null,null,null,null,null,null,null,"Raw Material","P",null,"RF","LEIS",3230," Gift Certificates & Cards","3230 Gift Certificates & Cards",null,null,"2R1",null,null,"15\"",null,"Marina Feukic",null,"O","11500 Vendor Supplied Emblems","FOOD COFFEE ROASTED DECAF",901220000]
[null,null,null,null,null,null,null,"RING","PC",null,"RP","LO01",3235," E-Gift Cards and Certific","3235 E-Gift Cards and Certific",null,null,"3H4",null,null,"16\"",null,"Derek Nielson",null,"P","12100 Certificates ","TURKEY MEALS, PREPARED",1602310020]
[null,null,null,null,null,null,null,"STCM","PCE",null,"RR","LO02",3240," Perishable Goods","3240 Perishable Goods",null,null,"3H2",null,null,"17\"",null,null,null,"Q","12150 Bundle & Service Charges","PORK MEAT, PRESERVED",1602494000]
[null,null,null,null,null,null,null,"UNBW","PDR",null,"RS","LO03",3250," Shaddy Access Codes","3250 Shaddy Access Codes",null,null,"3H0",null,null,"18\"",null,null,null,"R","12200 Custom Accessories ","FOOD CRAB DIP",1605104040]
[null,null,null,null,null,null,null,"ZDSN","PE",null,"V1","LO04",3260," Travel","3260 Travel",null,null,"3H1",null,null,"19\"",null,null,null,"S","12300 Custom Clocks ","FOOD SHRIMP DIP",1605201050]
[null,null,null,null,null,null,null,"ZMAT","R@W",null,"V2","LO06",3270," Health & Beauty","3270 Health & Beauty",null,null,"3K",null,null,"20\"",null,null,null,"T","12400 Custom Clothing ","FOOD CLAM DIP",1605901500]
[null,null,null,null,null,null,null,"ZNBW","S",null,"VB","LO08",3280," RS Concierge Shopping","3280 RS Concierge Shopping",null,null,"3S",null,null,"21\"",null,null,null,"U","12500 Custom Merchandise ","Candy not containing cocoa",1704903550]
[null,null,null,null,null,null,null,"Compatible Unit","SC",null,"VI","LO09",3300," Carrot Products & Books","3300 Carrot Products & Books",null,null,"3P2",null,null,"22\"",null,null,null,"V","12550 Custom Plaque ","FOOD CHOCOLATE/OTHER CANDY",1704907000]
[null,null,null,null,null,null,null,"Equipment Package","SCE",null,"VM","LO11",3310," Training Products & Books","3310 Training Products & Books",null,null,"3P0",null,null,"23\"",null,null,null,"W","12560 Bravo Envelope ","CHOCOLATE / BLOCKS - BARS",1806310040]
[null,null,null,null,null,null,null,null,"SE",null,"VS","LO12",null,null,null,null,null,"4M",null,null,"24\"",null,null,null,"X","12561 Bravo Showcase ","Chocolate bars",1806310049]
[null,null,null,null,null,null,null,null,"STH",null,"VV","LO13",null,null,null,null,null,"4ML",null,null,"25\"",null,null,null,"Y","12562 Bravo Celebrate ","Assorted Chocolates",1806909019]
[null,null,null,null,null,null,null,null,"THX",null,"X0","LO14",null,null,null,null,null,"4MN",null,null,"26\"",null,null,null,"Z","12563 Bravo Connect ","FOOD COOKIE DOUGH OR MIX",1901200005]
[null,null,null,null,null,null,null,null,"VAL",null,"Z1","LO16",null,null,null,null,null,"4E0",null,null,"27\"",null,null,null,"AA","12564 Bravo Shadowbox ","Pasta packaged w/Sauce preparations",1902114000]
[null,null,null,null,null,null,null,null,"NTI",null,"Z2","LO18",null,null,null,null,null,"4J0",null,null,"28\"",null,null,null,"AB","12565 Bravo Tribute ","Cookies",1905310049]
[null,null,null,null,null,null,null,null,null,null,"ZF","LO19",null,null,null,null,null,"4P",null,null,"29\"",null,null,null,"AC","12566 Bravo Keepsake ","FOOD PASTRY CAKES SWEET PRODUCT",1905901050]
[null,null,null,null,null,null,null,null,null,null,"ZG","LUMF",null,null,null,null,null,"4PS",null,null,"30\"",null,null,null,"AD","12600 Custom Table Top ","FOOD CHIPS/SNACKS",1905909030]
[null,null,null,null,null,null,null,null,null,null,null,"NLAG",null,null,null,null,null,"5C0",null,null,"31\"",null,null,null,"AE","12700 Custom Watches ","FOOD OLIVES PRESERVED",2005700000]
[null,null,null,null,null,null,null,null,null,null,null,"NORM",null,null,null,null,null,"5M8",null,null,"32\"",null,null,null,"AF","12750 Framed Certificates ","FOOD SAUCES OR PREP FOR",2103909090]
[null,null,null,null,null,null,null,null,null,null,null,"SAMM",null,null,null,null,null,"5M6",null,null,"33\"",null,null,null,"AG","12800 Non-Tanner Item ","FOOD HERBAL TEAS",2106906587]
[null,null,null,null,null,null,null,null,null,null,null,"VCIT",null,null,null,null,null,"5M4",null,null,"34\"",null,null,null,"AH","12801 Distribution Center Item ","Antacids",3004909155]
[null,null,null,null,null,null,null,null,null,null,null,"VERP",null,null,null,null,null,"5MH",null,null,"35\"",null,null,null,"AI","12810 Miscellaneous Candy ","First-aid Boxes And Kits",3006500000]
[null,null,null,null,null,null,null,null,null,null,null,"VOLL",null,null,null,null,null,"5M0",null,null,"36\"",null,null,null,"AJ","12840 Trophies Die Struck ","Essential Oils",3301290000]
[null,null,null,null,null,null,null,null,null,null,null,"WERT",null,null,null,null,null,"5ML",null,null,"37\"",null,null,null,"AK","12845 Trophies Aluminum Complex ","Perfumes and Toilet waters",3303000000]
[null,null,null,null,null,null,null,null,null,null,null,"WMPP",null,null,null,null,null,"5MS",null,null,"38\"",null,null,null,"AL","12850 Trophies Aluminum ","Eye Make Up",3304200000]
[null,null,null,null,null,null,null,null,null,null,null,"Z002",null,null,null,null,null,"5W2",null,null,"39\"",null,null,null,"AM","12855 Cast Awards ","Skin Care Creams",3304990000]
[null,null,null,null,null,null,null,null,null,null,null,"ZANS",null,null,null,null,null,"5W0",null,null,"40\"",null,null,null,"AN","12860 Trophies Acrylic ","Pre shave and after shave preparations",3307100000]
[null,null,null,null,null,null,null,null,null,null,null,"ZBOM",null,null,null,null,null,"5WS",null,null,"41\"",null,null,null,"AO","12865 Cast Rings (Non Awards) ","SOAP BODY",3401300000]
[null,null,null,null,null,null,null,null,null,null,null,"ZDCB",null,null,null,null,null,"6B",null,null,"42\"",null,null,null,"AP","12900 New Material group for JITT cards, etc. ","SOAP BODY",3402205100]
[null,null,null,null,null,null,null,null,null,null,null,"ZDCI",null,null,null,null,null,"6BP",null,null,"43\"",null,null,null,"AQ","13100 Clocks ","Floor Coverings of Platics whether or",3918901000]
[null,null,null,null,null,null,null,null,null,null,null,"ZDIA",null,null,null,null,null,"6C0",null,null,"44\"",null,null,null,"AR","13200 Watches ","Plastic tape other",3919905060]
[null,null,null,null,null,null,null,null,null,null,null,"ZEST",null,null,null,null,null,"6M",null,null,"45\"",null,null,null,"AS","13250 Watches Integrated Product ","Acrylic plates, sheets, film - other",3920515000]
[null,null,null,null,null,null,null,null,null,null,null,"ZFND",null,null,null,null,null,"6P4",null,null,"46\"",null,null,null,"AT","13400 Table Top ","COOLERS",3923100000]
[null,null,null,null,null,null,null,null,null,null,null,"ZMDP",null,null,null,null,null,"6P2",null,null,"47\"",null,null,null,"AU","13401 Table Top Prop 65 Designation ","THERMOS, BOTTLES, FLASKS OF PLASTIC",3923300000]
[null,null,null,null,null,null,null,null,null,null,null,"ZMFG",null,null,null,null,null,"6P",null,null,"48\"",null,null,null,"AV","14000 Knives Small Accessory Items ","PLASTIC PACKAGING ARTICLES OTHER",3923900000]
[null,null,null,null,null,null,null,null,null,null,null,"ZNBW",null,null,null,null,null,"6P1",null,null,"49\"",null,null,null,"AW","14500 Knives, Large Hunting and Recreation ","Kitchen Plastic Containers",3924104000]
[null,null,null,null,null,null,null,null,null,null,null,"ZNDL",null,null,null,null,null,"6CT",null,null,"50\"",null,null,null,"AX","15100 Electronics ","PICTURE FRAME PLASTIC",3924902000]
[null,null,null,null,null,null,null,null,null,null,null,"ZNON",null,null,null,null,null,"6W",null,null,"+51\"",null,null,null,"AY","15101 Audio ","HOUSEHOLD ARTICLES PLASTIC",3924905500]
[null,null,null,null,null,null,null,null,null,null,null,"ZOPN",null,null,null,null,null,"7C",null,null,"LARGE",null,null,null,"AZ","15102 TV ","Gates for confining children or pets",3924905610]
[null,null,null,null,null,null,null,null,null,null,null,"ZPAR",null,null,null,null,null,"7FE",null,null,"MEDIUM",null,null,null,null,"15103 Electronic Gadgets ","Office Product of Plastic",3926100000]
[null,null,null,null,null,null,null,null,null,null,null,"ZPNT",null,null,null,null,null,"7FG",null,null,"RING SIZE 8",null,null,null,null,"15104 Media ","APPAREL-CLOTHING PLASTIC",3926205000]
[null,null,null,null,null,null,null,null,null,null,null,"ZPRC",null,null,null,null,null,"7FH",null,null,"RING SIZE 8.5",null,null,null,null,"15200 Cameras/Optics ","Do Not Use Update to valid number",3926400000]
[null,null,null,null,null,null,null,null,null,null,null,"ZPRS",null,null,null,null,null,"7FJ",null,null,"RING SIZE 9",null,null,null,null,"15201 Cameras ","STATUES-ORNAMENTS PLASTIC",3926400090]
[null,null,null,null,null,null,null,null,null,null,null,"ZPSE",null,null,null,null,null,"7FK",null,null,"RING SIZE 9.5",null,null,null,null,"15202 Optics ","polyurethane wallet/checkbook cover",3926903500]
[null,null,null,null,null,null,null,null,null,null,null,"ZSAL",null,null,null,null,null,"7FM",null,null,"RING SIZE 10",null,null,null,null,"15300 Luggage/Bags ","GEMSTONES IMITATION",3926904000]
[null,null,null,null,null,null,null,null,null,null,null,"ZSTN",null,null,null,null,null,"7FP",null,null,"RING SIZE 10.5",null,null,null,null,"15301 Necklace ","PLASTIC INFLATABLE ARTICLES OTHER",3926907500]
[null,null,null,null,null,null,null,null,null,null,null,"ZTAW",null,null,null,null,null,"7FR",null,null,"RING SIZE 11",null,null,null,null,"15302 Bracelet ","Do Not Use - Update to valid number",3926909400]
[null,null,null,null,null,null,null,null,null,null,null,"ZTR",null,null,null,null,null,"7F1",null,null,"RING SIZE 11.5",null,null,null,null,"15303 Earring ","Do Not Use Update to valid number",3926909887]
[null,null,null,null,null,null,null,null,null,null,null,null,null,null,null,null,null,"7F2",null,null,"RING SIZE 12",null,null,null,null,"15304 Other Jewelry ","Other Plastic Articles -Velveteen Pouch",3926909980]
[null,null,null,null,null,null,null,null,null,null,null,null,null,null,null,null,null,"7F3",null,null,"RING SIZE 12.5",null,null,null,null,"15305 Handbags ","Other Articles of plastic, other, other",3926909996]
[null,null,null,null,null,null,null,null,null,null,null,null,null,null,null,null,null,"7F4",null,null,"RING SIZE 13",null,null,null,null,"15306 Sun glasses ","RUBBER INFLATABLE ARICTLES OTHER",4016950000]
[null,null,null,null,null,null,null,null,null,null,null,null,null,null,null,null,null,"7F5",null,null,"RING SIZE 13.5",null,null,null,null,"15307 Fragrances/Beauty Products","SUITCASES/TRUNKS OF LEATHER",4202110000]
[null,null,null,null,null,null,null,null,null,null,null,null,null,null,null,null,null,"7F6",null,null,"RING SIZE 14",null,null,null,null,"15308 Rings ","Suitcase or Briefcase of Textile",4202110090]
[null,null,null,null,null,null,null,null,null,null,null,null,null,null,null,null,null,"7F7",null,null,"RING SIZE 14.5",null,null,null,null,"15309 Luggage Sets ","SUITCASE PLASTIC OR TEXTILES-",4202120000]
[null,null,null,null,null,null,null,null,null,null,null,null,null,null,null,null,null,"7F8",null,null,"LARGER THAN SIZE 15",null,null,null,null,"15310 Luggage Individual ","SUITCASE PLASTIC OR TEXTILES",4202122020]
[null,null,null,null,null,null,null,null,null,null,null,null,null,null,null,null,null,"7R",null,null,"SMALLER THAN SIZE 4",null,null,null,null,"15350 Luggage Tags ","Cases and Insulated Cases Manmade Fiber",4202122150]
[null,null,null,null,null,null,null,null,null,null,null,null,null,null,null,null,null,"7S",null,null,"RING SIZE 4",null,null,null,null,"15400 Merchandise ","Bag/Satchel of man made textile-",4202128030]
[null,null,null,null,null,null,null,null,null,null,null,null,null,null,null,null,null,"7S1F",null,null,"RING SIZE 4.5",null,null,null,null,"15401 Cookware ","Bag/Satchel of man made textile",4202128170]
[null,null,null,null,null,null,null,null,null,null,null,null,null,null,null,null,null,"7S1",null,null,"RING SIZE  5",null,null,null,null,"15402 Kitchen Electrics ","SUITCASES CONTAINERS OTHER",4202190000]
[null,null,null,null,null,null,null,null,null,null,null,null,null,null,null,null,null,"7T1",null,null,"RING SIZE  5.5",null,null,null,null,"15403 Home ","HANDBAGS OF LEATHER",4202210000]
[null,null,null,null,null,null,null,null,null,null,null,null,null,null,null,null,null,"8H4",null,null,"RING SIZE 6",null,null,null,null,"15404 Home Décor ","HANDBAGS PLASTIC OR TEXTILES",4202220000]
[null,null,null,null,null,null,null,null,null,null,null,null,null,null,null,null,null,"8H2",null,null,"RING SIZE 6.5",null,null,null,null,"15405 Crystal ","HANDBAGS OF OTHER MATERIALS",4202290000]
[null,null,null,null,null,null,null,null,null,null,null,null,null,null,null,null,null,"8H0",null,null,"RING SIZE 7",null,null,null,null,"15406 Dinnerware ","LEATHER ITEM CARRIED IN POCKET-",4202310000]
[null,null,null,null,null,null,null,null,null,null,null,null,null,null,null,null,null,"9H1",null,null,"RING SIZE 7.5",null,null,null,null,"15407 Camping ","LEATHER ITEM CARRIED IN POCKET",4202316000]
[null,null,null,null,null,null,null,null,null,null,null,null,null,null,null,null,null,"9H0",null,null,"SMALL",null,null,null,null,"15408 Fishing ","PLASTIC/TEXTILE ITEM FOR POCKET-",4202320000]
[null,null,null,null,null,null,null,null,null,null,null,null,null,null,null,null,null,"INT2",null,null,"X-LARGE",null,null,null,null,"15409 Golf ","PLASTIC/TEXTILE ITEM FOR POCKET",4202329560]
[null,null,null,null,null,null,null,null,null,null,null,null,null,null,null,null,null,"INT0",null,null,"X-SMALL",null,null,null,null,"15410 Fitness ","OTHER ITEM CARRIED IN POCKET-",4202390000]
[null,null,null,null,null,null,null,null,null,null,null,null,null,null,null,null,null,"HV0",null,null,"XX-LARGE",null,null,null,null,"15411 Back Yard ","OTHER ITEM CARRIED IN POCKET",4202399000]
[null,null,null,null,null,null,null,null,null,null,null,null,null,null,null,null,null,"CORE0",null,null,"XXX-LARGE",null,null,null,null,"15412 Sports & Games ","GOLF BAGS LEATHER",4202910010]
[null,null,null,null,null,null,null,null,null,null,null,null,null,null,null,null,null,"L0",null,null,"XXXX-LARGE",null,null,null,null,"15413 Recreation & Leisure Miscellaneous ","BAGS OTHER LEATHER",4202910040]
[null,null,null,null,null,null,null,null,null,null,null,null,null,null,null,null,null,"LD",null,null,"XX-SMALL",null,null,null,null,"15414 Hand Tools ","CONTAINER OTHER LEATHER OTHER",4202910090]
[null,null,null,null,null,null,null,null,null,null,null,null,null,null,null,null,null,null,null,null,null,null,null,null,null,"15415 Power Tools ","Hydration Pack",4202920400]
[null,null,null,null,null,null,null,null,null,null,null,null,null,null,null,null,null,null,null,null,null,null,null,null,null,"15416 Food Items (Thanks) ","BAG INSULATED PLASTIC/LEATHER-",4202920500]
[null,null,null,null,null,null,null,null,null,null,null,null,null,null,null,null,null,null,null,null,null,null,null,null,null,"15450 Apparel ","Insulated food cooler - plastic textile",4202920807]
[null,null,null,null,null,null,null,null,null,null,null,null,null,null,null,null,null,null,null,null,null,null,null,null,null,"15500 Findings ","Travel Bags Other",4202922000]
[null,null,null,null,null,null,null,null,null,null,null,null,null,null,null,null,null,null,null,null,null,null,null,null,null,"15600 Engraving Plates ","BACKPACK OF MAN-MADE FIBERS OBS",4202923020]
[null,null,null,null,null,null,null,null,null,null,null,null,null,null,null,null,null,null,null,null,null,null,null,null,null,"16000 Service Charge ","BAG INSULATED PLATIC/LEATHER-",4202923091]
[null,null,null,null,null,null,null,null,null,null,null,null,null,null,null,null,null,null,null,null,null,null,null,null,null,"16100 Set Component ","Backpack Man Made Material",4202923120]
[null,null,null,null,null,null,null,null,null,null,null,null,null,null,null,null,null,null,null,null,null,null,null,null,null,"17000 Non-Stock Material ","Travel, Sport, Other Bags man made fiber",4202923131]
[null,null,null,null,null,null,null,null,null,null,null,null,null,null,null,null,null,null,null,null,null,null,null,null,null,"17097 Admin Type Materials, mapped to config class 40 ","CONTAINER OTHER PLASTIC/TEXTILE",4202927000]
[null,null,null,null,null,null,null,null,null,null,null,null,null,null,null,null,null,null,null,null,null,null,null,null,null,"17098 Admin Option Materials, mapped to config class 41 ","BAGS/CASES OTHER MATERIAL",4202990000]
[null,null,null,null,null,null,null,null,null,null,null,null,null,null,null,null,null,null,null,null,null,null,null,null,null,"17099 Default group for config class \"99\" ","plastic clamshell jewelry box",4202991000]
[null,null,null,null,null,null,null,null,null,null,null,null,null,null,null,null,null,null,null,null,null,null,null,null,null,"17100 Factory Outlet - Buy to Sell ","Bags/Cases Other Material",4202995000]
[null,null,null,null,null,null,null,null,null,null,null,null,null,null,null,null,null,null,null,null,null,null,null,null,null,"19000 Purchased Crowns ","LEATHER JACKETS NOT REPTILE LEATHER",4203100010]
[null,null,null,null,null,null,null,null,null,null,null,null,null,null,null,null,null,null,null,null,null,null,null,null,null,"20000 Beads ","LEATHER APPAREL OTHER",4203100090]
[null,null,null,null,null,null,null,null,null,null,null,null,null,null,null,null,null,null,null,null,null,null,null,null,null,"21000 Diamonds ","CLOTHING ACCESSORIES LEATHER",4203400000]
[null,null,null,null,null,null,null,null,null,null,null,null,null,null,null,null,null,null,null,null,null,null,null,null,null,"23000 Gold, Karat ","LEATHER ITEMS - OTHER",4205000000]
[null,null,null,null,null,null,null,null,null,null,null,null,null,null,null,null,null,null,null,null,null,null,null,null,null,"23100 Gold, Non-Karat ","ARTICLES OF LEATHER OTHER NOT REPTILE",4205008000]
[null,null,null,null,null,null,null,null,null,null,null,null,null,null,null,null,null,null,null,null,null,null,null,null,null,"23200 Plating ","FRAME PICTURE OF WOOD",4414000000]
[null,null,null,null,null,null,null,null,null,null,null,null,null,null,null,null,null,null,null,null,null,null,null,null,null,"23300 Floor Stock Metals ","TABLEWARE WOOD",4419000000]
[null,null,null,null,null,null,null,null,null,null,null,null,null,null,null,null,null,null,null,null,null,null,null,null,null,"24000 Stones, Genuine ","STATUES-ORNAMENTS WOOD",4420100000]
[null,null,null,null,null,null,null,null,null,null,null,null,null,null,null,null,null,null,null,null,null,null,null,null,null,"24100 Stones, Synthetic ","Wood Jewely Box Lined w/ Textile Fabrics",4420906500]
[null,null,null,null,null,null,null,null,null,null,null,null,null,null,null,null,null,null,null,null,null,null,null,null,null,"24200 Stones, Ring ","CHESTS WOOD JEWELRY/SILVERWARE",4420907000]
[null,null,null,null,null,null,null,null,null,null,null,null,null,null,null,null,null,null,null,null,null,null,null,null,null,"30000 Packaging ","WOOD BASE",4420908000]
[null,null,null,null,null,null,null,null,null,null,null,null,null,null,null,null,null,null,null,null,null,null,null,null,null,"31000 Custom Packaging ","WOOD ITEMS OTHER",4421909750]
[null,null,null,null,null,null,null,null,null,null,null,null,null,null,null,null,null,null,null,null,null,null,null,null,null,"32000 Gift Wrap ","Wicker Basket",4602191700]
[null,null,null,null,null,null,null,null,null,null,null,null,null,null,null,null,null,null,null,null,null,null,null,null,null,"34000 Other Bundle Charges ","Gift Wrap",4810310000]
[null,null,null,null,null,null,null,null,null,null,null,null,null,null,null,null,null,null,null,null,null,null,null,null,null,"34100 Brochure Setup Fees ","GIFT WRAP",4810311050]
[null,null,null,null,null,null,null,null,null,null,null,null,null,null,null,null,null,null,null,null,null,null,null,null,null,"34200 OCI Setup Fees ","PAPER STATIONERY",4816200000]
[null,null,null,null,null,null,null,null,null,null,null,null,null,null,null,null,null,null,null,null,null,null,null,null,null,"34300 Under Min Surcharge ","ENVELOPES",4817100000]
[null,null,null,null,null,null,null,null,null,null,null,null,null,null,null,null,null,null,null,null,null,null,null,null,null,"34400 Non Warranty Repair ","STATIONARY OR POSTCARDS",4817200000]
[null,null,null,null,null,null,null,null,null,null,null,null,null,null,null,null,null,null,null,null,null,null,null,null,null,"34500 French Language Enablement ","PAPER STATIONERY",4817300000]
[null,null,null,null,null,null,null,null,null,null,null,null,null,null,null,null,null,null,null,null,null,null,null,null,null,"34501 Spanish Language Enablement ","Non-Corrugated Box",4819200040]
[null,null,null,null,null,null,null,null,null,null,null,null,null,null,null,null,null,null,null,null,null,null,null,null,null,"34502 English (England) Language Enablement ","Rigid Box or Carton (Presentation Box)",4819504040]
[null,null,null,null,null,null,null,null,null,null,null,null,null,null,null,null,null,null,null,null,null,null,null,null,null,"34503 French (France) Language Enablement ","Presentation Box Sleeve",4819504060]
[null,null,null,null,null,null,null,null,null,null,null,null,null,null,null,null,null,null,null,null,null,null,null,null,null,"34504 Spanish (Spain) Language Enablement ","NOTEBOOK RULED",4820100000]
[null,null,null,null,null,null,null,null,null,null,null,null,null,null,null,null,null,null,null,null,null,null,null,null,null,"34505 Portuguese (Portugal) Language Enablement ","Portfolio, memo pad, binder",4820102020]
[null,null,null,null,null,null,null,null,null,null,null,null,null,null,null,null,null,null,null,null,null,null,null,null,null,"34506 Italian (Italy) Language Enablement ","BINDERS PAPER",4820300020]
[null,null,null,null,null,null,null,null,null,null,null,null,null,null,null,null,null,null,null,null,null,null,null,null,null,"34507 German (Germany) Language Enablement ","BINDERS/FOLDERS OTHER",4820300040]
[null,null,null,null,null,null,null,null,null,null,null,null,null,null,null,null,null,null,null,null,null,null,null,null,null,"34508 Dutch (Netherlands) Language Enablement ","PAPER LABELS",4821100000]
[null,null,null,null,null,null,null,null,null,null,null,null,null,null,null,null,null,null,null,null,null,null,null,null,null,"34509 Arabic Language Enablement ","SINGLE SHEET BROCHURES/BOOKS",4901100000]
[null,null,null,null,null,null,null,null,null,null,null,null,null,null,null,null,null,null,null,null,null,null,null,null,null,"34510 Finnish Language Enablement ","BOOKS HARDBOUND",4901990070]
[null,null,null,null,null,null,null,null,null,null,null,null,null,null,null,null,null,null,null,null,null,null,null,null,null,"34511 Chinese Traditional Language Enablement ","BOOKS PAPERBOUND",4901990075]
[null,null,null,null,null,null,null,null,null,null,null,null,null,null,null,null,null,null,null,null,null,null,null,null,null,"34512 Czech Language Enablement ","PRINTED MATTER OTHER 4 PGS",4901990091]
[null,null,null,null,null,null,null,null,null,null,null,null,null,null,null,null,null,null,null,null,null,null,null,null,null,"34513 Danish Language Enablement ","PRINTED MATTER OTHER 5-48 PGS",4901990092]
[null,null,null,null,null,null,null,null,null,null,null,null,null,null,null,null,null,null,null,null,null,null,null,null,null,"34514 Chinese Simplified Language Enablement ","PRINTED MATTER OTHER 49+ PAGES",4901990093]
[null,null,null,null,null,null,null,null,null,null,null,null,null,null,null,null,null,null,null,null,null,null,null,null,null,"34515 Greek Language Enablement ","GLOBES PRINTED",4905100000]
[null,null,null,null,null,null,null,null,null,null,null,null,null,null,null,null,null,null,null,null,null,null,null,null,null,"34516 Hungarian Language Enablement ","GIFT CERTIFICATE",4907000000]
[null,null,null,null,null,null,null,null,null,null,null,null,null,null,null,null,null,null,null,null,null,null,null,null,null,"34517 Japanese Language Enablement ","CARDS, POSTCARDS W GREETING",4909004040]
[null,null,null,null,null,null,null,null,null,null,null,null,null,null,null,null,null,null,null,null,null,null,null,null,null,"34518 Korean Language Enablement ","CATALOGS PRINTED-",4911100050]
[null,null,null,null,null,null,null,null,null,null,null,null,null,null,null,null,null,null,null,null,null,null,null,null,null,"34519 Norwegian Language Enablement ","CATALOGS PRINTED",4911100080]
[null,null,null,null,null,null,null,null,null,null,null,null,null,null,null,null,null,null,null,null,null,null,null,null,null,"34520 Polish Language Enablement ","POSTERS PRINTED",4911910020]
[null,null,null,null,null,null,null,null,null,null,null,null,null,null,null,null,null,null,null,null,null,null,null,null,null,"34521 Portugese (Brazilian) Language Enablement ","PICTURES/PHOTOS-PRINTED OTHER",4911910040]
[null,null,null,null,null,null,null,null,null,null,null,null,null,null,null,null,null,null,null,null,null,null,null,null,null,"34522 Romanian Language Enablement ","PRINTED MATTER OTHER",4911990000]
[null,null,null,null,null,null,null,null,null,null,null,null,null,null,null,null,null,null,null,null,null,null,null,null,null,"34523 Russian Language Enablement ","OBSOLETE DO NOT USE",5205005000]
[null,null,null,null,null,null,null,null,null,null,null,null,null,null,null,null,null,null,null,null,null,null,null,null,null,"34524 Slovakian Language Enablement ","Printed woven nylon fabric",5516140025]
[null,null,null,null,null,null,null,null,null,null,null,null,null,null,null,null,null,null,null,null,null,null,null,null,null,"34525 Slovenian Language Enablement ","Felt Fabric",5602109090]
[null,null,null,null,null,null,null,null,null,null,null,null,null,null,null,null,null,null,null,null,null,null,null,null,null,"34526 Swedish Language Enablement ","LANYARDS",5607490000]
[null,null,null,null,null,null,null,null,null,null,null,null,null,null,null,null,null,null,null,null,null,null,null,null,null,"34527 Thai Language Enablement ","Nylon Climbing Rope",5607504000]
[null,null,null,null,null,null,null,null,null,null,null,null,null,null,null,null,null,null,null,null,null,null,null,null,null,"34528 Turkish Language Enablement ","Cotton Hammocks",5608902300]
[null,null,null,null,null,null,null,null,null,null,null,null,null,null,null,null,null,null,null,null,null,null,null,null,null,"34529 Vietnamese Language Enablement ","Gift Wrap Ribbon",5806320000]
[null,null,null,null,null,null,null,null,null,null,null,null,null,null,null,null,null,null,null,null,null,null,null,null,null,"35000 Perionalization Charge ","Nylon Gift Wrap Ribbon",5806321060]
[null,null,null,null,null,null,null,null,null,null,null,null,null,null,null,null,null,null,null,null,null,null,null,null,null,"35500 Order Fulfillment Fees ","Label/Badge of textile - Other-",5807102000]
[null,null,null,null,null,null,null,null,null,null,null,null,null,null,null,null,null,null,null,null,null,null,null,null,null,"35600 Subscription Fees ","LABEL/BADGE OF TEXTILE - OTHER",5807901500]
[null,null,null,null,null,null,null,null,null,null,null,null,null,null,null,null,null,null,null,null,null,null,null,null,null,"35700 License Fees ","EMBROIDERED NAME BADGE-",5810920000]
[null,null,null,null,null,null,null,null,null,null,null,null,null,null,null,null,null,null,null,null,null,null,null,null,null,"35800 One Time Fees ","Badge, Emblems, and Motifs",5810921000]
[null,null,null,null,null,null,null,null,null,null,null,null,null,null,null,null,null,null,null,null,null,null,null,null,null,"36000 Pricing Ring Stone Charge ","COATS MENS COTTON",6101200000]
[null,null,null,null,null,null,null,null,null,null,null,null,null,null,null,null,null,null,null,null,null,null,null,null,null,"36400 Retail Store Jewelry ","COATS MENS MANMADE FIBERS",6101300000]
[null,null,null,null,null,null,null,null,null,null,null,null,null,null,null,null,null,null,null,null,null,null,null,null,null,"36500 Retail Store Watches ","COATS MENS OTHER TEXTILES",6101900000]
[null,null,null,null,null,null,null,null,null,null,null,null,null,null,null,null,null,null,null,null,null,null,null,null,null,"36600 Retail Store Christmas ","COATS WOMENS COTTON",6102200000]
[null,null,null,null,null,null,null,null,null,null,null,null,null,null,null,null,null,null,null,null,null,null,null,null,null,"36800 Retail Store Merch ","COATS WOMENS MANMADE FIBERS",6102300000]
[null,null,null,null,null,null,null,null,null,null,null,null,null,null,null,null,null,null,null,null,null,null,null,null,null,"37000 Enameling Price ","COATS WOMENS OTHER TEXTILES",6102900000]
[null,null,null,null,null,null,null,null,null,null,null,null,null,null,null,null,null,null,null,null,null,null,null,null,null,"40000 Brochures ","Wool Or Fine animal hair sweater",6103290000]
[null,null,null,null,null,null,null,null,null,null,null,null,null,null,null,null,null,null,null,null,null,null,null,null,null,"41000 Brochure Certificates ","SHIRTS MENS COTTON",6105100000]
[null,null,null,null,null,null,null,null,null,null,null,null,null,null,null,null,null,null,null,null,null,null,null,null,null,"44000 Sizers ","SHIRTS MENS MANMADE FIBERS",6105200000]
[null,null,null,null,null,null,null,null,null,null,null,null,null,null,null,null,null,null,null,null,null,null,null,null,null,"46000 Awards ","SHIRTS MENS OTHER TEXTILES",6105900000]
[null,null,null,null,null,null,null,null,null,null,null,null,null,null,null,null,null,null,null,null,null,null,null,null,null,"47000 Solicit Matrix Matls","SHIRTS WOMENS COTTON",6106100000]
[null,null,null,null,null,null,null,null,null,null,null,null,null,null,null,null,null,null,null,null,null,null,null,null,null,"50000 PRTS ","SHIRTS WOMENS MANMADE FIBERS",6106200000]
[null,null,null,null,null,null,null,null,null,null,null,null,null,null,null,null,null,null,null,null,null,null,null,null,null,"60000 Emblems, OC Tanner Manufactured ","SHIRTS WOMENS OTHER TEXTILES",6106900000]
[null,null,null,null,null,null,null,null,null,null,null,null,null,null,null,null,null,null,null,null,null,null,null,null,null,"61000 Rings, OC Tanner Manufactured ","T-SHIRTS WOMENS COTTON",6109100042]
[null,null,null,null,null,null,null,null,null,null,null,null,null,null,null,null,null,null,null,null,null,null,null,null,null,"62000 HALB Component ","T-SHIRTS MENS COTTON",6109901008]
[null,null,null,null,null,null,null,null,null,null,null,null,null,null,null,null,null,null,null,null,null,null,null,null,null,"63000 HALB-Personalized ","MEN'S OR BOYS' ARTICLES MANMADE",6109901049]
[null,null,null,null,null,null,null,null,null,null,null,null,null,null,null,null,null,null,null,null,null,null,null,null,null,"64000 HALB-Jeweled ","T-SHIRTS WOMENS MANMADE FIBERS",6109901055]
[null,null,null,null,null,null,null,null,null,null,null,null,null,null,null,null,null,null,null,null,null,null,null,null,null,"65000 HALB-Inlayed and Personalized ","WOMEN'S OR GIRLS' ARTICLES",6109901075]
[null,null,null,null,null,null,null,null,null,null,null,null,null,null,null,null,null,null,null,null,null,null,null,null,null,"66000 HALB-Jeweled and Personalized ","MEN'S OR BOY'S PULLOVERS, SWEATSHIRTS",6110900092]
[null,null,null,null,null,null,null,null,null,null,null,null,null,null,null,null,null,null,null,null,null,null,null,null,null,"67000 HALB-Plaque ","GARMENTS OTHER COTTON",6114200000]
[null,null,null,null,null,null,null,null,null,null,null,null,null,null,null,null,null,null,null,null,null,null,null,null,null,"70000 Samples ","GARMENTS OTHER MANMADE FIBERS",6114300000]
[null,null,null,null,null,null,null,null,null,null,null,null,null,null,null,null,null,null,null,null,null,null,null,null,null,"80000 OCT KMAT ","GARMENTS OTHER-OTHER TEXTILES",6114900000]
[null,null,null,null,null,null,null,null,null,null,null,null,null,null,null,null,null,null,null,null,null,null,null,null,null,"81000 Cast Product ","Cotton Socks",6115959000]
[null,null,null,null,null,null,null,null,null,null,null,null,null,null,null,null,null,null,null,null,null,null,null,null,null,"90000 Fixed Asset ",null,6201110000]
[null,null,null,null,null,null,null,null,null,null,null,null,null,null,null,null,null,null,null,null,null,null,null,null,null,null,"MENS OVERCOAT OF COTTON",6201123000]
[null,null,null,null,null,null,null,null,null,null,null,null,null,null,null,null,null,null,null,null,null,null,null,null,null,null,"MENS OVERCOAT MANMADE FIBER",6201135000]
[null,null,null,null,null,null,null,null,null,null,null,null,null,null,null,null,null,null,null,null,null,null,null,null,null,null,"MENS OVERCOATS, JACKETS OF OTHER TEXTILE",6201190000]
[null,null,null,null,null,null,null,null,null,null,null,null,null,null,null,null,null,null,null,null,null,null,null,null,null,null,"WOMENS OVERCOAT OF COTTON",6202122015]
[null,null,null,null,null,null,null,null,null,null,null,null,null,null,null,null,null,null,null,null,null,null,null,null,null,null,"WOMENS OVERCOAT MANMADE FIBER",6202135000]
[null,null,null,null,null,null,null,null,null,null,null,null,null,null,null,null,null,null,null,null,null,null,null,null,null,null,"WOMEN OVERCOAT, JACKET OF OTHER TEXTILE",6202190000]
[null,null,null,null,null,null,null,null,null,null,null,null,null,null,null,null,null,null,null,null,null,null,null,null,null,null,"SHIRTS MENS DRESS COTTON",6205202022]
[null,null,null,null,null,null,null,null,null,null,null,null,null,null,null,null,null,null,null,null,null,null,null,null,null,null,"MENS DRESS SHIRTS MANMADE FBR",6205302035]
[null,null,null,null,null,null,null,null,null,null,null,null,null,null,null,null,null,null,null,null,null,null,null,null,null,null,"MENS SHIRT OTHER MANMADE",6205302085]
[null,null,null,null,null,null,null,null,null,null,null,null,null,null,null,null,null,null,null,null,null,null,null,null,null,null,"MENS DRESS SHIRTS OTHER TEXTILE",6205909000]
[null,null,null,null,null,null,null,null,null,null,null,null,null,null,null,null,null,null,null,null,null,null,null,null,null,null,"WOMENS DRESS SHIRT OF COTTON",6206300000]
[null,null,null,null,null,null,null,null,null,null,null,null,null,null,null,null,null,null,null,null,null,null,null,null,null,null,"WOMEN DRESS SHIRT MANMADE FBR",6206400000]
[null,null,null,null,null,null,null,null,null,null,null,null,null,null,null,null,null,null,null,null,null,null,null,null,null,null,"WOMEN DRESS SHIRT OTHR TXTILE",6206900000]
[null,null,null,null,null,null,null,null,null,null,null,null,null,null,null,null,null,null,null,null,null,null,null,null,null,null,"MENS SHIRT OTHER COTTON",6207913000]
[null,null,null,null,null,null,null,null,null,null,null,null,null,null,null,null,null,null,null,null,null,null,null,null,null,null,"WOMENS SHIRT OTHER COTTON",6208913000]
[null,null,null,null,null,null,null,null,null,null,null,null,null,null,null,null,null,null,null,null,null,null,null,null,null,null,"WOMENS OTHER SHIRT MANMADE",6208920035]
[null,null,null,null,null,null,null,null,null,null,null,null,null,null,null,null,null,null,null,null,null,null,null,null,null,null,"MENS GARMENT OTHER COTTON",6211320000]
[null,null,null,null,null,null,null,null,null,null,null,null,null,null,null,null,null,null,null,null,null,null,null,null,null,null,"MENS GARMENT OTHER MANMADE",6211330000]
[null,null,null,null,null,null,null,null,null,null,null,null,null,null,null,null,null,null,null,null,null,null,null,null,null,null,"MENS GARMENT OTHER TEXTILE",6211398000]
[null,null,null,null,null,null,null,null,null,null,null,null,null,null,null,null,null,null,null,null,null,null,null,null,null,null,"WOMEN GARMENT OTHER COTTON",6211420000]
[null,null,null,null,null,null,null,null,null,null,null,null,null,null,null,null,null,null,null,null,null,null,null,null,null,null,"WOMEN GARMENT OTHER MANMADE",6211430000]
[null,null,null,null,null,null,null,null,null,null,null,null,null,null,null,null,null,null,null,null,null,null,null,null,null,null,"WOMEN GARMENT OTHER TEXTILE",6211490000]
[null,null,null,null,null,null,null,null,null,null,null,null,null,null,null,null,null,null,null,null,null,null,null,null,null,null,"BLANKETS-RUGS WOOL",6301200000]
[null,null,null,null,null,null,null,null,null,null,null,null,null,null,null,null,null,null,null,null,null,null,null,null,null,null,"BLANKETS-RUGS COTTON",6301300000]
[null,null,null,null,null,null,null,null,null,null,null,null,null,null,null,null,null,null,null,null,null,null,null,null,null,null,"BLANKETS-RUGS SYNTHETIC FIBERS",6301400000]
[null,null,null,null,null,null,null,null,null,null,null,null,null,null,null,null,null,null,null,null,null,null,null,null,null,null,"BLANKET-RUGS OTHER",6301900000]
[null,null,null,null,null,null,null,null,null,null,null,null,null,null,null,null,null,null,null,null,null,null,null,null,null,null,"Bed linen of cotton printed",6302210000]
[null,null,null,null,null,null,null,null,null,null,null,null,null,null,null,null,null,null,null,null,null,null,null,null,null,null,"Bathroom or Kitchen towels cotton terry",6302600000]
[null,null,null,null,null,null,null,null,null,null,null,null,null,null,null,null,null,null,null,null,null,null,null,null,null,null,"TENTS BACKPACKING SYNTHETIC",6306221000]
[null,null,null,null,null,null,null,null,null,null,null,null,null,null,null,null,null,null,null,null,null,null,null,null,null,null,"TENTS TEXTILE MATERIALS",6306290000]
[null,null,null,null,null,null,null,null,null,null,null,null,null,null,null,null,null,null,null,null,null,null,null,null,null,null,"TENTS MADE OF COTTON",6306291100]
[null,null,null,null,null,null,null,null,null,null,null,null,null,null,null,null,null,null,null,null,null,null,null,null,null,null,"TENTS MADE OF OTHER TEXTILE",6306292100]
[null,null,null,null,null,null,null,null,null,null,null,null,null,null,null,null,null,null,null,null,null,null,null,null,null,null,"Camping Textile Other",6306905000]
[null,null,null,null,null,null,null,null,null,null,null,null,null,null,null,null,null,null,null,null,null,null,null,null,null,null,"Pet toys / pet bed of textile material",6307907500]
[null,null,null,null,null,null,null,null,null,null,null,null,null,null,null,null,null,null,null,null,null,null,null,null,null,null,"BANNER/FLAG OF MAN-MADE MATERIAL",6307908500]
[null,null,null,null,null,null,null,null,null,null,null,null,null,null,null,null,null,null,null,null,null,null,null,null,null,null,"Carriers, of textile, for children",6307909889]
[null,null,null,null,null,null,null,null,null,null,null,null,null,null,null,null,null,null,null,null,null,null,null,null,null,null,"BANNER/FLAG OF MAN-MADE MATERIAL",6307909995]
[null,null,null,null,null,null,null,null,null,null,null,null,null,null,null,null,null,null,null,null,null,null,null,null,null,null,"Flip Flops",6402200000]
[null,null,null,null,null,null,null,null,null,null,null,null,null,null,null,null,null,null,null,null,null,null,null,null,null,null,"Golf Shoes",6403193000]
[null,null,null,null,null,null,null,null,null,null,null,null,null,null,null,null,null,null,null,null,null,null,null,null,null,null,"Knitted/Crocheted hat of wool",6505003090]
[null,null,null,null,null,null,null,null,null,null,null,null,null,null,null,null,null,null,null,null,null,null,null,null,null,null,"Cotton Hat;Headgear Knitted",6505901540]
[null,null,null,null,null,null,null,null,null,null,null,null,null,null,null,null,null,null,null,null,null,null,null,null,null,null,"HATS AND OTHER HEADGEAR",6505906060]
[null,null,null,null,null,null,null,null,null,null,null,null,null,null,null,null,null,null,null,null,null,null,null,null,null,null,"SAFETY HEADGEAR ATHLETIC REC SPORT",6506103045]
[null,null,null,null,null,null,null,null,null,null,null,null,null,null,null,null,null,null,null,null,null,null,null,null,null,null,"HATS AND OTHER HEADGEAR",6506996000]
[null,null,null,null,null,null,null,null,null,null,null,null,null,null,null,null,null,null,null,null,null,null,null,null,null,null,"UMBRELLAS GARDEN OR SIMILAR",6601100000]
[null,null,null,null,null,null,null,null,null,null,null,null,null,null,null,null,null,null,null,null,null,null,null,null,null,null,"UMBRELLA TELESCOPIC SHAFT",6601910000]
[null,null,null,null,null,null,null,null,null,null,null,null,null,null,null,null,null,null,null,null,null,null,null,null,null,null,"UMBRELLA OTHER",6601990000]
[null,null,null,null,null,null,null,null,null,null,null,null,null,null,null,null,null,null,null,null,null,null,null,null,null,null,"Stone, Marble, Travertine, and Alabaster",6802215000]
[null,null,null,null,null,null,null,null,null,null,null,null,null,null,null,null,null,null,null,null,null,null,null,null,null,null,"DESK SETS, NATURAL STONE NOT SLATE",6802910000]
[null,null,null,null,null,null,null,null,null,null,null,null,null,null,null,null,null,null,null,null,null,null,null,null,null,null,"DESK SETS, NATURAL STONE NOT SLATE",6802910099]
[null,null,null,null,null,null,null,null,null,null,null,null,null,null,null,null,null,null,null,null,null,null,null,null,null,null,"ARTICLES OF SLATE",6803000000]
[null,null,null,null,null,null,null,null,null,null,null,null,null,null,null,null,null,null,null,null,null,null,null,null,null,null,"STATUES/ARTICLES OF MARBLE",6810990000]
[null,null,null,null,null,null,null,null,null,null,null,null,null,null,null,null,null,null,null,null,null,null,null,null,null,null,"Ceramic Plates not over $200",6911103750]
[null,null,null,null,null,null,null,null,null,null,null,null,null,null,null,null,null,null,null,null,null,null,null,null,null,null,"TABLEWARE PORCELAIN OR CHINA-",6911105500]
[null,null,null,null,null,null,null,null,null,null,null,null,null,null,null,null,null,null,null,null,null,null,null,null,null,null,"Tableware Porcelain or China",6911105800]
[null,null,null,null,null,null,null,null,null,null,null,null,null,null,null,null,null,null,null,null,null,null,null,null,null,null,"HOUSEHOLD ITEM PORCELAIN/CHINA",6911900050]
[null,null,null,null,null,null,null,null,null,null,null,null,null,null,null,null,null,null,null,null,null,null,null,null,null,null,"Stoneware Dishes",6912001000]
[null,null,null,null,null,null,null,null,null,null,null,null,null,null,null,null,null,null,null,null,null,null,null,null,null,null,"TABLE/KITCHENWARE CERAMIC/OTHER",6912002500]
[null,null,null,null,null,null,null,null,null,null,null,null,null,null,null,null,null,null,null,null,null,null,null,null,null,null,"STATUE-ORNAMENT PORCLN/CHINA",6913100000]
[null,null,null,null,null,null,null,null,null,null,null,null,null,null,null,null,null,null,null,null,null,null,null,null,null,null,"STATUE ORNAMENT CERAMIC",6913900000]
[null,null,null,null,null,null,null,null,null,null,null,null,null,null,null,null,null,null,null,null,null,null,null,null,null,null,"PORCELAIN/CHINA ITEMS-OTHER",6914100000]
[null,null,null,null,null,null,null,null,null,null,null,null,null,null,null,null,null,null,null,null,null,null,null,null,null,null,"CERAMIC ITEMS OTHER",6914900000]
[null,null,null,null,null,null,null,null,null,null,null,null,null,null,null,null,null,null,null,null,null,null,null,null,null,null,"GLASS CERAMIC - INDOOR DECORATION",7013100000]
[null,null,null,null,null,null,null,null,null,null,null,null,null,null,null,null,null,null,null,null,null,null,null,null,null,null,"GLASSES LEAD CRYSTAL",7013210000]
[null,null,null,null,null,null,null,null,null,null,null,null,null,null,null,null,null,null,null,null,null,null,null,null,null,null,"GLASSES STEMWARE LEAD CRYSTAL",7013220000]
[null,null,null,null,null,null,null,null,null,null,null,null,null,null,null,null,null,null,null,null,null,null,null,null,null,null,"GLASSES STEMWARE OTHER",7013280000]
[null,null,null,null,null,null,null,null,null,null,null,null,null,null,null,null,null,null,null,null,null,null,null,null,null,null,"GLASSES OTHER MATERIAL",7013290000]
[null,null,null,null,null,null,null,null,null,null,null,null,null,null,null,null,null,null,null,null,null,null,null,null,null,null,"GLASSES NOT STEM LEAD CRYSTAL",7013330000]
[null,null,null,null,null,null,null,null,null,null,null,null,null,null,null,null,null,null,null,null,null,null,null,null,null,null,"GLASSES NOT STEMWARE OTHER",7013370000]
[null,null,null,null,null,null,null,null,null,null,null,null,null,null,null,null,null,null,null,null,null,null,null,null,null,null,"GLASSWARE OTHER",7013390000]
[null,null,null,null,null,null,null,null,null,null,null,null,null,null,null,null,null,null,null,null,null,null,null,null,null,null,"TABLE/KITCHEN GLASSWARE LEAD CRYSTAL",7013410000]
[null,null,null,null,null,null,null,null,null,null,null,null,null,null,null,null,null,null,null,null,null,null,null,null,null,null,"GLASS KITCHENWARE LOWEXPANSION TOUGHENED",7013421000]
[null,null,null,null,null,null,null,null,null,null,null,null,null,null,null,null,null,null,null,null,null,null,null,null,null,null,"GLASSWARE OTHER LEAD CRYSTAL",7013910000]
[null,null,null,null,null,null,null,null,null,null,null,null,null,null,null,null,null,null,null,null,null,null,null,null,null,null,"Other Glassware Lead Crystal $3 to $5",7013913000]
[null,null,null,null,null,null,null,null,null,null,null,null,null,null,null,null,null,null,null,null,null,null,null,null,null,null,"GLASSWARE OTHER LEAD CRYSTAL OVER $5",7013915000]
[null,null,null,null,null,null,null,null,null,null,null,null,null,null,null,null,null,null,null,null,null,null,null,null,null,null,"GLASSWARE OTHER NOT LEAD CRYSTAL-",7013990000]
[null,null,null,null,null,null,null,null,null,null,null,null,null,null,null,null,null,null,null,null,null,null,null,null,null,null,"GLASSWARE OTHER NOT LEAD CRYSTAL",7013991000]
[null,null,null,null,null,null,null,null,null,null,null,null,null,null,null,null,null,null,null,null,null,null,null,null,null,null,"Other Glassware Cut/Engraved >$5",7013997000]
[null,null,null,null,null,null,null,null,null,null,null,null,null,null,null,null,null,null,null,null,null,null,null,null,null,null,"OTHER GLASSWARE More than $3 less than$5",7013998000]
[null,null,null,null,null,null,null,null,null,null,null,null,null,null,null,null,null,null,null,null,null,null,null,null,null,null,"OTHER GLASSWARE OTHER >$5",7013999000]
[null,null,null,null,null,null,null,null,null,null,null,null,null,null,null,null,null,null,null,null,null,null,null,null,null,null,"LENSES AND FILTERS OF GLASS",7014003000]
[null,null,null,null,null,null,null,null,null,null,null,null,null,null,null,null,null,null,null,null,null,null,null,null,null,null,"GLASS SMLLWARES FOR DECORATION",7016100000]
[null,null,null,null,null,null,null,null,null,null,null,null,null,null,null,null,null,null,null,null,null,null,null,null,null,null,"GLASS ARTICLES OTHER",7020000000]
[null,null,null,null,null,null,null,null,null,null,null,null,null,null,null,null,null,null,null,null,null,null,null,null,null,null,"PEARLS CULTURED,WORKED NOT SET",7101220000]
[null,null,null,null,null,null,null,null,null,null,null,null,null,null,null,null,null,null,null,null,null,null,null,null,null,null,"DIAMONDS UNSORTED",7102100000]
[null,null,null,null,null,null,null,null,null,null,null,null,null,null,null,null,null,null,null,null,null,null,null,null,null,null,"LOOSE DIAMONDS",7102290000]
[null,null,null,null,null,null,null,null,null,null,null,null,null,null,null,null,null,null,null,null,null,null,null,null,null,null,"DIAMOND NOT OVER 0.5 CARAT",7102390010]
[null,null,null,null,null,null,null,null,null,null,null,null,null,null,null,null,null,null,null,null,null,null,null,null,null,null,"DIAMOND OVER 0.5 CARAT",7102390050]
[null,null,null,null,null,null,null,null,null,null,null,null,null,null,null,null,null,null,null,null,null,null,null,null,null,null,"RUBY SAPPHIRE EMERALD WORKED",7103910000]
[null,null,null,null,null,null,null,null,null,null,null,null,null,null,null,null,null,null,null,null,null,null,null,null,null,null,"GEMS OTHER CUT BUT NOT SET",7103991000]
[null,null,null,null,null,null,null,null,null,null,null,null,null,null,null,null,null,null,null,null,null,null,null,null,null,null,"Synthetic Stones cut but not set",7104901000]
[null,null,null,null,null,null,null,null,null,null,null,null,null,null,null,null,null,null,null,null,null,null,null,null,null,null,"JEWELRY/PARTS OF SILVER-",7113110000]
[null,null,null,null,null,null,null,null,null,null,null,null,null,null,null,null,null,null,null,null,null,null,null,null,null,null,"JEWELRY/PARTS OF SILVER",7113111000]
[null,null,null,null,null,null,null,null,null,null,null,null,null,null,null,null,null,null,null,null,null,null,null,null,null,null,"JEWELRY/PARTS PRECIOUS METAL-",7113190000]
[null,null,null,null,null,null,null,null,null,null,null,null,null,null,null,null,null,null,null,null,null,null,null,null,null,null,"JEWELRY/PARTS PRECIOUS METAL",7113191000]
[null,null,null,null,null,null,null,null,null,null,null,null,null,null,null,null,null,null,null,null,null,null,null,null,null,null,"JEWELRY BASE METAL W/PRECIOUS METAL-",7113200000]
[null,null,null,null,null,null,null,null,null,null,null,null,null,null,null,null,null,null,null,null,null,null,null,null,null,null,"JEWELRY BASE METAL W/PRECIOUS METAL",7113205000]
[null,null,null,null,null,null,null,null,null,null,null,null,null,null,null,null,null,null,null,null,null,null,null,null,null,null,"OF PRECIOUS METAL OR CLAD WITH",7114110000]
[null,null,null,null,null,null,null,null,null,null,null,null,null,null,null,null,null,null,null,null,null,null,null,null,null,null,"FLATWARE SETS SILVER",7114115100]
[null,null,null,null,null,null,null,null,null,null,null,null,null,null,null,null,null,null,null,null,null,null,null,null,null,null,"SILVER ITEM FOR THE HOME",7114115500]
[null,null,null,null,null,null,null,null,null,null,null,null,null,null,null,null,null,null,null,null,null,null,null,null,null,null,"SILVER ITEM FOR THE DESK",7114117000]
[null,null,null,null,null,null,null,null,null,null,null,null,null,null,null,null,null,null,null,null,null,null,null,null,null,null,"ARTICLES OF GOLD OR PLATINUM",7114190000]
[null,null,null,null,null,null,null,null,null,null,null,null,null,null,null,null,null,null,null,null,null,null,null,null,null,null,"BASE METAL CLAD W/PRECIOUS MTL",7114200000]
[null,null,null,null,null,null,null,null,null,null,null,null,null,null,null,null,null,null,null,null,null,null,null,null,null,null,"OTHER ARTICLES OF PRECIOUS MTL",7115900000]
[null,null,null,null,null,null,null,null,null,null,null,null,null,null,null,null,null,null,null,null,null,null,null,null,null,null,"Rectangular /near Rect. shape Belt Buckl",7115900590]
[null,null,null,null,null,null,null,null,null,null,null,null,null,null,null,null,null,null,null,null,null,null,null,null,null,null,"ARTICLES OF CULTURED PEARLS",7116102500]
[null,null,null,null,null,null,null,null,null,null,null,null,null,null,null,null,null,null,null,null,null,null,null,null,null,null,"JEWELRY PRECIOUS/SEMI STONES",7116201000]
[null,null,null,null,null,null,null,null,null,null,null,null,null,null,null,null,null,null,null,null,null,null,null,null,null,null,"CUFFLINK BASE/PRECIOUS METAL",7117110000]
[null,null,null,null,null,null,null,null,null,null,null,null,null,null,null,null,null,null,null,null,null,null,null,null,null,null,"JEWELRY IMITATION BASE/PLATED-",7117190000]
[null,null,null,null,null,null,null,null,null,null,null,null,null,null,null,null,null,null,null,null,null,null,null,null,null,null,"IMITATION JEWELRY BASE METAL OTHER",7117199000]
[null,null,null,null,null,null,null,null,null,null,null,null,null,null,null,null,null,null,null,null,null,null,null,null,null,null,"JEWELRY IMITATION NOT OF BASE",7117900000]
[null,null,null,null,null,null,null,null,null,null,null,null,null,null,null,null,null,null,null,null,null,null,null,null,null,null,"Imitation Jewelry of base metal other of",7117907500]
[null,null,null,null,null,null,null,null,null,null,null,null,null,null,null,null,null,null,null,null,null,null,null,null,null,null,"Immitation Jewelry Base Material Other",7117909000]
[null,null,null,null,null,null,null,null,null,null,null,null,null,null,null,null,null,null,null,null,null,null,null,null,null,null,"COIN NOT GOLD/NOT LEGAL TENDER",7118100000]
[null,null,null,null,null,null,null,null,null,null,null,null,null,null,null,null,null,null,null,null,null,null,null,null,null,null,"COIN OTHER GOLD CONTENT",7118900030]
[null,null,null,null,null,null,null,null,null,null,null,null,null,null,null,null,null,null,null,null,null,null,null,null,null,null,"COIN OTHER (NOT GOLD)-",7118900050]
[null,null,null,null,null,null,null,null,null,null,null,null,null,null,null,null,null,null,null,null,null,null,null,null,null,null,"COIN OTHER (NOT GOLD)",7118900055]
[null,null,null,null,null,null,null,null,null,null,null,null,null,null,null,null,null,null,null,null,null,null,null,null,null,null,"COOKING APPLIANCE PORTABLE GAS",7321111000]
[null,null,null,null,null,null,null,null,null,null,null,null,null,null,null,null,null,null,null,null,null,null,null,null,null,null,"Stoves/Barbecue Stoves Other Fuel",7321111060]
[null,null,null,null,null,null,null,null,null,null,null,null,null,null,null,null,null,null,null,null,null,null,null,null,null,null,"Other gas appliances",7321811000]
[null,null,null,null,null,null,null,null,null,null,null,null,null,null,null,null,null,null,null,null,null,null,null,null,null,null,"COOKWARE STAINLESS STEEL-",7323930010]
[null,null,null,null,null,null,null,null,null,null,null,null,null,null,null,null,null,null,null,null,null,null,null,null,null,null,"HOUSEHOLD ITEM STAINLESS STEEL BAKEWARE",7323930035]
[null,null,null,null,null,null,null,null,null,null,null,null,null,null,null,null,null,null,null,null,null,null,null,null,null,null,"Cookware of Stainless Steel",7323930045]
[null,null,null,null,null,null,null,null,null,null,null,null,null,null,null,null,null,null,null,null,null,null,null,null,null,null,"HOUSEHOLD ARTICLE STAINLESS STEEL",7323930080]
[null,null,null,null,null,null,null,null,null,null,null,null,null,null,null,null,null,null,null,null,null,null,null,null,null,null,"TABLE/KITCHENWARE IRON/STEEL",7323990000]
[null,null,null,null,null,null,null,null,null,null,null,null,null,null,null,null,null,null,null,null,null,null,null,null,null,null,"COOKINGWARE OF IRON OR STEEL-",7323997000]
[null,null,null,null,null,null,null,null,null,null,null,null,null,null,null,null,null,null,null,null,null,null,null,null,null,null,"ARTICLES OF IRON OR STEEL WIRE OTHER",7326200070]
[null,null,null,null,null,null,null,null,null,null,null,null,null,null,null,null,null,null,null,null,null,null,null,null,null,null,"Other articles of iron or steel wire",7326200071]
[null,null,null,null,null,null,null,null,null,null,null,null,null,null,null,null,null,null,null,null,null,null,null,null,null,null,"CONTAINER POCKET STEEL/IRON",7326903500]
[null,null,null,null,null,null,null,null,null,null,null,null,null,null,null,null,null,null,null,null,null,null,null,null,null,null,"Other Articles of Iron / Steel",7326908588]
[null,null,null,null,null,null,null,null,null,null,null,null,null,null,null,null,null,null,null,null,null,null,null,null,null,null,"Seat Metal frame Not upholstered",74017900]
[null,null,null,null,null,null,null,null,null,null,null,null,null,null,null,null,null,null,null,null,null,null,null,null,null,null,"KITCHEN ITEM OTHER COPPER",7418190000]
[null,null,null,null,null,null,null,null,null,null,null,null,null,null,null,null,null,null,null,null,null,null,null,null,null,null,"KITCHEN ITEM OTHER COPPER",7418193000]
[null,null,null,null,null,null,null,null,null,null,null,null,null,null,null,null,null,null,null,null,null,null,null,null,null,null,"Other copper articles",7419990000]
[null,null,null,null,null,null,null,null,null,null,null,null,null,null,null,null,null,null,null,null,null,null,null,null,null,null,"CONTAINERS OF COPPER CARRIED ON PERSON",7419991500]
[null,null,null,null,null,null,null,null,null,null,null,null,null,null,null,null,null,null,null,null,null,null,null,null,null,null,"ARTICLES OF BRASS OTHER",7419995050]
[null,null,null,null,null,null,null,null,null,null,null,null,null,null,null,null,null,null,null,null,null,null,null,null,null,null,"Other Articles of Nickel",7508905000]
[null,null,null,null,null,null,null,null,null,null,null,null,null,null,null,null,null,null,null,null,null,null,null,null,null,null,"Aluminum Alloy Stock, Not Clad, >6.3mm",7606123030]
[null,null,null,null,null,null,null,null,null,null,null,null,null,null,null,null,null,null,null,null,null,null,null,null,null,null,"ALUMINUM CONTAINERS 355ML<>3.8L",7612901060]
[null,null,null,null,null,null,null,null,null,null,null,null,null,null,null,null,null,null,null,null,null,null,null,null,null,null,"Aluminum Containers 3.8L< > 20 Liters",7612901090]
[null,null,null,null,null,null,null,null,null,null,null,null,null,null,null,null,null,null,null,null,null,null,null,null,null,null,"ALUMINUM COOKWARE NONSTICK STOVETOP",7615102025]
[null,null,null,null,null,null,null,null,null,null,null,null,null,null,null,null,null,null,null,null,null,null,null,null,null,null,"ALUMINUM COOKWARE NONSTICK STOVETOP-",7615192000]
[null,null,null,null,null,null,null,null,null,null,null,null,null,null,null,null,null,null,null,null,null,null,null,null,null,null,"ALUMINUM COOKWARE NONSTICK STOVETOP-",7615194000]
[null,null,null,null,null,null,null,null,null,null,null,null,null,null,null,null,null,null,null,null,null,null,null,null,null,null,"ALUMINUM COOKWARE NONSTICK STOVETOP-",7615199000]
[null,null,null,null,null,null,null,null,null,null,null,null,null,null,null,null,null,null,null,null,null,null,null,null,null,null,"Aluminum Ladders",7616995030]
[null,null,null,null,null,null,null,null,null,null,null,null,null,null,null,null,null,null,null,null,null,null,null,null,null,null,"Complete Articles of Aluminum",7616995090]
[null,null,null,null,null,null,null,null,null,null,null,null,null,null,null,null,null,null,null,null,null,null,null,null,null,null,"Complete Articles of Aluminum",7616995190]
[null,null,null,null,null,null,null,null,null,null,null,null,null,null,null,null,null,null,null,null,null,null,null,null,null,null,"OTHER ARTICLES OF ZINC",7907006000]
[null,null,null,null,null,null,null,null,null,null,null,null,null,null,null,null,null,null,null,null,null,null,null,null,null,null,"TIN ARTICLES OTHER",8007000000]
[null,null,null,null,null,null,null,null,null,null,null,null,null,null,null,null,null,null,null,null,null,null,null,null,null,null,"Other articles of tin or pewter",8007001050]
[null,null,null,null,null,null,null,null,null,null,null,null,null,null,null,null,null,null,null,null,null,null,null,null,null,null,"PLIERS BASE METAL",8203205000]
[null,null,null,null,null,null,null,null,null,null,null,null,null,null,null,null,null,null,null,null,null,null,null,null,null,null,"SOCKET WRENCH BASE METAL",8204200000]
[null,null,null,null,null,null,null,null,null,null,null,null,null,null,null,null,null,null,null,null,null,null,null,null,null,null,"HAMMERS AND PARTS BASE METAL",8205200000]
[null,null,null,null,null,null,null,null,null,null,null,null,null,null,null,null,null,null,null,null,null,null,null,null,null,null,"TOOLS FOR WOODWRKNG OF BASE METL",8205300000]
[null,null,null,null,null,null,null,null,null,null,null,null,null,null,null,null,null,null,null,null,null,null,null,null,null,null,"SCREWDRIVERS PARTS BASE METAL",8205400000]
[null,null,null,null,null,null,null,null,null,null,null,null,null,null,null,null,null,null,null,null,null,null,null,null,null,null,"TOOLS HOUSEHOLD BASE METAL",8205510000]
[null,null,null,null,null,null,null,null,null,null,null,null,null,null,null,null,null,null,null,null,null,null,null,null,null,null,"TOOLS HOUSEHOLD BASE METAL",8205517500]
[null,null,null,null,null,null,null,null,null,null,null,null,null,null,null,null,null,null,null,null,null,null,null,null,null,null,"HANDTOOLS OTHER BASE METAL",8205598000]
[null,null,null,null,null,null,null,null,null,null,null,null,null,null,null,null,null,null,null,null,null,null,null,null,null,null,"HANDTOOLS OTHER BASE METAL-",8205599000]
[null,null,null,null,null,null,null,null,null,null,null,null,null,null,null,null,null,null,null,null,null,null,null,null,null,null,"SETS OF ARTICLES OF 2 OR MORE OF",8205900000]
[null,null,null,null,null,null,null,null,null,null,null,null,null,null,null,null,null,null,null,null,null,null,null,null,null,null,"COMBO OF ABOVE TOOLS INTO A SET",8206000000]
[null,null,null,null,null,null,null,null,null,null,null,null,null,null,null,null,null,null,null,null,null,null,null,null,null,null,"Tools & Dies for pressing metal",8207303000]
[null,null,null,null,null,null,null,null,null,null,null,null,null,null,null,null,null,null,null,null,null,null,null,null,null,null,"HAND-OPER MECHANICAL APPLIANCES",8210000000]
[null,null,null,null,null,null,null,null,null,null,null,null,null,null,null,null,null,null,null,null,null,null,null,null,null,null,"KNIFE SETS OF BASE METAL",8211100000]
[null,null,null,null,null,null,null,null,null,null,null,null,null,null,null,null,null,null,null,null,null,null,null,null,null,null,"TABLE KNIVES HAVING FIXED BLADES",8211910001]
[null,null,null,null,null,null,null,null,null,null,null,null,null,null,null,null,null,null,null,null,null,null,null,null,null,null,"KNIVES W/ RUBBER HANDLES",8211914000]
[null,null,null,null,null,null,null,null,null,null,null,null,null,null,null,null,null,null,null,null,null,null,null,null,null,null,"OTHER KNIVES HAVING FIXED BLADES",8211920001]
[null,null,null,null,null,null,null,null,null,null,null,null,null,null,null,null,null,null,null,null,null,null,null,null,null,null,"Kitchen and Butcher Knives",8211922000]
[null,null,null,null,null,null,null,null,null,null,null,null,null,null,null,null,null,null,null,null,null,null,null,null,null,null,"KNIVES OTHER NOT FIXED BLADES",8211930001]
[null,null,null,null,null,null,null,null,null,null,null,null,null,null,null,null,null,null,null,null,null,null,null,null,null,null,"Razors - non electric",8212100000]
[null,null,null,null,null,null,null,null,null,null,null,null,null,null,null,null,null,null,null,null,null,null,null,null,null,null,"SCISSORS/SHEARS BASE METAL",8213000000]
[null,null,null,null,null,null,null,null,null,null,null,null,null,null,null,null,null,null,null,null,null,null,null,null,null,null,"LETTER OPENERS",8214100000]
[null,null,null,null,null,null,null,null,null,null,null,null,null,null,null,null,null,null,null,null,null,null,null,null,null,null,"MANICURE/PEDICURE SETS",8214200000]
[null,null,null,null,null,null,null,null,null,null,null,null,null,null,null,null,null,null,null,null,null,null,null,null,null,null,"CUTLERY OTHER BASE METAL",8214900000]
[null,null,null,null,null,null,null,null,null,null,null,null,null,null,null,null,null,null,null,null,null,null,null,null,null,null,"TABLEWARE SETS PRECIOUS METAL",8215100000]
[null,null,null,null,null,null,null,null,null,null,null,null,null,null,null,null,null,null,null,null,null,null,null,null,null,null,"TABLEWARE SET NO PRECIOUS METL",8215200000]
[null,null,null,null,null,null,null,null,null,null,null,null,null,null,null,null,null,null,null,null,null,null,null,null,null,null,"TABLEWARE NOT SET PRECIOUS METL",8215910000]
[null,null,null,null,null,null,null,null,null,null,null,null,null,null,null,null,null,null,null,null,null,null,null,null,null,null,"TABLEWARE NOT SET NOT PRECIOUS MTL",8215990000]
[null,null,null,null,null,null,null,null,null,null,null,null,null,null,null,null,null,null,null,null,null,null,null,null,null,null,"LUGGAGE LOCK BASE METAL",8301403000]
[null,null,null,null,null,null,null,null,null,null,null,null,null,null,null,null,null,null,null,null,null,null,null,null,null,null,"Base Metal mountings for furniture or TV",8302500000]
[null,null,null,null,null,null,null,null,null,null,null,null,null,null,null,null,null,null,null,null,null,null,null,null,null,null,"Armored safes and strong boxes",8303000000]
[null,null,null,null,null,null,null,null,null,null,null,null,null,null,null,null,null,null,null,null,null,null,null,null,null,null,"PEN TRAY OFFICE EQUIP BASE MTL",8304000000]
[null,null,null,null,null,null,null,null,null,null,null,null,null,null,null,null,null,null,null,null,null,null,null,null,null,null,"STATUETTE W/PRECIOUS MTL",8306210000]
[null,null,null,null,null,null,null,null,null,null,null,null,null,null,null,null,null,null,null,null,null,null,null,null,null,null,"STATUETTE BASE METAL ONLY",8306290000]
[null,null,null,null,null,null,null,null,null,null,null,null,null,null,null,null,null,null,null,null,null,null,null,null,null,null,"FRAME PICTURE OF BASE METAL",8306300000]
[null,null,null,null,null,null,null,null,null,null,null,null,null,null,null,null,null,null,null,null,null,null,null,null,null,null,"BUCKLES AND BUCKLE CLASPS,",8308906000]
[null,null,null,null,null,null,null,null,null,null,null,null,null,null,null,null,null,null,null,null,null,null,null,null,null,null,"CLASPS, FRAMES WITH CLASPS",8308908000]
[null,null,null,null,null,null,null,null,null,null,null,null,null,null,null,null,null,null,null,null,null,null,null,null,null,null,"SIGN, NAME, ADDRESS PLATES",8310000000]
[null,null,null,null,null,null,null,null,null,null,null,null,null,null,null,null,null,null,null,null,null,null,null,null,null,null,"Portable air compressor",8414809000]
[null,null,null,null,null,null,null,null,null,null,null,null,null,null,null,null,null,null,null,null,null,null,null,null,null,null,"Air Conditioner Self Contained",8415100000]
[null,null,null,null,null,null,null,null,null,null,null,null,null,null,null,null,null,null,null,null,null,null,null,null,null,null,"Incinerators other Except Parts",8417800000]
[null,null,null,null,null,null,null,null,null,null,null,null,null,null,null,null,null,null,null,null,null,null,null,null,null,null,"Refrigerator Not including a freezer",8418210000]
[null,null,null,null,null,null,null,null,null,null,null,null,null,null,null,null,null,null,null,null,null,null,null,null,null,null,"Gas Cooking Stoves, Ranges and Ovens",8419810000]
[null,null,null,null,null,null,null,null,null,null,null,null,null,null,null,null,null,null,null,null,null,null,null,null,null,null,"Purifier_Water",8421210000]
[null,null,null,null,null,null,null,null,null,null,null,null,null,null,null,null,null,null,null,null,null,null,null,null,null,null,"Purifier_Air",8421398015]
[null,null,null,null,null,null,null,null,null,null,null,null,null,null,null,null,null,null,null,null,null,null,null,null,null,null,"Dishwashing Machines",8422110000]
[null,null,null,null,null,null,null,null,null,null,null,null,null,null,null,null,null,null,null,null,null,null,null,null,null,null,"Labeling Machine",8422309120]
[null,null,null,null,null,null,null,null,null,null,null,null,null,null,null,null,null,null,null,null,null,null,null,null,null,null,"Personal digital scale",8423100000]
[null,null,null,null,null,null,null,null,null,null,null,null,null,null,null,null,null,null,null,null,null,null,null,null,null,null,"PRESSURE WASHER",8424309000]
[null,null,null,null,null,null,null,null,null,null,null,null,null,null,null,null,null,null,null,null,null,null,null,null,null,null,"Dental Water Jet",8424890000]
[null,null,null,null,null,null,null,null,null,null,null,null,null,null,null,null,null,null,null,null,null,null,null,null,null,null,"SNOWBLOWERS",8430200060]
[null,null,null,null,null,null,null,null,null,null,null,null,null,null,null,null,null,null,null,null,null,null,null,null,null,null,"TILLER WALK BEHIND",8432290060]
[null,null,null,null,null,null,null,null,null,null,null,null,null,null,null,null,null,null,null,null,null,null,null,null,null,null,"LAWNMOWER ELECTRIC",8433110010]
[null,null,null,null,null,null,null,null,null,null,null,null,null,null,null,null,null,null,null,null,null,null,null,null,null,null,"LAWNMOWER GAS",8433190040]
[null,null,null,null,null,null,null,null,null,null,null,null,null,null,null,null,null,null,null,null,null,null,null,null,null,null,"Pasta Maker",8438100090]
[null,null,null,null,null,null,null,null,null,null,null,null,null,null,null,null,null,null,null,null,null,null,null,null,null,null,"FAX AND/OR COPY MACHINES",8443310000]
[null,null,null,null,null,null,null,null,null,null,null,null,null,null,null,null,null,null,null,null,null,null,null,null,null,null,"Printer Laser, or Inkjet",8443321010]
[null,null,null,null,null,null,null,null,null,null,null,null,null,null,null,null,null,null,null,null,null,null,null,null,null,null,"PRINTERS INK JET",8443321040]
[null,null,null,null,null,null,null,null,null,null,null,null,null,null,null,null,null,null,null,null,null,null,null,null,null,null,"PRINTERS OTHER",8443321090]
[null,null,null,null,null,null,null,null,null,null,null,null,null,null,null,null,null,null,null,null,null,null,null,null,null,null,"Laundry Washing Machines",8450110000]
[null,null,null,null,null,null,null,null,null,null,null,null,null,null,null,null,null,null,null,null,null,null,null,null,null,null,"WOODWRKNG MACHINE NO TOOL CHANGE",8465100000]
[null,null,null,null,null,null,null,null,null,null,null,null,null,null,null,null,null,null,null,null,null,null,null,null,null,null,"WOODWRKNG MACHINE NO TOOL CHANGE",8465100050]
[null,null,null,null,null,null,null,null,null,null,null,null,null,null,null,null,null,null,null,null,null,null,null,null,null,null,"SAW TABLE",8465910036]
[null,null,null,null,null,null,null,null,null,null,null,null,null,null,null,null,null,null,null,null,null,null,null,null,null,null,"SAW MITER",8465910047]
[null,null,null,null,null,null,null,null,null,null,null,null,null,null,null,null,null,null,null,null,null,null,null,null,null,null,"BAND SAWS UNDER $1000",8465910064]
[null,null,null,null,null,null,null,null,null,null,null,null,null,null,null,null,null,null,null,null,null,null,null,null,null,null,"BAND SAWS OVER $1000",8465910068]
[null,null,null,null,null,null,null,null,null,null,null,null,null,null,null,null,null,null,null,null,null,null,null,null,null,null,"Woodworking Router under $3000",8465920051]
[null,null,null,null,null,null,null,null,null,null,null,null,null,null,null,null,null,null,null,null,null,null,null,null,null,null,"DRILL PRESS WOOD WORKING",8465950038]
[null,null,null,null,null,null,null,null,null,null,null,null,null,null,null,null,null,null,null,null,null,null,null,null,null,null,"HAND DRILL BATTERY OPERATED",8467210010]
[null,null,null,null,null,null,null,null,null,null,null,null,null,null,null,null,null,null,null,null,null,null,null,null,null,null,"ELECTRIC HAND DRILLS,",8467210070]
[null,null,null,null,null,null,null,null,null,null,null,null,null,null,null,null,null,null,null,null,null,null,null,null,null,null,"HAND SAW ELECTRIC CIRCULAR",8467220020]
[null,null,null,null,null,null,null,null,null,null,null,null,null,null,null,null,null,null,null,null,null,null,null,null,null,null,"HAND SAW CHAIN ELECTRIC CHAIN",8467220040]
[null,null,null,null,null,null,null,null,null,null,null,null,null,null,null,null,null,null,null,null,null,null,null,null,null,null,"SAW HAND RECIPROCATING",8467220070]
[null,null,null,null,null,null,null,null,null,null,null,null,null,null,null,null,null,null,null,null,null,null,null,null,null,null,"SAW ELECTRIC OTHER",8467220090]
[null,null,null,null,null,null,null,null,null,null,null,null,null,null,null,null,null,null,null,null,null,null,null,null,null,null,"HANDGRINDER/SANDER/POLISHER",8467290010]
[null,null,null,null,null,null,null,null,null,null,null,null,null,null,null,null,null,null,null,null,null,null,null,null,null,null,"HAND SCREWDRIVER ELECTRIC",8467290040]
[null,null,null,null,null,null,null,null,null,null,null,null,null,null,null,null,null,null,null,null,null,null,null,null,null,null,"HAND ROUTER ELECTRIC",8467290055]
[null,null,null,null,null,null,null,null,null,null,null,null,null,null,null,null,null,null,null,null,null,null,null,null,null,null,"HAND PLANER ELECTRIC",8467290065]
[null,null,null,null,null,null,null,null,null,null,null,null,null,null,null,null,null,null,null,null,null,null,null,null,null,null,"TRIMMER ELECTRIC",8467290070]
[null,null,null,null,null,null,null,null,null,null,null,null,null,null,null,null,null,null,null,null,null,null,null,null,null,null,"SCISSORS ELECTRIC",8467290085]
[null,null,null,null,null,null,null,null,null,null,null,null,null,null,null,null,null,null,null,null,null,null,null,null,null,null,"HANDTOOLS ELECTROMECHANICAL",8467290095]
[null,null,null,null,null,null,null,null,null,null,null,null,null,null,null,null,null,null,null,null,null,null,null,null,null,null,"TRIMMER GAS",8467895030]
[null,null,null,null,null,null,null,null,null,null,null,null,null,null,null,null,null,null,null,null,null,null,null,null,null,null,"HAND TOOLS AGRICULTURAL",8467895060]
[null,null,null,null,null,null,null,null,null,null,null,null,null,null,null,null,null,null,null,null,null,null,null,null,null,null,"CALCULATORS ELECTRONIC",8470100000]
[null,null,null,null,null,null,null,null,null,null,null,null,null,null,null,null,null,null,null,null,null,null,null,null,null,null,"Calculator Machine Pocket Size",8470100060]
[null,null,null,null,null,null,null,null,null,null,null,null,null,null,null,null,null,null,null,null,null,null,null,null,null,null,"PORTABLE DIGTL AUTOMATIC DATA",8471300000]
[null,null,null,null,null,null,null,null,null,null,null,null,null,null,null,null,null,null,null,null,null,null,null,null,null,null,"Laptop",8471300100]
[null,null,null,null,null,null,null,null,null,null,null,null,null,null,null,null,null,null,null,null,null,null,null,null,null,null,"Computer Keyboard",8471602000]
[null,null,null,null,null,null,null,null,null,null,null,null,null,null,null,null,null,null,null,null,null,null,null,null,null,null,"PRINTER LASER 20 PGS PER MIN",8471606100]
[null,null,null,null,null,null,null,null,null,null,null,null,null,null,null,null,null,null,null,null,null,null,null,null,null,null,"PRINTERS INK JET",8471606400]
[null,null,null,null,null,null,null,null,null,null,null,null,null,null,null,null,null,null,null,null,null,null,null,null,null,null,"PRINTERS OTHER",8471606790]
[null,null,null,null,null,null,null,null,null,null,null,null,null,null,null,null,null,null,null,null,null,null,null,null,null,null,"Computer Mouse",8471607000]
[null,null,null,null,null,null,null,null,null,null,null,null,null,null,null,null,null,null,null,null,null,null,null,null,null,null,"SCANNER",8471608000]
[null,null,null,null,null,null,null,null,null,null,null,null,null,null,null,null,null,null,null,null,null,null,null,null,null,null,"Tablet Computer",8471609050]
[null,null,null,null,null,null,null,null,null,null,null,null,null,null,null,null,null,null,null,null,null,null,null,null,null,null,"Disk Drives, Thumb Drives",8471700000]
[null,null,null,null,null,null,null,null,null,null,null,null,null,null,null,null,null,null,null,null,null,null,null,null,null,null,"Flash Drive",8471709000]
[null,null,null,null,null,null,null,null,null,null,null,null,null,null,null,null,null,null,null,null,null,null,null,null,null,null,"MAGNETIC OR OPTICAL READERS OTHER",8471900000]
[null,null,null,null,null,null,null,null,null,null,null,null,null,null,null,null,null,null,null,null,null,null,null,null,null,null,"STAPLER OR OTHER SMALL DESK MACHINE",8472909000]
[null,null,null,null,null,null,null,null,null,null,null,null,null,null,null,null,null,null,null,null,null,null,null,null,null,null,"COMPUTER PARTS & CORDS",8473300002]
[null,null,null,null,null,null,null,null,null,null,null,null,null,null,null,null,null,null,null,null,null,null,null,null,null,null,"Mousepad",8473305100]
[null,null,null,null,null,null,null,null,null,null,null,null,null,null,null,null,null,null,null,null,null,null,null,null,null,null,"Elec Appliances Polisher Humidifier Etc",8479890000]
[null,null,null,null,null,null,null,null,null,null,null,null,null,null,null,null,null,null,null,null,null,null,null,null,null,null,"VACUUM CLEANER",8479893080]
[null,null,null,null,null,null,null,null,null,null,null,null,null,null,null,null,null,null,null,null,null,null,null,null,null,null,"Hand op Water Dispensers, Taps, Valves",8481805090]
[null,null,null,null,null,null,null,null,null,null,null,null,null,null,null,null,null,null,null,null,null,null,null,null,null,null,"Telecommunication Charger",8504408500]
[null,null,null,null,null,null,null,null,null,null,null,null,null,null,null,null,null,null,null,null,null,null,null,null,null,null,"Elec Transformers Power Supplies UPS",8504409580]
[null,null,null,null,null,null,null,null,null,null,null,null,null,null,null,null,null,null,null,null,null,null,null,null,null,null,"MAGNET/PERMANENT/METAL",8505110000]
[null,null,null,null,null,null,null,null,null,null,null,null,null,null,null,null,null,null,null,null,null,null,null,null,null,null,"Electromagnets Other",8505110090]
[null,null,null,null,null,null,null,null,null,null,null,null,null,null,null,null,null,null,null,null,null,null,null,null,null,null,"Rechargabe lithium battery power bank",8507600020]
[null,null,null,null,null,null,null,null,null,null,null,null,null,null,null,null,null,null,null,null,null,null,null,null,null,null,"ELECTRIC HAND DRILLS,",8508100010]
[null,null,null,null,null,null,null,null,null,null,null,null,null,null,null,null,null,null,null,null,null,null,null,null,null,null,"VACUUM CLEANER W/ DUSTBAG",8508110000]
[null,null,null,null,null,null,null,null,null,null,null,null,null,null,null,null,null,null,null,null,null,null,null,null,null,null,"VACUUM CLEANER OTHER",8508190000]
[null,null,null,null,null,null,null,null,null,null,null,null,null,null,null,null,null,null,null,null,null,null,null,null,null,null,"ELECTRIC VACUUM CLEANERS",8509100040]
[null,null,null,null,null,null,null,null,null,null,null,null,null,null,null,null,null,null,null,null,null,null,null,null,null,null,"MIXER FOOD ELECTRIC DOMESTIC",8509400020]
[null,null,null,null,null,null,null,null,null,null,null,null,null,null,null,null,null,null,null,null,null,null,null,null,null,null,"Food Grinders Processers Mixers Juicers",8509400040]
[null,null,null,null,null,null,null,null,null,null,null,null,null,null,null,null,null,null,null,null,null,null,null,null,null,null,"ELECTRIC DOMESTIC APPLIANCES OTHER",8509800091]
[null,null,null,null,null,null,null,null,null,null,null,null,null,null,null,null,null,null,null,null,null,null,null,null,null,null,"Electric Shavers",8510100000]
[null,null,null,null,null,null,null,null,null,null,null,null,null,null,null,null,null,null,null,null,null,null,null,null,null,null,"HAIR CLIPPERS ELECTRIC",8510200000]
[null,null,null,null,null,null,null,null,null,null,null,null,null,null,null,null,null,null,null,null,null,null,null,null,null,null,"Radar Detector/Sound Signal Equip",8512300000]
[null,null,null,null,null,null,null,null,null,null,null,null,null,null,null,null,null,null,null,null,null,null,null,null,null,null,"Flashlight",8513102000]
[null,null,null,null,null,null,null,null,null,null,null,null,null,null,null,null,null,null,null,null,null,null,null,null,null,null,"HAIR DRYERS ELECTRIC",8516310000]
[null,null,null,null,null,null,null,null,null,null,null,null,null,null,null,null,null,null,null,null,null,null,null,null,null,null,"CURLING IRON ELECTRIC",8516320000]
[null,null,null,null,null,null,null,null,null,null,null,null,null,null,null,null,null,null,null,null,null,null,null,null,null,null,"Electric Clothing Irons",8516400000]
[null,null,null,null,null,null,null,null,null,null,null,null,null,null,null,null,null,null,null,null,null,null,null,null,null,null,"MICROWAVE OVEN",8516500000]
[null,null,null,null,null,null,null,null,null,null,null,null,null,null,null,null,null,null,null,null,null,null,null,null,null,null,"Elec Cooking Stoves Ranges and Ovens",8516600000]
[null,null,null,null,null,null,null,null,null,null,null,null,null,null,null,null,null,null,null,null,null,null,null,null,null,null,"COOKING STOVES ELECTRIC",8516604000]
[null,null,null,null,null,null,null,null,null,null,null,null,null,null,null,null,null,null,null,null,null,null,null,null,null,null,"COOKING APPARATUS ELECTRIC",8516606000]
[null,null,null,null,null,null,null,null,null,null,null,null,null,null,null,null,null,null,null,null,null,null,null,null,null,null,"COFFEE/TEA MAKEERS ELECTRIC",8516710000]
[null,null,null,null,null,null,null,null,null,null,null,null,null,null,null,null,null,null,null,null,null,null,null,null,null,null,"TOASTERS ELECTRIC",8516720000]
[null,null,null,null,null,null,null,null,null,null,null,null,null,null,null,null,null,null,null,null,null,null,null,null,null,null,"APPLIANCE ELECTROTHERMIC OTHER",8516790000]
[null,null,null,null,null,null,null,null,null,null,null,null,null,null,null,null,null,null,null,null,null,null,null,null,null,null,"CORDLESS TELEPHONE",8517110000]
[null,null,null,null,null,null,null,null,null,null,null,null,null,null,null,null,null,null,null,null,null,null,null,null,null,null,"Mobile Phones",8517120000]
[null,null,null,null,null,null,null,null,null,null,null,null,null,null,null,null,null,null,null,null,null,null,null,null,null,null,"Phone",8517180000]
[null,null,null,null,null,null,null,null,null,null,null,null,null,null,null,null,null,null,null,null,null,null,null,null,null,null,"Video Phone",8517180010]
[null,null,null,null,null,null,null,null,null,null,null,null,null,null,null,null,null,null,null,null,null,null,null,null,null,null,"FAX MACHINES",8517210000]
[null,null,null,null,null,null,null,null,null,null,null,null,null,null,null,null,null,null,null,null,null,null,null,null,null,null,"Bluetooth Device Data Transmission",8517620050]
[null,null,null,null,null,null,null,null,null,null,null,null,null,null,null,null,null,null,null,null,null,null,null,null,null,null,"Bluetooth Device",8517690000]
[null,null,null,null,null,null,null,null,null,null,null,null,null,null,null,null,null,null,null,null,null,null,null,null,null,null,"MICROPHONES",8518108030]
[null,null,null,null,null,null,null,null,null,null,null,null,null,null,null,null,null,null,null,null,null,null,null,null,null,null,"SINGLE LOUDSPEAKER MOUNTED IN ENCLOSURE",8518210000]
[null,null,null,null,null,null,null,null,null,null,null,null,null,null,null,null,null,null,null,null,null,null,null,null,null,null,"LOUDSPEAKERS",8518290000]
[null,null,null,null,null,null,null,null,null,null,null,null,null,null,null,null,null,null,null,null,null,null,null,null,null,null,"HEADPHONES OR EARPHONES",8518302000]
[null,null,null,null,null,null,null,null,null,null,null,null,null,null,null,null,null,null,null,null,null,null,null,null,null,null,"HOME THEATER SPEAKER SETS",8518500000]
[null,null,null,null,null,null,null,null,null,null,null,null,null,null,null,null,null,null,null,null,null,null,null,null,null,null,"TELEPHONE ANSWERING MACHINE",8519500000]
[null,null,null,null,null,null,null,null,null,null,null,null,null,null,null,null,null,null,null,null,null,null,null,null,null,null,"CD MP3 Sound Reprod Magnetic or Optical",8519810000]
[null,null,null,null,null,null,null,null,null,null,null,null,null,null,null,null,null,null,null,null,null,null,null,null,null,null,"TAPE/CASSETTE PLAYER",8519812500]
[null,null,null,null,null,null,null,null,null,null,null,null,null,null,null,null,null,null,null,null,null,null,null,null,null,null,"Sound Record/Reproduce Digital Media",8519814010]
[null,null,null,null,null,null,null,null,null,null,null,null,null,null,null,null,null,null,null,null,null,null,null,null,null,null,"SOUND REPRODUCING DEVICE -- MP3 PLAYER",8519814050]
[null,null,null,null,null,null,null,null,null,null,null,null,null,null,null,null,null,null,null,null,null,null,null,null,null,null,"SOUND REPRODUCING APPARATUS -- CD PLAYER",8519893000]
[null,null,null,null,null,null,null,null,null,null,null,null,null,null,null,null,null,null,null,null,null,null,null,null,null,null,"TAPE/CASSETTE PLAYER",8519938000]
[null,null,null,null,null,null,null,null,null,null,null,null,null,null,null,null,null,null,null,null,null,null,null,null,null,null,"SOUND REPRODUCING APPARATUS -- CD PLAYER",8519990070]
[null,null,null,null,null,null,null,null,null,null,null,null,null,null,null,null,null,null,null,null,null,null,null,null,null,null,"TELEPHONE ANSWERING MACHINE",8520200000]
[null,null,null,null,null,null,null,null,null,null,null,null,null,null,null,null,null,null,null,null,null,null,null,null,null,null,"MAGNETIC TAPE RECORDERS",8520320000]
[null,null,null,null,null,null,null,null,null,null,null,null,null,null,null,null,null,null,null,null,null,null,null,null,null,null,"VCR PLAYER ONLY",8521100000]
[null,null,null,null,null,null,null,null,null,null,null,null,null,null,null,null,null,null,null,null,null,null,null,null,null,null,"DVD OR DVD/VCR COMBO PLAYER",8521900000]
[null,null,null,null,null,null,null,null,null,null,null,null,null,null,null,null,null,null,null,null,null,null,null,null,null,null,"Ipod or Video Cam Accessories",8522900000]
[null,null,null,null,null,null,null,null,null,null,null,null,null,null,null,null,null,null,null,null,null,null,null,null,null,null,"CASSETTE TAPE RECORDINGS",8523295010]
[null,null,null,null,null,null,null,null,null,null,null,null,null,null,null,null,null,null,null,null,null,null,null,null,null,null,"Optical Media CDs",8523403000]
[null,null,null,null,null,null,null,null,null,null,null,null,null,null,null,null,null,null,null,null,null,null,null,null,null,null,"DVD Videos Including Audio and Visual",8523405000]
[null,null,null,null,null,null,null,null,null,null,null,null,null,null,null,null,null,null,null,null,null,null,null,null,null,null,"Optical Media DVD",8523490000]
[null,null,null,null,null,null,null,null,null,null,null,null,null,null,null,null,null,null,null,null,null,null,null,null,null,null,"Solid State Media Flash Drive",8523510000]
[null,null,null,null,null,null,null,null,null,null,null,null,null,null,null,null,null,null,null,null,null,null,null,null,null,null,"DISCS FOR LASER READING SYSTEMS",8524310000]
[null,null,null,null,null,null,null,null,null,null,null,null,null,null,null,null,null,null,null,null,null,null,null,null,null,null,"CASSETTE TAPE RECORDINGS",8524513040]
[null,null,null,null,null,null,null,null,null,null,null,null,null,null,null,null,null,null,null,null,null,null,null,null,null,null,"APPARATUS FOR TV RECEPTION",8525102010]
[null,null,null,null,null,null,null,null,null,null,null,null,null,null,null,null,null,null,null,null,null,null,null,null,null,null,"WALKIE-TALKIES",8525202000]
[null,null,null,null,null,null,null,null,null,null,null,null,null,null,null,null,null,null,null,null,null,null,null,null,null,null,"RADIO TRANSCEIVERS, 400 MHZ",8525203055]
[null,null,null,null,null,null,null,null,null,null,null,null,null,null,null,null,null,null,null,null,null,null,null,null,null,null,"SURROUND SOUND SYSTEM",8525209080]
[null,null,null,null,null,null,null,null,null,null,null,null,null,null,null,null,null,null,null,null,null,null,null,null,null,null,"DIGITAL STILL IMAGE VIDEO CAMERAS-",8525404000]
[null,null,null,null,null,null,null,null,null,null,null,null,null,null,null,null,null,null,null,null,null,null,null,null,null,null,"8 MM CAMCORDERS-",8525408020]
[null,null,null,null,null,null,null,null,null,null,null,null,null,null,null,null,null,null,null,null,null,null,null,null,null,null,"CAMCORDERS NOT 8MM-",8525408050]
[null,null,null,null,null,null,null,null,null,null,null,null,null,null,null,null,null,null,null,null,null,null,null,null,null,null,"STILL IMAGE VIDEO CAMERAS AND OTHER VID-",8525408085]
[null,null,null,null,null,null,null,null,null,null,null,null,null,null,null,null,null,null,null,null,null,null,null,null,null,null,"APPARATUS FOR TV RECEPTION",8525501000]
[null,null,null,null,null,null,null,null,null,null,null,null,null,null,null,null,null,null,null,null,null,null,null,null,null,null,"Cable/Satellite TV Receivers",8525502010]
[null,null,null,null,null,null,null,null,null,null,null,null,null,null,null,null,null,null,null,null,null,null,null,null,null,null,"Bluetooth Headset or Two-way radios",8525601020]
[null,null,null,null,null,null,null,null,null,null,null,null,null,null,null,null,null,null,null,null,null,null,null,null,null,null,"Digital Cameras and Camcorders",8525804000]
[null,null,null,null,null,null,null,null,null,null,null,null,null,null,null,null,null,null,null,null,null,null,null,null,null,null,"CAMCORDERS 8 MM",8525805010]
[null,null,null,null,null,null,null,null,null,null,null,null,null,null,null,null,null,null,null,null,null,null,null,null,null,null,"CAMCORDER EXCEPT 8MM",8525805020]
[null,null,null,null,null,null,null,null,null,null,null,null,null,null,null,null,null,null,null,null,null,null,null,null,null,null,"VIDEO CAMERAS STILL IMAGE OTHER",8525805050]
[null,null,null,null,null,null,null,null,null,null,null,null,null,null,null,null,null,null,null,null,null,null,null,null,null,null,"GLOBAL POSITION SATELITE",8526910070]
[null,null,null,null,null,null,null,null,null,null,null,null,null,null,null,null,null,null,null,null,null,null,null,null,null,null,"RADIO CASETTE PLAYER POCKET SZ",8527120000]
[null,null,null,null,null,null,null,null,null,null,null,null,null,null,null,null,null,null,null,null,null,null,null,null,null,null,"RADIO W/ TAPE RECORDER",8527132000]
[null,null,null,null,null,null,null,null,null,null,null,null,null,null,null,null,null,null,null,null,null,null,null,null,null,null,"RADIO WITH CD & CASSETTE PLYR",8527136000]
[null,null,null,null,null,null,null,null,null,null,null,null,null,null,null,null,null,null,null,null,null,null,null,null,null,null,"RADIOBROADCAST RECEIVERS, BATTERY TYPE",8527190000]
[null,null,null,null,null,null,null,null,null,null,null,null,null,null,null,null,null,null,null,null,null,null,null,null,null,null,"Channel Scanners",8527195025]
[null,null,null,null,null,null,null,null,null,null,null,null,null,null,null,null,null,null,null,null,null,null,null,null,null,null,"RADIO BROADCAST RECEIVERS",8527210000]
[null,null,null,null,null,null,null,null,null,null,null,null,null,null,null,null,null,null,null,null,null,null,null,null,null,null,"HD Satellite radio receiver",8527290000]
[null,null,null,null,null,null,null,null,null,null,null,null,null,null,null,null,null,null,null,null,null,null,null,null,null,null,"RADIO BROADCAST RECEIVERS",8527390000]
[null,null,null,null,null,null,null,null,null,null,null,null,null,null,null,null,null,null,null,null,null,null,null,null,null,null,"SURROUND SOUND SYSTEM",8527910000]
[null,null,null,null,null,null,null,null,null,null,null,null,null,null,null,null,null,null,null,null,null,null,null,null,null,null,"Clock Radio",8527921000]
[null,null,null,null,null,null,null,null,null,null,null,null,null,null,null,null,null,null,null,null,null,null,null,null,null,null,"RADIO TRANSCEIVERS, 400 MHZ",8527993020]
[null,null,null,null,null,null,null,null,null,null,null,null,null,null,null,null,null,null,null,null,null,null,null,null,null,null,"RADIO COMBINATION",8528104000]
[null,null,null,null,null,null,null,null,null,null,null,null,null,null,null,null,null,null,null,null,null,null,null,null,null,null,"Video MP3 player/Digital Photo Frame",8528591500]
[null,null,null,null,null,null,null,null,null,null,null,null,null,null,null,null,null,null,null,null,null,null,null,null,null,null,"FLAT PANEL SCREEN COLR W/DVD >34.29CM",8528592000]
[null,null,null,null,null,null,null,null,null,null,null,null,null,null,null,null,null,null,null,null,null,null,null,null,null,null,"FLAT PANEL SCREEN COLR W/O DVD <34.29CM",8528592500]
[null,null,null,null,null,null,null,null,null,null,null,null,null,null,null,null,null,null,null,null,null,null,null,null,null,null,"Security System",8528594500]
[null,null,null,null,null,null,null,null,null,null,null,null,null,null,null,null,null,null,null,null,null,null,null,null,null,null,"Baby Monitor",8528595000]
[null,null,null,null,null,null,null,null,null,null,null,null,null,null,null,null,null,null,null,null,null,null,null,null,null,null,"Televisions",8528720000]
[null,null,null,null,null,null,null,null,null,null,null,null,null,null,null,null,null,null,null,null,null,null,null,null,null,null,"Television",8528720800]
[null,null,null,null,null,null,null,null,null,null,null,null,null,null,null,null,null,null,null,null,null,null,null,null,null,null,"ALARM SMOKE DETECTOR",8531100015]
[null,null,null,null,null,null,null,null,null,null,null,null,null,null,null,null,null,null,null,null,null,null,null,null,null,null,"SMOKE DETECTOR OTHER",8531100025]
[null,null,null,null,null,null,null,null,null,null,null,null,null,null,null,null,null,null,null,null,null,null,null,null,null,null,"BURGULAR ALARM ELECTRIC",8531100035]
[null,null,null,null,null,null,null,null,null,null,null,null,null,null,null,null,null,null,null,null,null,null,null,null,null,null,"ALARM GAS OR FUMES",8531100045]
[null,null,null,null,null,null,null,null,null,null,null,null,null,null,null,null,null,null,null,null,null,null,null,null,null,null,"WALL/OUTLET ADAPTERS",8536300000]
[null,null,null,null,null,null,null,null,null,null,null,null,null,null,null,null,null,null,null,null,null,null,null,null,null,null,"Battery Charger / Solar",8541406020]
[null,null,null,null,null,null,null,null,null,null,null,null,null,null,null,null,null,null,null,null,null,null,null,null,null,null,"Articles Designed to Connect to Network",8543706000]
[null,null,null,null,null,null,null,null,null,null,null,null,null,null,null,null,null,null,null,null,null,null,null,null,null,null,"OTHER ELECTRICAL MACHINES NOT SPECIFIED",8543709650]
[null,null,null,null,null,null,null,null,null,null,null,null,null,null,null,null,null,null,null,null,null,null,null,null,null,null,"Computer Cables",8544190000]
[null,null,null,null,null,null,null,null,null,null,null,null,null,null,null,null,null,null,null,null,null,null,null,null,null,null,"Jumper Cables",8544300000]
[null,null,null,null,null,null,null,null,null,null,null,null,null,null,null,null,null,null,null,null,null,null,null,null,null,null,"VEHICLES MOTOR PASSENGER",8703210000]
[null,null,null,null,null,null,null,null,null,null,null,null,null,null,null,null,null,null,null,null,null,null,null,null,null,null,"AUTO ACCESSORIES FOR BODIES OTHER OTHER",8708295060]
[null,null,null,null,null,null,null,null,null,null,null,null,null,null,null,null,null,null,null,null,null,null,null,null,null,null,"BICYCLE WHEEL UNDER 25 INCHES",8712001070]
[null,null,null,null,null,null,null,null,null,null,null,null,null,null,null,null,null,null,null,null,null,null,null,null,null,null,"BICYCLE WHEEL OVER 25 INCHES",8712002600]
[null,null,null,null,null,null,null,null,null,null,null,null,null,null,null,null,null,null,null,null,null,null,null,null,null,null,"BICYCLES OTHER",8712006000]
[null,null,null,null,null,null,null,null,null,null,null,null,null,null,null,null,null,null,null,null,null,null,null,null,null,null,"Bicycle parts and Accessories",8714998000]
[null,null,null,null,null,null,null,null,null,null,null,null,null,null,null,null,null,null,null,null,null,null,null,null,null,null,"Baby Carriages",8715000020]
[null,null,null,null,null,null,null,null,null,null,null,null,null,null,null,null,null,null,null,null,null,null,null,null,null,null,"Wagons",8716805090]
[null,null,null,null,null,null,null,null,null,null,null,null,null,null,null,null,null,null,null,null,null,null,null,null,null,null,"BOATS INFLATABLE",8903100000]
[null,null,null,null,null,null,null,null,null,null,null,null,null,null,null,null,null,null,null,null,null,null,null,null,null,null,"Canoes",8903990500]
[null,null,null,null,null,null,null,null,null,null,null,null,null,null,null,null,null,null,null,null,null,null,null,null,null,null,"OBSOLETE",8903991000]
[null,null,null,null,null,null,null,null,null,null,null,null,null,null,null,null,null,null,null,null,null,null,null,null,null,null,"Kayaks",8903991500]
[null,null,null,null,null,null,null,null,null,null,null,null,null,null,null,null,null,null,null,null,null,null,null,null,null,null,"RAFTS INFLATABLE",8907100000]
[null,null,null,null,null,null,null,null,null,null,null,null,null,null,null,null,null,null,null,null,null,null,null,null,null,null,"Lenses for Digital Cameras",9002119000]
[null,null,null,null,null,null,null,null,null,null,null,null,null,null,null,null,null,null,null,null,null,null,null,null,null,null,"Mirrors",9002900000]
[null,null,null,null,null,null,null,null,null,null,null,null,null,null,null,null,null,null,null,null,null,null,null,null,null,null,"SUNGLASSES",9004100000]
[null,null,null,null,null,null,null,null,null,null,null,null,null,null,null,null,null,null,null,null,null,null,null,null,null,null,"SPECTACLES, GOGGLES",9004900000]
[null,null,null,null,null,null,null,null,null,null,null,null,null,null,null,null,null,null,null,null,null,null,null,null,null,null,"BINOCULARS",9005100000]
[null,null,null,null,null,null,null,null,null,null,null,null,null,null,null,null,null,null,null,null,null,null,null,null,null,null,"BINOCULAR USE W/INFRARED LIGHT",9005100020]
[null,null,null,null,null,null,null,null,null,null,null,null,null,null,null,null,null,null,null,null,null,null,null,null,null,null,"BINOCULAR PRISM OTHER",9005100040]
[null,null,null,null,null,null,null,null,null,null,null,null,null,null,null,null,null,null,null,null,null,null,null,null,null,null,"BINOCULAR OTHER",9005100080]
[null,null,null,null,null,null,null,null,null,null,null,null,null,null,null,null,null,null,null,null,null,null,null,null,null,null,"TELESCOPE W/INFRARED LIGHT",9005804020]
[null,null,null,null,null,null,null,null,null,null,null,null,null,null,null,null,null,null,null,null,null,null,null,null,null,null,"TELESCOPE NOT INFRARED LIGHT",9005804040]
[null,null,null,null,null,null,null,null,null,null,null,null,null,null,null,null,null,null,null,null,null,null,null,null,null,null,"ASTRONOMICAL INSTRUMENTS",9005806000]
[null,null,null,null,null,null,null,null,null,null,null,null,null,null,null,null,null,null,null,null,null,null,null,null,null,null,"CAMERAS UNDERWATER",9006300000]
[null,null,null,null,null,null,null,null,null,null,null,null,null,null,null,null,null,null,null,null,null,null,null,null,null,null,"CAMERAS INSTANT PRINT",9006400000]
[null,null,null,null,null,null,null,null,null,null,null,null,null,null,null,null,null,null,null,null,null,null,null,null,null,null,"CAMERAS SLR 35MM",9006510000]
[null,null,null,null,null,null,null,null,null,null,null,null,null,null,null,null,null,null,null,null,null,null,null,null,null,null,"CAMERAS 35MM",9006530000]
[null,null,null,null,null,null,null,null,null,null,null,null,null,null,null,null,null,null,null,null,null,null,null,null,null,null,"CAMERAS 35MM",9006530002]
[null,null,null,null,null,null,null,null,null,null,null,null,null,null,null,null,null,null,null,null,null,null,null,null,null,null,"COPY MACHINE",9009110000]
[null,null,null,null,null,null,null,null,null,null,null,null,null,null,null,null,null,null,null,null,null,null,null,null,null,null,"Microscope with photographing camera",9011204000]
[null,null,null,null,null,null,null,null,null,null,null,null,null,null,null,null,null,null,null,null,null,null,null,null,null,null,"Compass - Electronic",9014107060]
[null,null,null,null,null,null,null,null,null,null,null,null,null,null,null,null,null,null,null,null,null,null,null,null,null,null,"Fishfinder",9014802000]
[null,null,null,null,null,null,null,null,null,null,null,null,null,null,null,null,null,null,null,null,null,null,null,null,null,null,"RANGEFINDERS",9015100000]
[null,null,null,null,null,null,null,null,null,null,null,null,null,null,null,null,null,null,null,null,null,null,null,null,null,null,"MEASURING TAPE",9017800000]
[null,null,null,null,null,null,null,null,null,null,null,null,null,null,null,null,null,null,null,null,null,null,null,null,null,null,"Medical Inst Like BP Monitors",9018900000]
[null,null,null,null,null,null,null,null,null,null,null,null,null,null,null,null,null,null,null,null,null,null,null,null,null,null,"MASSAGE THERAPY DEVICE",9019102000]
[null,null,null,null,null,null,null,null,null,null,null,null,null,null,null,null,null,null,null,null,null,null,null,null,null,null,"THERMOMETERS LIQUID-FILLED",9025114000]
[null,null,null,null,null,null,null,null,null,null,null,null,null,null,null,null,null,null,null,null,null,null,null,null,null,null,"Clinical digital thermometer",9025198040]
[null,null,null,null,null,null,null,null,null,null,null,null,null,null,null,null,null,null,null,null,null,null,null,null,null,null,"Digital Thermometer - non clinical",9025198080]
[null,null,null,null,null,null,null,null,null,null,null,null,null,null,null,null,null,null,null,null,null,null,null,null,null,null,"Electronic Weather station",9025801000]
[null,null,null,null,null,null,null,null,null,null,null,null,null,null,null,null,null,null,null,null,null,null,null,null,null,null,"BAROMETER",9025801500]
[null,null,null,null,null,null,null,null,null,null,null,null,null,null,null,null,null,null,null,null,null,null,null,null,null,null,"GAS OR SMOKE APPARATUS",9027100000]
[null,null,null,null,null,null,null,null,null,null,null,null,null,null,null,null,null,null,null,null,null,null,null,null,null,null,"Chemical Analysis Inst Glucose Monitor",9027800000]
[null,null,null,null,null,null,null,null,null,null,null,null,null,null,null,null,null,null,null,null,null,null,null,null,null,null,"ODO/PEDO-METERS PRODCOUNTER & LIKE",9029108000]
[null,null,null,null,null,null,null,null,null,null,null,null,null,null,null,null,null,null,null,null,null,null,null,null,null,null,"Other Speed/Tach-ometers",9029204080]
[null,null,null,null,null,null,null,null,null,null,null,null,null,null,null,null,null,null,null,null,null,null,null,null,null,null,"WATCH PRECIOUS METL-MECHANICAL",9101110000]
[null,null,null,null,null,null,null,null,null,null,null,null,null,null,null,null,null,null,null,null,null,null,null,null,null,null,"WATCH PRECIOUS METL-DIGITAL",9101120000]
[null,null,null,null,null,null,null,null,null,null,null,null,null,null,null,null,null,null,null,null,null,null,null,null,null,null,"WATCH PRECIOUS MTL-OTHER DISP",9101190000]
[null,null,null,null,null,null,null,null,null,null,null,null,null,null,null,null,null,null,null,null,null,null,null,null,null,null,"WATCH PRECIOUS METL-DIGITAL",9101192000]
[null,null,null,null,null,null,null,null,null,null,null,null,null,null,null,null,null,null,null,null,null,null,null,null,null,null,"WATCH PRECIOUS MTL-OTHER DISP",9101195000]
[null,null,null,null,null,null,null,null,null,null,null,null,null,null,null,null,null,null,null,null,null,null,null,null,null,null,"WATCH PRECIOUS MTL AUTO WIND",9101210000]
[null,null,null,null,null,null,null,null,null,null,null,null,null,null,null,null,null,null,null,null,null,null,null,null,null,null,"WATCH PRECIOUS MTL SELF WIND",9101290000]
[null,null,null,null,null,null,null,null,null,null,null,null,null,null,null,null,null,null,null,null,null,null,null,null,null,null,"WATCH POCKET PRECIOUS MTL",9101910000]
[null,null,null,null,null,null,null,null,null,null,null,null,null,null,null,null,null,null,null,null,null,null,null,null,null,null,"WATCH BASE METL-MECHANICAL",9102110000]
[null,null,null,null,null,null,null,null,null,null,null,null,null,null,null,null,null,null,null,null,null,null,null,null,null,null,"WATCH BASE MTL-DIGITAL",9102120000]
[null,null,null,null,null,null,null,null,null,null,null,null,null,null,null,null,null,null,null,null,null,null,null,null,null,null,"Watch of Textile Material or base metal",9102122000]
[null,null,null,null,null,null,null,null,null,null,null,null,null,null,null,null,null,null,null,null,null,null,null,null,null,null,"WATCH BASE MTL-OTHER DISPLAY",9102190000]
[null,null,null,null,null,null,null,null,null,null,null,null,null,null,null,null,null,null,null,null,null,null,null,null,null,null,"WATCH BASE MTL AUTO WIND",9102210000]
[null,null,null,null,null,null,null,null,null,null,null,null,null,null,null,null,null,null,null,null,null,null,null,null,null,null,"WATCH BASE MTL SELF WIND",9102290000]
[null,null,null,null,null,null,null,null,null,null,null,null,null,null,null,null,null,null,null,null,null,null,null,null,null,null,"WATCH POCKET-BASE MTL",9102910000]
[null,null,null,null,null,null,null,null,null,null,null,null,null,null,null,null,null,null,null,null,null,null,null,null,null,null,"CLOCKS WATCH-MOVEMENTS",9103900000]
[null,null,null,null,null,null,null,null,null,null,null,null,null,null,null,null,null,null,null,null,null,null,null,null,null,null,"CLOCKS ALARM-ELECTRIC",9105110000]
[null,null,null,null,null,null,null,null,null,null,null,null,null,null,null,null,null,null,null,null,null,null,null,null,null,null,"Clocks Electric Alarm",9105114020]
[null,null,null,null,null,null,null,null,null,null,null,null,null,null,null,null,null,null,null,null,null,null,null,null,null,null,"CLOCKS ALARM-BATTERY",9105190000]
[null,null,null,null,null,null,null,null,null,null,null,null,null,null,null,null,null,null,null,null,null,null,null,null,null,null,"CLOCKS WALL ELECTRIC",9105210000]
[null,null,null,null,null,null,null,null,null,null,null,null,null,null,null,null,null,null,null,null,null,null,null,null,null,null,"CLOCKS WALL NOT ELECTRIC",9105290000]
[null,null,null,null,null,null,null,null,null,null,null,null,null,null,null,null,null,null,null,null,null,null,null,null,null,null,"CLOCKS OTHER ELECTRIC",9105910000]
[null,null,null,null,null,null,null,null,null,null,null,null,null,null,null,null,null,null,null,null,null,null,null,null,null,null,"MOVECASE OTHERCLOCK OPTOELECTRICDISPLAY",9105914020]
[null,null,null,null,null,null,null,null,null,null,null,null,null,null,null,null,null,null,null,null,null,null,null,null,null,null,"CLOCKS OTHER-NOT ELECTRIC",9105990000]
[null,null,null,null,null,null,null,null,null,null,null,null,null,null,null,null,null,null,null,null,null,null,null,null,null,null,"WATCH",9108110000]
[null,null,null,null,null,null,null,null,null,null,null,null,null,null,null,null,null,null,null,null,null,null,null,null,null,null,"WATCH CASES OF BASE METAL,",9111200000]
[null,null,null,null,null,null,null,null,null,null,null,null,null,null,null,null,null,null,null,null,null,null,null,null,null,null,"WATCH STRAP,BAND,BRACELET PRECIOUS METAL",9113100000]
[null,null,null,null,null,null,null,null,null,null,null,null,null,null,null,null,null,null,null,null,null,null,null,null,null,null,"WATCH STRAPS,BANDS,BRACELETS OF BASE MTL",9113200000]
[null,null,null,null,null,null,null,null,null,null,null,null,null,null,null,null,null,null,null,null,null,null,null,null,null,null,"GUITARS",9202903000]
[null,null,null,null,null,null,null,null,null,null,null,null,null,null,null,null,null,null,null,null,null,null,null,null,null,null,"KEYBOARD INSTRUMENTS",9207100080]
[null,null,null,null,null,null,null,null,null,null,null,null,null,null,null,null,null,null,null,null,null,null,null,null,null,null,"MUSIC BOX",9208100000]
[null,null,null,null,null,null,null,null,null,null,null,null,null,null,null,null,null,null,null,null,null,null,null,null,null,null,"WHISTLES CALLS OTHER MUSICAL DEVICES",9208900080]
[null,null,null,null,null,null,null,null,null,null,null,null,null,null,null,null,null,null,null,null,null,null,null,null,null,null,"SHOTGUN/RIFLES FOR SPORT",9303200010]
[null,null,null,null,null,null,null,null,null,null,null,null,null,null,null,null,null,null,null,null,null,null,null,null,null,null,"SHOTGUN/RIFLES FOR SPORT",9303200030]
[null,null,null,null,null,null,null,null,null,null,null,null,null,null,null,null,null,null,null,null,null,null,null,null,null,null,"AIR GUNS",9304004000]
[null,null,null,null,null,null,null,null,null,null,null,null,null,null,null,null,null,null,null,null,null,null,null,null,null,null,"WOOD CHAIR",9401613000]
[null,null,null,null,null,null,null,null,null,null,null,null,null,null,null,null,null,null,null,null,null,null,null,null,null,null,"Chairs for Children",9401614001]
[null,null,null,null,null,null,null,null,null,null,null,null,null,null,null,null,null,null,null,null,null,null,null,null,null,null,"Camping Chairs",9401790015]
[null,null,null,null,null,null,null,null,null,null,null,null,null,null,null,null,null,null,null,null,null,null,null,null,null,null,"SEAT OTHER NOT METAL/WOOD",9401800000]
[null,null,null,null,null,null,null,null,null,null,null,null,null,null,null,null,null,null,null,null,null,null,null,null,null,null,"Child's Safety Seats",9401806023]
[null,null,null,null,null,null,null,null,null,null,null,null,null,null,null,null,null,null,null,null,null,null,null,null,null,null,"Furniture Metal  Other",9403200030]
[null,null,null,null,null,null,null,null,null,null,null,null,null,null,null,null,null,null,null,null,null,null,null,null,null,null,"FURNITURE KITCHEN OF WOOD",9403409500]
[null,null,null,null,null,null,null,null,null,null,null,null,null,null,null,null,null,null,null,null,null,null,null,null,null,null,"FURNITURE WOOD OTHER",9403600000]
[null,null,null,null,null,null,null,null,null,null,null,null,null,null,null,null,null,null,null,null,null,null,null,null,null,null,"Memory Foam Bed Mattress",9404210090]
[null,null,null,null,null,null,null,null,null,null,null,null,null,null,null,null,null,null,null,null,null,null,null,null,null,null,"SLEEPING BAG",9404300000]
[null,null,null,null,null,null,null,null,null,null,null,null,null,null,null,null,null,null,null,null,null,null,null,null,null,null,"Pillow Other",9404902000]
[null,null,null,null,null,null,null,null,null,null,null,null,null,null,null,null,null,null,null,null,null,null,null,null,null,null,"LAMPS FLOOR STANDING ELECTRIC",9405201000]
[null,null,null,null,null,null,null,null,null,null,null,null,null,null,null,null,null,null,null,null,null,null,null,null,null,null,"LIGHTING FIXTURES ELECTRICAL",9405400000]
[null,null,null,null,null,null,null,null,null,null,null,null,null,null,null,null,null,null,null,null,null,null,null,null,null,null,"LAMPS NON-ELECTRIC",9405500000]
[null,null,null,null,null,null,null,null,null,null,null,null,null,null,null,null,null,null,null,null,null,null,null,null,null,null,"OTHER TOYS NOT LISTED BELOW",9503000000]
[null,null,null,null,null,null,null,null,null,null,null,null,null,null,null,null,null,null,null,null,null,null,null,null,null,null,"OTHER TOYS NOT LISTED BELOW-",9503000080]
[null,null,null,null,null,null,null,null,null,null,null,null,null,null,null,null,null,null,null,null,null,null,null,null,null,null,"Toys wheeled and miniature scaled model",9503000090]
[null,null,null,null,null,null,null,null,null,null,null,null,null,null,null,null,null,null,null,null,null,null,null,null,null,null,"TOYS STUFFED",9503410000]
[null,null,null,null,null,null,null,null,null,null,null,null,null,null,null,null,null,null,null,null,null,null,null,null,null,null,"TOYS NOT STUFFED",9503490000]
[null,null,null,null,null,null,null,null,null,null,null,null,null,null,null,null,null,null,null,null,null,null,null,null,null,null,"Vdeo Games and Parts and Accessories",9504100000]
[null,null,null,null,null,null,null,null,null,null,null,null,null,null,null,null,null,null,null,null,null,null,null,null,null,null,"POOL TABLE & ACCESSORIES",9504200000]
[null,null,null,null,null,null,null,null,null,null,null,null,null,null,null,null,null,null,null,null,null,null,null,null,null,null,"PLAYING CARDS",9504400000]
[null,null,null,null,null,null,null,null,null,null,null,null,null,null,null,null,null,null,null,null,null,null,null,null,null,null,"VIDEO GAME MACHINES",9504904000]
[null,null,null,null,null,null,null,null,null,null,null,null,null,null,null,null,null,null,null,null,null,null,null,null,null,null,"GAMES-BOARD CHESS ETC",9504906000]
[null,null,null,null,null,null,null,null,null,null,null,null,null,null,null,null,null,null,null,null,null,null,null,null,null,null,"GAMES-FESTIVAL,ARCADE,PARLOR",9504909080]
[null,null,null,null,null,null,null,null,null,null,null,null,null,null,null,null,null,null,null,null,null,null,null,null,null,null,"Fake Christmas Tree",9505104010]
[null,null,null,null,null,null,null,null,null,null,null,null,null,null,null,null,null,null,null,null,null,null,null,null,null,null,"SNOWBOARD",9506114010]
[null,null,null,null,null,null,null,null,null,null,null,null,null,null,null,null,null,null,null,null,null,null,null,null,null,null,"SNOWBOARD",9506190000]
[null,null,null,null,null,null,null,null,null,null,null,null,null,null,null,null,null,null,null,null,null,null,null,null,null,null,"Water sports equipment",9506210000]
[null,null,null,null,null,null,null,null,null,null,null,null,null,null,null,null,null,null,null,null,null,null,null,null,null,null,"GOLF CLUBS, COMPLETE",9506310000]
[null,null,null,null,null,null,null,null,null,null,null,null,null,null,null,null,null,null,null,null,null,null,null,null,null,null,"GOLF BALLS",9506320000]
[null,null,null,null,null,null,null,null,null,null,null,null,null,null,null,null,null,null,null,null,null,null,null,null,null,null,"GOLF CLUBS PARTS",9506390060]
[null,null,null,null,null,null,null,null,null,null,null,null,null,null,null,null,null,null,null,null,null,null,null,null,null,null,"GOLF EQUIPMENT OTHER",9506390080]
[null,null,null,null,null,null,null,null,null,null,null,null,null,null,null,null,null,null,null,null,null,null,null,null,null,null,"TENNIS RACKET",9506510000]
[null,null,null,null,null,null,null,null,null,null,null,null,null,null,null,null,null,null,null,null,null,null,null,null,null,null,"TENNIS RACKET",9506511000]
[null,null,null,null,null,null,null,null,null,null,null,null,null,null,null,null,null,null,null,null,null,null,null,null,null,null,"BADMINTON RACKETS",9506590000]
[null,null,null,null,null,null,null,null,null,null,null,null,null,null,null,null,null,null,null,null,null,null,null,null,null,null,"TENNIS BALLS",9506610000]
[null,null,null,null,null,null,null,null,null,null,null,null,null,null,null,null,null,null,null,null,null,null,null,null,null,null,"Footballs",9506624040]
[null,null,null,null,null,null,null,null,null,null,null,null,null,null,null,null,null,null,null,null,null,null,null,null,null,null,"Soccer Balls",9506624080]
[null,null,null,null,null,null,null,null,null,null,null,null,null,null,null,null,null,null,null,null,null,null,null,null,null,null,"Basketballs",9506628020]
[null,null,null,null,null,null,null,null,null,null,null,null,null,null,null,null,null,null,null,null,null,null,null,null,null,null,"Volleyballs",9506628040]
[null,null,null,null,null,null,null,null,null,null,null,null,null,null,null,null,null,null,null,null,null,null,null,null,null,null,"OTHER INFLATABLE BALLS",9506629000]
[null,null,null,null,null,null,null,null,null,null,null,null,null,null,null,null,null,null,null,null,null,null,null,null,null,null,"NONINFLATABLE HOLLOW BALLS OUTDOOR GAME",9506694000]
[null,null,null,null,null,null,null,null,null,null,null,null,null,null,null,null,null,null,null,null,null,null,null,null,null,null,"EXCERCISE EQUIPMENT",9506910000]
[null,null,null,null,null,null,null,null,null,null,null,null,null,null,null,null,null,null,null,null,null,null,null,null,null,null,"Archery sets",9506990530]
[null,null,null,null,null,null,null,null,null,null,null,null,null,null,null,null,null,null,null,null,null,null,null,null,null,null,"Baseball Articles, Equipment not Balls",9506991500]
[null,null,null,null,null,null,null,null,null,null,null,null,null,null,null,null,null,null,null,null,null,null,null,null,null,null,"SLEDS TOBOGGANS SNOWSHOES",9506994700]
[null,null,null,null,null,null,null,null,null,null,null,null,null,null,null,null,null,null,null,null,null,null,null,null,null,null,"Athletic Equipment other not specified",9506996080]
[null,null,null,null,null,null,null,null,null,null,null,null,null,null,null,null,null,null,null,null,null,null,null,null,null,null,"FISHING RODS",9507100040]
[null,null,null,null,null,null,null,null,null,null,null,null,null,null,null,null,null,null,null,null,null,null,null,null,null,null,"FISHING RODS PARTS/ACCESSORIES",9507100080]
[null,null,null,null,null,null,null,null,null,null,null,null,null,null,null,null,null,null,null,null,null,null,null,null,null,null,"Fishing Reel / Rod Reel Combo",9507306000]
[null,null,null,null,null,null,null,null,null,null,null,null,null,null,null,null,null,null,null,null,null,null,null,null,null,null,"BRUSH TOOTH/PLAQUE",9603210000]
[null,null,null,null,null,null,null,null,null,null,null,null,null,null,null,null,null,null,null,null,null,null,null,null,null,null,"Cleaning Brush",9603908050]
[null,null,null,null,null,null,null,null,null,null,null,null,null,null,null,null,null,null,null,null,null,null,null,null,null,null,"PENS BALL POINT",9608100000]
[null,null,null,null,null,null,null,null,null,null,null,null,null,null,null,null,null,null,null,null,null,null,null,null,null,null,"PEN FELT TIP",9608200000]
[null,null,null,null,null,null,null,null,null,null,null,null,null,null,null,null,null,null,null,null,null,null,null,null,null,null,"Fountain Pens Stylograph Pens",9608310000]
[null,null,null,null,null,null,null,null,null,null,null,null,null,null,null,null,null,null,null,null,null,null,null,null,null,null,"PENS, FOUNTAIN",9608390000]
[null,null,null,null,null,null,null,null,null,null,null,null,null,null,null,null,null,null,null,null,null,null,null,null,null,null,"PENCILS MECHANICAL",9608404000]
[null,null,null,null,null,null,null,null,null,null,null,null,null,null,null,null,null,null,null,null,null,null,null,null,null,null,"PEN AND PENCIL SET (2+)",9608500000]
[null,null,null,null,null,null,null,null,null,null,null,null,null,null,null,null,null,null,null,null,null,null,null,null,null,null,"PEN REFILLS",9608600000]
[null,null,null,null,null,null,null,null,null,null,null,null,null,null,null,null,null,null,null,null,null,null,null,null,null,null,"COLORED PENCILS OR CRAYONS",9609900000]
[null,null,null,null,null,null,null,null,null,null,null,null,null,null,null,null,null,null,null,null,null,null,null,null,null,null,"LIGHTERS, POCKET",9613200000]
[null,null,null,null,null,null,null,null,null,null,null,null,null,null,null,null,null,null,null,null,null,null,null,null,null,null,"Stainless Steel Tumbler/ Thermos",9617001000]
[null,null,null,null,null,null,null,null,null,null,null,null,null,null,null,null,null,null,null,null,null,null,null,null,null,null,"PAINTINGS/DRAWINGS",9701100000]
[null,null,null,null,null,null,null,null,null,null,null,null,null,null,null,null,null,null,null,null,null,null,null,null,null,null,"PRINTS ORIGINALS",9702000000]
[null,null,null,null,null,null,null,null,null,null,null,null,null,null,null,null,null,null,null,null,null,null,null,null,null,null,"SCULPTURE ORIGINAL ANY MATERIAL",9703000000]
[null,null,null,null,null,null,null,null,null,null,null,null,null,null,null,null,null,null,null,null,null,null,null,null,null,null,"REPAIRS",9801100000]